Workbook

Sheet Intro and Data Inputs
B1: GASB 75 Alternative Measurement Method for LEOFF 1
B3: Welcome to the Office of the State Actuary's (OSA) AMM Online Tool
C4: Intended Use
C5: This Alternative Measurement Method (AMM) Online Tool is intended to assist local government employers in Washington State covering Law Enforcement Officers' and Fire Fighters' Retirement System (LEOFF) Plan 1 retiree healthcare costs with their reporting requirements for Other Postemployment Benefits (OPEB) healthcare obligations under Governmental Accounting Standards Board (GASB) Statement No. 75. Please review the following explanation and directions below, along with the Additional Disclosures and Certification Letter before proceeding.
C7: Requirements to use this Tool
C8: (1) Employers must be local government entities in Washington State. Employers outside the State of Washington are not eligible to use this Tool.
C9: (2) Covered members must be active in or retired from LEOFF 1. Please see the Public Employees' Benefit Board (PEBB) AMM Online Tool for reporting PEBB healthcare obligations.
C10: (3) Employers must have less than 100 total LEOFF 1 members.
C12: Steps to Calculate your Reporting Results
C13: (1) Enable Macros. For Excel versions 2010 or greater, there should be a tan strip across the top of the screen when you open Excel - please allow macros to run.
C14: (2) Gather member information on the age and annual payroll (if any) of active members and retirees. Please see the Additional Disclosures tab for further guidance.
C15: (3) Group active member and retiree information by the age divisions according to the Data Inputs table below.
C16: (4) Calculate the average age for each age division.
C17: (5) Copy your data into the Data Inputs table below. There has been an effort by OSA to screen unreasonable inputs into the Tool. However, the ultimate responsibility of the accuracy of the inputs, and in effect the results, falls on the user of the Tool.
C18: (6) Enter your ending Total OPEB Liability from the prior year reporting (if available). This will serve as the beginning Total OPEB Liability for this year. The tool will estimate a beginning OPEB liability if you did not report OPEB liabilities last year.
C19: (7) Press the Calculate button. Please print the entire workbook for your records (5 pages).
C22: Data Inputs
C23: LEOFF 1 Members (Actives and Retirees)
C24: Age Divisions | D24: 55-64 | E24: 65-69 | F24: 70-74 | G24: 75+
C25: Number of Members | D25: 0 | E25: 0 | F25: 0 | G25: 0
C26: Average Age | D26: 62 | E26: 67 | F26: 72 | G26: 78
C27: Annual Covered Employee Payroll* = | E27: 0
C28: Beginning Total OPEB Liability** = | E28: 0
C29: *Will be $0 if your data does not include any currently active LEOFF 1 members.
C30: **Enter $0 if you did not report OPEB liabilities last year; the Tool will estimate a beginning Total OPEB Liability for you.
C32: Excise Tax
C33: Recent federal legislation H.R. 1865, also referred to as the Further Consolidations Appropriations Act of 2020, repealed the excise or "cadillac" tax from the Patient Protection and Affordable Care Act. As a result, this Tool no longer provides the option to calculate results with the excise tax (consistent with GASB reporting requirements). We reflect the change in this update of the Tool because the repeal occurred before the measurement date of June 30, 2020. We estimate the exclusion of the excise tax will on average reduce OPEB liabilities by roughly 6 percent. The impact of removing excise tax will be included in the “Changes in Experience Data and Assumptions” line item of GASB reporting results table if included in your Beginning Total OPEB Liability.
I37: Page 1 of 5

Sheet GASB Results
B1: LEOFF 1 - GASB 75 Reporting Results and Required Disclosures
C3: Schedule of Changes in Total OPEB Liability and Related Ratios
C4: ="Measurement Date of June 30, "&Lookups!L17 -> Measurement Date of June 30, 2020
C5: Total OPEB Liability (TOL) | F5: What's New in this FY20 Tool?
C6: Service Cost1 | E6: =IF('Intro and Data Inputs'!E28>0, ROUND(Log!L5,0) * 'Intro and Data Inputs'!E28/Log!L6, ROUND(Log!L5,0)) -> 0 | F6: And how do these changes impact my resulting OPEB liabilities? ↑or↓
C7: Interest Cost | E7: =ROUND(((E6+E14)*Lookups!L1+E10*((1+Lookups!L1)^0.5-1)),0) -> 0
C8: Changes in Experience Data and Assumptions | E8: =E12-E6-E7-E10 -> 0 | F8: - New discount rate as of June 30th, 2020. ↑
C9: Changes in Benefit Terms | E9: 0
C10: Estimated Benefit Payments | E10: =IF('Intro and Data Inputs'!E28>0,-ROUND(SUM(Log!G7:J7)/AVERAGE(Trends!D4:H4) * 'Intro and Data Inputs'!E28/Log!L6,0), -ROUND(SUM(Log!G7:J7)/AVERAGE(Trends!D4:H4),0)) -> 0 | F10: - Removal of Excise Tax via H.R. 1865 (if appliable). ↓
C11: Other | E11: 0
C12: Net Change in Total OPEB Liability | E12: =E15-E14 -> 0 | F12: - Rolled-forward expected costs to align with new measurement date. ↑
C14: Total OPEB Liability - Beginning | E14: =IF('Intro and Data Inputs'!E28>0,'Intro and Data Inputs'!E28,ROUND((Log!L6-E6-E10)/(1+Lookups!L1),0)) -> 0
C15: Total OPEB Liability - Ending | E15: =ROUND(Log!L11,0) -> 0
C17: Covered Employee Payroll | E17: ='Intro and Data Inputs'!E27 -> 0
C18: TOL as a Percentage of Covered Payroll | E18: =IFERROR(E15/E17, "N/A") -> N/A
C20: ="OPEB Expense for Fiscal Year Ending June 30, " & Lookups!L17 -> OPEB Expense for Fiscal Year Ending June 30, 2020
D21: Service Cost1 | E21: ='GASB Results'!E6 -> 0
D22: Interest Cost | E22: ='GASB Results'!E7 -> 0
D23: Changes in Experience Data and Assumptions | E23: ='GASB Results'!E8 -> 0
D24: Changes in Benefit Terms | E24: =E9 -> 0
D25: Other Changes in Fiduciary Net Position | E25: 0
D26: Total OPEB Expense | E26: =SUM(E21:E25) -> 0
D28: Transactions Subsequent to Measurement Date | E28: N/A1
C30: Sensitivity Analysis
C31: Total OPEB Liability | E31: 1% Decrease | F31: Current | G31: 1% Increase
C32: Discount Rate | E32: =ROUND(Log!L26,0) -> 0 | F32: ='GASB Results'!E15 -> 0 | G32: =ROUND(Log!L31,0) -> 0
C33: Healthcare Trend | E33: =ROUND(Log!L16,0) -> 0 | F33: ='GASB Results'!E15 -> 0 | G33: =ROUND(Log!L21,0) -> 0
C35: Methodology
C36: Actuarial Valuation Date | E36: ="6/30/"&Lookups!L17 -> 6/30/2020
C37: Actuarial Measurement Date | E37: =E36 -> 6/30/2020
C38: Actuarial Cost Method | E38: Entry Age1
C39: Amortization Method | E39: Recognized Immediately
C40: Asset Valuation Method | E40: N/A (No Assets)
C41: Assumptions
C42: Discount Rate2
C43: Beginning of Measurement Year | E43: =Lookups!L1 -> 0.035
C44: End of Measurement Year | E44: =Lookups!L2 -> 0.0221
C45: Healthcare Trend Rates3
D46: Medical Costs | E46: Initial rate is about 6%, trends down to about 5% in the 2020's.
D47: Long-Term Care | E47: 0.045
D48: Medicare Part B Premiums | E48: Approximately 5%, varies by year.
C49: Mortality Rates (Assume 100% Male Population)1
C50: Base Mortality Table | D50: Base Mortality Table | E50: RP-2000 Mortality Table
C51: Age Setback | D51: Age Setback | E51: +1 year Healthy/-2 years Disabled Blended 50%/50% Healthy/Disabled
C52: Mortality Improvements | D52: Mortality Improvements | E52: 100% Scale BB
C53: Projection Period | D53: Projection Period | E53: Generational
C54: Medicare Participation Rate | E54: 1
C55: 1See the Additional Disclosures tab for more details and guidance.
C56: 2Source: Bond Buyer General Obligation 20-Bond Municipal Index.
C57: 3For additional detail on the healthcare trend rates, please see OSA's 2018 Actuarial Valuation of LEOFF 1 Medical Benefits.
H59: Page 2 of 5

Sheet Additional Disclosures
B1: LEOFF 1 - AMM Online Tool Additional Disclosures
C3: This tab is intended to:
C4: (1) Provide guidance on concepts that require users to apply their judgment and/or consult with their auditor.
C5: (2) Document the assumptions and methods we employed for purposes of this AMM Online Tool that vary from the underlying actuarial valuation we performed at the plan-level.
C7: Data Inputs:
C9: We assume the inputs you provide are as of the measurement date of 6/30/2020. If you are not able to determine the counts and average ages as of that time, utilizing your current data or as of your reporting date may be reasonable. Please consult with your auditor for further guidance.
C11: Transactions Subsequent to Measurement Date (for GASB 75 Reporting):
C13: ="If your reporting date is after the 6/30/"&ToolYear&", measurement date, you will include the dollar amount of benefits paid between measurement and reporting date in your accounting results."&" You may use your actual benefit payments for this period (if known), or our estimate as provided below. Please see the BARS Manual from the State Auditor's Office for more information on how to incorporate this into your financial statements." -> If your reporting date is after the 6/30/2020, measurement date, you will include the dollar amount of benefits paid between measurement and reporting date in your accounting results. You may use your actual benefit payments for this period (if known), or our estimate as provided below. Please see the BARS Manual from the State Auditor's Office for more information on how to incorporate this into your financial statements.
C15: ="We estimate your first-year projected monthly benefits are $"&ROUND(Log!L7/12,0)&". If your reporting date is after the measurement date, multiply this amount by the number of months between your FYE and the measurement date. We believe this approach will serve as a reasonable estimate under this AMM Online Tool." -> We estimate your first-year projected monthly benefits are $0. If your reporting date is after the measurement date, multiply this amount by the number of months between your FYE and the measurement date. We believe this approach will serve as a reasonable estimate under this AMM Online Tool.
C17: ="In other words, if you have a 12/31/"&ToolYear&", reporting date, your estimated transactions subsequent to the measurement date would be $"&ROUND(Log!L7/12,0)&" x 6 = $"&ROUND(Log!L7/2,0)&"." -> In other words, if you have a 12/31/2020, reporting date, your estimated transactions subsequent to the measurement date would be $0 x 6 = $0.
C19: OSA actuarial reports relied upon for purposes of this AMM Online Tool:
C20: 2018 LEOFF 1 Medical Benefits Actuarial Valuation Report
C22: Specific assumptions we made when developing this AMM Online Tool:
C24: ◊ We assumed any remaining active members will retire immediately following the measurement date.
C25: ▪ We made this simplifying assumption considering that over 99 percent of LEOFF 1 members are already retired and the remaining members are eligible to retire.
C26: ▪ This approach inherently assumes that all liabilities are fully earned and the Service Cost equals zero. In other words, the Entry Age Normal Total OPEB Liability is by definition equal to the Present Value of Future Benefits. Further, we implicitly do not need to make an assumption with respect to Projected Salary Changes.
C28: ◊ Each cohort is assumed to be 100 percent male.
C29: ▪ As of the measurement date, greater than 98 percent of the eligible LEOFF 1 population is male. For purposes of this AMM Online Tool, we believe this simplification is reasonable and note that it only impacts the mortality assumptions selected (since the medical assumptions are already blended based upon the actual gender distribution within the eligible population). We will continue to monitor this assumption for future versions of the Tool.
C31: ◊ We selected the four age-based cohorts for this AMM Online Tool based upon the overall distribution of the LEOFF 1 eligible population. We believe this grouping approach is reasonable for purposes of the AMM.
C33: ="◊ Medical and long-term care costs were projected from June 30, 2018, to the measurement date of June 30, "&ToolYear&", using the healthcare trend rates detailed in the 2018 LEOFF 1 Medical Benefits Actuarial Valuation Report." -> ◊ Medical and long-term care costs were projected from June 30, 2018, to the measurement date of June 30, 2020, using the healthcare trend rates detailed in the 2018 LEOFF 1 Medical Benefits Actuarial Valuation Report.
C35: We believe these approaches and simplifying assumptions are reasonable for purposes of this AMM.
C37: We would like to hear your feedback if you used this Tool. Please send us an email at:
C38: State.Actuary@leg.wa.gov
C40: Glossary - Link to the OSA website that includes definitions for frequently used actuarial and OPEB terms.
D41: Page 3 of 5

Sheet Certification Letter
B1: LEOFF 1 - GASB 75 AMM Online Tool Actuarial Certification
D59: Page 4 of 5
B61: LEOFF 1 - GASB 75 AMM Online Tool Actuarial Certification (Continued)
D119: Page 5 of 5

Sheet Inactive (hidden)
A1: Inactives | B1: 0 | D1: Medical | E1: Medicare | G1: LTC - Inst. | H1: LTC - Non Inst. | J1: Medical - Age<65 | L1: Medical - Age>=65 | N1: Medicare | Q1: LTC - Inst. | T1: LTC - Non Inst. | X1: Medical | Y1: Medicare | AB1: LTC - Inst. | AC1: LTC - Non Inst. | AI1: Pct Male | AJ1: 1 | AP1: PV of
A2: Year | D2: Cost | E2: Cost | G2: Cost | H2: Cost | J2: Trend | K2: Rel Trend | L2: Trend | M2: Rel Trend | N2: Trend | O2: Rel Trend | Q2: Rate | R2: Trend | S2: Rel Trend | T2: Rate | U2: Trend | V2: Rel Trend | X2: Net Cost | Y2: Net Cost | Z2: Total | AB2: Net Cost | AC2: Net Cost | AD2: Total | AF2: Grand Total | AH2: Mort - M | AI2: Mort - F | AJ2: Mortality | AK2: Survive | AL2: Interest | AM2: Pay Timing | AP2: Benefits
A3: =ToolYear -> 2020 | B3: 78 | D3: =VLOOKUP(B3,Lookups!A:B,2) -> 15426.48223 | E3: =VLOOKUP(B3,Lookups!A:C,3) -> 1737.016974 | G3: =VLOOKUP(B3,Lookups!A:D,4) -> 200823.1136 | H3: =VLOOKUP(B3,Lookups!A:E,5) -> 155529.6557 | J3: =VLOOKUP(A3,Trends!$A$3:$H$94,IF(ExFlg=0,4,2))+Sens -> 1.054 | K3: 1 | L3: =VLOOKUP(A3,Trends!$A$3:$H$94,IF(ExFlg=0,5,3))+Sens -> 1.053 | M3: 1 | N3: =VLOOKUP(A3,Trends!$A$3:$H$94,6)+Sens -> 1.046 | O3: 1 | Q3: =IF(B3<=120,VLOOKUP(B3,Lookups!$A$3:$I$103,8,FALSE),"") -> 0.01692 | R3: =VLOOKUP(A3,Trends!$A$3:$H$94,7)+Sens -> 1.045 | S3: 1 | T3: =IF(B3<=120,VLOOKUP(B3,Lookups!$A$3:$I$103,9,FALSE),"") -> 0.02772 | U3: =VLOOKUP(A3,Trends!$A$3:$H$94,8)+Sens -> 1.045 | V3: 1 | X3: =IF(B3<=120,IF(B3<65,D3*K3,D3*M3),"") -> 15426.48223 | Y3: =IF(B3<=120,E3*O3,"") -> 1737.016974 | Z3: =IF(B3<=120,X3+Y3,"") -> 17163.4992 | AB3: =IF(B3<=120,G3*Q3*S3,"") -> 3397.927082 | AC3: =IF(B3<=120,H3*T3*V3,"") -> 4311.282055 | AD3: =IF(B3<=120,AB3+AC3,"") -> 7709.209137 | AF3: =IF(B3<=120,Z3+AD3, "") -> 24872.70834 | AH3: =IF($B3<121,VLOOKUP($B3,Lookups!A:F,6)*(1-VLOOKUP($B3,Lookups!$N$3:$P$103,2))^($A3-$A$3),"") -> 0.04112347174 | AI3: =IF($B3<121,VLOOKUP($B3,Lookups!A:G,7)*(1-VLOOKUP($B3,Lookups!$N$3:$P$103,3))^($A3-$A$3),"") -> 0.03431975882 | AJ3: =IF(B3<121,(PCTMALE*AH3+(1-PCTMALE)*AI3),"") -> 0.04112347174 | AK3: 1 | AL3: 1 | AM3: =IF(AJ3="","",ROUND((13/24)+(11/24)*(1/(1+IntRt))*(1-AJ3),6)) -> 0.96629 | AP3: =IF(B3<=120,AF3*AK3*AL3*AM3,"") -> 24034.24934
A4: =1+A3 -> 2021 | B4: =1+B3 -> 79 | D4: =VLOOKUP(B4,Lookups!A:B,2) -> 15456.83927 | E4: =VLOOKUP(B4,Lookups!A:C,3) -> 1737.016974 | G4: =VLOOKUP(B4,Lookups!A:D,4) -> 201599.5324 | H4: =VLOOKUP(B4,Lookups!A:E,5) -> 155914.4569 | J4: =VLOOKUP(A4,Trends!$A$3:$H$94,IF(ExFlg=0,4,2))+Sens -> 1.051 | K4: =K3*J3 -> 1.054 | L4: =VLOOKUP(A4,Trends!$A$3:$H$94,IF(ExFlg=0,5,3))+Sens -> 1.051 | M4: =M3*L3 -> 1.053 | N4: =VLOOKUP(A4,Trends!$A$3:$H$94,6)+Sens -> 1.049 | O4: =O3*N3 -> 1.046 | Q4: =IF(B4<=120,VLOOKUP(B4,Lookups!$A$3:$I$103,8,FALSE),"") -> 0.02004 | R4: =VLOOKUP(A4,Trends!$A$3:$H$94,7)+Sens -> 1.045 | S4: =S3*R3 -> 1.045 | T4: =IF(B4<=120,VLOOKUP(B4,Lookups!$A$3:$I$103,9,FALSE),"") -> 0.03044 | U4: =VLOOKUP(A4,Trends!$A$3:$H$94,8)+Sens -> 1.045 | V4: =V3*U3 -> 1.045 | X4: =IF(B4<=120,IF(B4<65,D4*K4,D4*M4),"") -> 16276.05175 | Y4: =IF(B4<=120,E4*O4,"") -> 1816.919755 | Z4: =IF(B4<=120,X4+Y4,"") -> 18092.97151 | AB4: =IF(B4<=120,G4*Q4*S4,"") -> 4221.857088 | AC4: =IF(B4<=120,H4*T4*V4,"") -> 4959.607691 | AD4: =IF(B4<=120,AB4+AC4,"") -> 9181.464779 | AF4: =IF(B4<=120,Z4+AD4, "") -> 27274.43629 | AH4: =IF($B4<121,VLOOKUP($B4,Lookups!A:F,6)*(1-VLOOKUP($B4,Lookups!$N$3:$P$103,2))^($A4-$A$3),"") -> 0.0451984895 | AI4: =IF($B4<121,VLOOKUP($B4,Lookups!A:G,7)*(1-VLOOKUP($B4,Lookups!$N$3:$P$103,3))^($A4-$A$3),"") -> 0.03750669328 | AJ4: =IF(B4<121,(PCTMALE*AH4+(1-PCTMALE)*AI4),"") -> 0.0451984895 | AK4: =IF(B4<121,AK3*(1-AJ3),"") -> 0.9588765283 | AL4: =IF(B4<121,AL3/(1+IntRt),"") -> 0.9661835749 | AM4: =IF(AJ4="","",ROUND((13/24)+(11/24)*(1/(1+IntRt))*(1-AJ4),6)) -> 0.964485 | AP4: =IF(B4<=120,AF4*AK4*AL4*AM4,"") -> 24371.014
A5: 2022 | B5: 80 | D5: =VLOOKUP(B5,Lookups!A:B,2) -> 15487.33064 | E5: =VLOOKUP(B5,Lookups!A:C,3) -> 1737.016974 | G5: =VLOOKUP(B5,Lookups!A:D,4) -> 202375.9513 | H5: =VLOOKUP(B5,Lookups!A:E,5) -> 156299.2581 | J5: =VLOOKUP(A5,Trends!$A$3:$H$94,IF(ExFlg=0,4,2))+Sens -> 1.051 | K5: =K4*J4 -> 1.107754 | L5: =VLOOKUP(A5,Trends!$A$3:$H$94,IF(ExFlg=0,5,3))+Sens -> 1.051 | M5: =M4*L4 -> 1.106703 | N5: =VLOOKUP(A5,Trends!$A$3:$H$94,6)+Sens -> 1.059 | O5: =O4*N4 -> 1.097254 | Q5: =IF(B5<=120,VLOOKUP(B5,Lookups!$A$3:$I$103,8,FALSE),"") -> 0.02316 | R5: =VLOOKUP(A5,Trends!$A$3:$H$94,7)+Sens -> 1.045 | S5: =S4*R4 -> 1.092025 | T5: =IF(B5<=120,VLOOKUP(B5,Lookups!$A$3:$I$103,9,FALSE),"") -> 0.03316 | U5: =VLOOKUP(A5,Trends!$A$3:$H$94,8)+Sens -> 1.045 | V5: =V4*U4 -> 1.092025 | X5: 17139.87528 | Y5: 1905.948823 | Z5: 19045.8241 | AB5: 5118.350694 | AC5: 5659.838243 | AD5: 10778.18894 | AF5: 29824.01304 | AH5: =IF($B5<121,VLOOKUP($B5,Lookups!A:F,6)*(1-VLOOKUP($B5,Lookups!$N$3:$P$103,2))^($A5-$A$3),"") -> 0.04963008696 | AI5: =IF($B5<121,VLOOKUP($B5,Lookups!A:G,7)*(1-VLOOKUP($B5,Lookups!$N$3:$P$103,3))^($A5-$A$3),"") -> 0.04104956067 | AJ5: 0.04963008696 | AK5: =IF(B5<121,AK4*(1-AJ4),"") -> 0.9155367576 | AL5: 0.9335107004 | AM5: 0.962523 | AP5: 24534.22152
A6: 2023 | B6: 81 | D6: =VLOOKUP(B6,Lookups!A:B,2) -> 15517.822 | E6: =VLOOKUP(B6,Lookups!A:C,3) -> 1737.016974 | G6: =VLOOKUP(B6,Lookups!A:D,4) -> 203152.3701 | H6: =VLOOKUP(B6,Lookups!A:E,5) -> 156684.0593 | J6: =VLOOKUP(A6,Trends!$A$3:$H$94,IF(ExFlg=0,4,2))+Sens -> 1.051 | K6: =K5*J5 -> 1.164249454 | L6: =VLOOKUP(A6,Trends!$A$3:$H$94,IF(ExFlg=0,5,3))+Sens -> 1.051 | M6: 1.163144853 | N6: =VLOOKUP(A6,Trends!$A$3:$H$94,6)+Sens -> 1.057 | O6: 1.161991986 | Q6: =IF(B6<=120,VLOOKUP(B6,Lookups!$A$3:$I$103,8,FALSE),"") -> 0.02628 | R6: =VLOOKUP(A6,Trends!$A$3:$H$94,7)+Sens -> 1.045 | S6: 1.141166125 | T6: =IF(B6<=120,VLOOKUP(B6,Lookups!$A$3:$I$103,9,FALSE),"") -> 0.03588 | U6: =VLOOKUP(A6,Trends!$A$3:$H$94,8)+Sens -> 1.045 | V6: 1.141166125 | X6: 18049.47479 | Y6: 2018.399803 | Z6: 20067.8746 | AB6: 6092.508247 | AC6: 6415.435165 | AD6: 12507.94341 | AF6: 32575.81801 | AH6: =IF($B6<121,VLOOKUP($B6,Lookups!A:F,6)*(1-VLOOKUP($B6,Lookups!$N$3:$P$103,2))^($A6-$A$3),"") -> 0.05442111817 | AI6: =IF($B6<121,VLOOKUP($B6,Lookups!A:G,7)*(1-VLOOKUP($B6,Lookups!$N$3:$P$103,3))^($A6-$A$3),"") -> 0.04499859883 | AJ6: 0.05442111817 | AK6: 0.8700985887 | AL6: 0.9019427057 | AM6: 0.960401 | AP6: 24552.47901
A7: 2024 | B7: 82 | D7: =VLOOKUP(B7,Lookups!A:B,2) -> 15548.44769 | E7: =VLOOKUP(B7,Lookups!A:C,3) -> 1737.016974 | G7: =VLOOKUP(B7,Lookups!A:D,4) -> 203928.789 | H7: =VLOOKUP(B7,Lookups!A:E,5) -> 157068.8605 | J7: =VLOOKUP(A7,Trends!$A$3:$H$94,IF(ExFlg=0,4,2))+Sens -> 1.051 | K7: 1.223626176 | L7: =VLOOKUP(A7,Trends!$A$3:$H$94,IF(ExFlg=0,5,3))+Sens -> 1.051 | M7: 1.222465241 | N7: =VLOOKUP(A7,Trends!$A$3:$H$94,6)+Sens -> 1.05 | O7: =O6*N6 -> 1.228225529 | Q7: =IF(B7<=120,VLOOKUP(B7,Lookups!$A$3:$I$103,8,FALSE),"") -> 0.0294 | R7: =VLOOKUP(A7,Trends!$A$3:$H$94,7)+Sens -> 1.045 | S7: 1.192518601 | T7: =IF(B7<=120,VLOOKUP(B7,Lookups!$A$3:$I$103,9,FALSE),"") -> 0.0386 | U7: =VLOOKUP(A7,Trends!$A$3:$H$94,8)+Sens -> 1.045 | V7: 1.192518601 | X7: 19007.43685 | Y7: 2133.448592 | Z7: 21140.88544 | AB7: 7149.752898 | AC7: 7230.070958 | AD7: 14379.82386 | AF7: 35520.7093 | AH7: =IF($B7<121,VLOOKUP($B7,Lookups!A:F,6)*(1-VLOOKUP($B7,Lookups!$N$3:$P$103,2))^($A7-$A$3),"") -> 0.05977419866 | AI7: =IF($B7<121,VLOOKUP($B7,Lookups!A:G,7)*(1-VLOOKUP($B7,Lookups!$N$3:$P$103,3))^($A7-$A$3),"") -> 0.04940688463 | AJ7: 0.05977419866 | AK7: 0.8227468506 | AL7: 0.8714422277 | AM7: 0.958031 | AP7: 24398.66258
A8: 2025 | B8: 83 | D8: =VLOOKUP(B8,Lookups!A:B,2) -> 15415.19908 | E8: =VLOOKUP(B8,Lookups!A:C,3) -> 1737.016974 | G8: =VLOOKUP(B8,Lookups!A:D,4) -> 202169.9626 | H8: =VLOOKUP(B8,Lookups!A:E,5) -> 156031.0633 | J8: =VLOOKUP(A8,Trends!$A$3:$H$94,IF(ExFlg=0,4,2))+Sens -> 1.051 | K8: 1.286031111 | L8: =VLOOKUP(A8,Trends!$A$3:$H$94,IF(ExFlg=0,5,3))+Sens -> 1.051 | M8: 1.284810968 | N8: =VLOOKUP(A8,Trends!$A$3:$H$94,6)+Sens -> 1.054 | O8: 1.289636806 | Q8: =IF(B8<=120,VLOOKUP(B8,Lookups!$A$3:$I$103,8,FALSE),"") -> 0.03498 | R8: =VLOOKUP(A8,Trends!$A$3:$H$94,7)+Sens -> 1.045 | S8: 1.246181938 | T8: =IF(B8<=120,VLOOKUP(B8,Lookups!$A$3:$I$103,9,FALSE),"") -> 0.04324 | U8: =VLOOKUP(A8,Trends!$A$3:$H$94,8)+Sens -> 1.045 | V8: 1.246181938 | X8: 19805.61685 | Y8: 2240.121022 | Z8: 22045.73787 | AB8: 8812.88064 | AC8: 8407.719333 | AD8: 17220.59997 | AF8: 39266.33784 | AH8: =IF($B8<121,VLOOKUP($B8,Lookups!A:F,6)*(1-VLOOKUP($B8,Lookups!$N$3:$P$103,2))^($A8-$A$3),"") -> 0.06553334014 | AI8: =IF($B8<121,VLOOKUP($B8,Lookups!A:G,7)*(1-VLOOKUP($B8,Lookups!$N$3:$P$103,3))^($A8-$A$3),"") -> 0.05433789606 | AJ8: 0.06553334014 | AK8: 0.7735678169 | AL8: 0.8419731669 | AM8: 0.95548 | AP8: 24436.47982
A9: 2026 | B9: 84 | D9: =VLOOKUP(B9,Lookups!A:B,2) -> 15283.02505 | E9: =VLOOKUP(B9,Lookups!A:C,3) -> 1737.016974 | G9: =VLOOKUP(B9,Lookups!A:D,4) -> 200411.1362 | H9: =VLOOKUP(B9,Lookups!A:E,5) -> 154993.2661 | J9: =VLOOKUP(A9,Trends!$A$3:$H$94,IF(ExFlg=0,4,2))+Sens -> 1.051 | K9: 1.351618698 | L9: =VLOOKUP(A9,Trends!$A$3:$H$94,IF(ExFlg=0,5,3))+Sens -> 1.051 | M9: 1.350336327 | N9: =VLOOKUP(A9,Trends!$A$3:$H$94,6)+Sens -> 1.059 | O9: 1.359277193 | Q9: =IF(B9<=120,VLOOKUP(B9,Lookups!$A$3:$I$103,8,FALSE),"") -> 0.04056 | R9: =VLOOKUP(A9,Trends!$A$3:$H$94,7)+Sens -> 1.045 | S9: 1.302260125 | T9: =IF(B9<=120,VLOOKUP(B9,Lookups!$A$3:$I$103,9,FALSE),"") -> 0.04788 | U9: =VLOOKUP(A9,Trends!$A$3:$H$94,8)+Sens -> 1.045 | V9: 1.302260125 | X9: 20637.22391 | Y9: 2361.087557 | Z9: 22998.31147 | AB9: 10585.65021 | AC9: 9664.173416 | AD9: 20249.82363 | AF9: 43248.1351 | AH9: =IF($B9<121,VLOOKUP($B9,Lookups!A:F,6)*(1-VLOOKUP($B9,Lookups!$N$3:$P$103,2))^($A9-$A$3),"") -> 0.07173008279 | AI9: =IF($B9<121,VLOOKUP($B9,Lookups!A:G,7)*(1-VLOOKUP($B9,Lookups!$N$3:$P$103,3))^($A9-$A$3),"") -> 0.05984437574 | AJ9: 0.07173008279 | AK9: 0.722873334 | AL9: 0.8135006443 | AM9: 0.952736 | AP9: 24230.37114
A10: 2027 | B10: 85 | D10: =VLOOKUP(B10,Lookups!A:B,2) -> 15152.05993 | E10: =VLOOKUP(B10,Lookups!A:C,3) -> 1737.016974 | G10: =VLOOKUP(B10,Lookups!A:D,4) -> 198652.3098 | H10: =VLOOKUP(B10,Lookups!A:E,5) -> 153955.4689 | J10: =VLOOKUP(A10,Trends!$A$3:$H$94,IF(ExFlg=0,4,2))+Sens -> 1.051 | K10: 1.420551251 | L10: =VLOOKUP(A10,Trends!$A$3:$H$94,IF(ExFlg=0,5,3))+Sens -> 1.051 | M10: 1.41920348 | N10: =VLOOKUP(A10,Trends!$A$3:$H$94,6)+Sens -> 1.056 | O10: 1.439474548 | Q10: =IF(B10<=120,VLOOKUP(B10,Lookups!$A$3:$I$103,8,FALSE),"") -> 0.04614 | R10: =VLOOKUP(A10,Trends!$A$3:$H$94,7)+Sens -> 1.045 | S10: 1.36086183 | T10: =IF(B10<=120,VLOOKUP(B10,Lookups!$A$3:$I$103,9,FALSE),"") -> 0.05252 | U10: =VLOOKUP(A10,Trends!$A$3:$H$94,8)+Sens -> 1.045 | V10: 1.36086183 | X10: 21503.85618 | Y10: 2500.391723 | Z10: 24004.2479 | AB10: 12473.41128 | AC10: 11003.5766 | AD10: 23476.98789 | AF10: 47481.23579 | AH10: =IF($B10<121,VLOOKUP($B10,Lookups!A:F,6)*(1-VLOOKUP($B10,Lookups!$N$3:$P$103,2))^($A10-$A$3),"") -> 0.07840305222 | AI10: =IF($B10<121,VLOOKUP($B10,Lookups!A:G,7)*(1-VLOOKUP($B10,Lookups!$N$3:$P$103,3))^($A10-$A$3),"") -> 0.06594420662 | AJ10: 0.07840305222 | AK10: 0.6710215699 | AL10: 0.7859909607 | AM10: 0.949781 | AP10: 23784.80107
A11: 2028 | B11: 86 | D11: =VLOOKUP(B11,Lookups!A:B,2) -> 15022.1694 | E11: =VLOOKUP(B11,Lookups!A:C,3) -> 1737.016974 | G11: =VLOOKUP(B11,Lookups!A:D,4) -> 196893.4835 | H11: =VLOOKUP(B11,Lookups!A:E,5) -> 152917.6716 | J11: =VLOOKUP(A11,Trends!$A$3:$H$94,IF(ExFlg=0,4,2))+Sens -> 1.051 | K11: 1.492999365 | L11: =VLOOKUP(A11,Trends!$A$3:$H$94,IF(ExFlg=0,5,3))+Sens -> 1.051 | M11: 1.491582857 | N11: =VLOOKUP(A11,Trends!$A$3:$H$94,6)+Sens -> 1.056 | O11: 1.520085122 | Q11: =IF(B11<=120,VLOOKUP(B11,Lookups!$A$3:$I$103,8,FALSE),"") -> 0.05172 | R11: =VLOOKUP(A11,Trends!$A$3:$H$94,7)+Sens -> 1.045 | S11: 1.422100613 | T11: =IF(B11<=120,VLOOKUP(B11,Lookups!$A$3:$I$103,9,FALSE),"") -> 0.05716 | U11: =VLOOKUP(A11,Trends!$A$3:$H$94,8)+Sens -> 1.045 | V11: 1.422100613 | X11: 22406.81035 | Y11: 2640.413659 | Z11: 25047.22401 | AB11: 14481.7212 | AC11: 12430.26022 | AD11: 26911.98143 | AF11: 51959.20543 | AH11: =IF($B11<121,VLOOKUP($B11,Lookups!A:F,6)*(1-VLOOKUP($B11,Lookups!$N$3:$P$103,2))^($A11-$A$3),"") -> 0.08558573566 | AI11: =IF($B11<121,VLOOKUP($B11,Lookups!A:G,7)*(1-VLOOKUP($B11,Lookups!$N$3:$P$103,3))^($A11-$A$3),"") -> 0.07261532791 | AJ11: 0.08558573566 | AK11: 0.6184114307 | AL11: 0.7594115562 | AM11: 0.946601 | AP11: 23098.52086
A12: 2029 | B12: 87 | D12: =VLOOKUP(B12,Lookups!A:B,2) -> 14893.48777 | E12: =VLOOKUP(B12,Lookups!A:C,3) -> 1737.016974 | G12: =VLOOKUP(B12,Lookups!A:D,4) -> 195134.6571 | H12: =VLOOKUP(B12,Lookups!A:E,5) -> 151879.8744 | J12: =VLOOKUP(A12,Trends!$A$3:$H$94,IF(ExFlg=0,4,2))+Sens -> 1.051 | K12: 1.569142333 | L12: =VLOOKUP(A12,Trends!$A$3:$H$94,IF(ExFlg=0,5,3))+Sens -> 1.051 | M12: 1.567653583 | N12: =VLOOKUP(A12,Trends!$A$3:$H$94,6)+Sens -> 1.053 | O12: 1.605209889 | Q12: =IF(B12<=120,VLOOKUP(B12,Lookups!$A$3:$I$103,8,FALSE),"") -> 0.0573 | R12: =VLOOKUP(A12,Trends!$A$3:$H$94,7)+Sens -> 1.045 | S12: 1.48609514 | T12: =IF(B12<=120,VLOOKUP(B12,Lookups!$A$3:$I$103,9,FALSE),"") -> 0.0618 | U12: =VLOOKUP(A12,Trends!$A$3:$H$94,8)+Sens -> 1.045 | V12: 1.48609514 | X12: 23347.82947 | Y12: 2788.276824 | Z12: 26136.10629 | AB12: 16616.35054 | AC12: 13948.7509 | AD12: 30565.10143 | AF12: 56701.20772 | AH12: =IF($B12<121,VLOOKUP($B12,Lookups!A:F,6)*(1-VLOOKUP($B12,Lookups!$N$3:$P$103,2))^($A12-$A$3),"") -> 0.09607831404 | AI12: =IF($B12<121,VLOOKUP($B12,Lookups!A:G,7)*(1-VLOOKUP($B12,Lookups!$N$3:$P$103,3))^($A12-$A$3),"") -> 0.07978233395 | AJ12: 0.09607831404 | AK12: 0.5654842335 | AL12: 0.7337309722 | AM12: 0.941954 | AP12: 22160.48988
A13: 2030 | B13: 88 | D13: =VLOOKUP(B13,Lookups!A:B,2) -> 14765.88073 | E13: =VLOOKUP(B13,Lookups!A:C,3) -> 1737.016974 | G13: =VLOOKUP(B13,Lookups!A:D,4) -> 190650.442 | H13: =VLOOKUP(B13,Lookups!A:E,5) -> 147658.7217 | J13: =VLOOKUP(A13,Trends!$A$3:$H$94,IF(ExFlg=0,4,2))+Sens -> 1.051 | K13: 1.649168592 | L13: =VLOOKUP(A13,Trends!$A$3:$H$94,IF(ExFlg=0,5,3))+Sens -> 1.051 | M13: 1.647603916 | N13: =VLOOKUP(A13,Trends!$A$3:$H$94,6)+Sens -> 1.051 | O13: 1.690286013 | Q13: =IF(B13<=120,VLOOKUP(B13,Lookups!$A$3:$I$103,8,FALSE),"") -> 0.06718 | R13: =VLOOKUP(A13,Trends!$A$3:$H$94,7)+Sens -> 1.045 | S13: 1.552969422 | T13: =IF(B13<=120,VLOOKUP(B13,Lookups!$A$3:$I$103,9,FALSE),"") -> 0.06622 | U13: =VLOOKUP(A13,Trends!$A$3:$H$94,8)+Sens -> 1.045 | V13: 1.552969422 | X13: 24328.32291 | Y13: 2936.055496 | Z13: 27264.37841 | AB13: 19890.27193 | AC13: 15184.87374 | AD13: 35075.14567 | AF13: 62339.52407 | AH13: =IF($B13<121,VLOOKUP($B13,Lookups!A:F,6)*(1-VLOOKUP($B13,Lookups!$N$3:$P$103,2))^($A13-$A$3),"") -> 0.1078671677 | AI13: =IF($B13<121,VLOOKUP($B13,Lookups!A:G,7)*(1-VLOOKUP($B13,Lookups!$N$3:$P$103,3))^($A13-$A$3),"") -> 0.0873106119 | AJ13: 0.1078671677 | AK13: 0.5111534617 | AL13: 0.7089188137 | AM13: 0.936734 | AP13: 21160.58035
A14: 2031 | B14: 89 | D14: =VLOOKUP(B14,Lookups!A:B,2) -> 14639.34828 | E14: =VLOOKUP(B14,Lookups!A:C,3) -> 1737.016974 | G14: =VLOOKUP(B14,Lookups!A:D,4) -> 186166.227 | H14: =VLOOKUP(B14,Lookups!A:E,5) -> 143437.5689 | J14: =VLOOKUP(A14,Trends!$A$3:$H$94,IF(ExFlg=0,4,2))+Sens -> 1.051 | K14: 1.73327619 | L14: =VLOOKUP(A14,Trends!$A$3:$H$94,IF(ExFlg=0,5,3))+Sens -> 1.052 | M14: 1.731631715 | N14: =VLOOKUP(A14,Trends!$A$3:$H$94,6)+Sens -> 1.051 | O14: 1.7764906 | Q14: =IF(B14<=120,VLOOKUP(B14,Lookups!$A$3:$I$103,8,FALSE),"") -> 0.07706 | R14: =VLOOKUP(A14,Trends!$A$3:$H$94,7)+Sens -> 1.045 | S14: 1.622853046 | T14: =IF(B14<=120,VLOOKUP(B14,Lookups!$A$3:$I$103,9,FALSE),"") -> 0.07064 | U14: =VLOOKUP(A14,Trends!$A$3:$H$94,8)+Sens -> 1.045 | V14: 1.622853046 | X14: 25349.95977 | Y14: 3085.794326 | Z14: 28435.75409 | AB14: 23281.40022 | AC14: 16443.44467 | AD14: 39724.8449 | AF14: 68160.59899 | AH14: =IF($B14<121,VLOOKUP($B14,Lookups!A:F,6)*(1-VLOOKUP($B14,Lookups!$N$3:$P$103,2))^($A14-$A$3),"") -> 0.1204893036 | AI14: =IF($B14<121,VLOOKUP($B14,Lookups!A:G,7)*(1-VLOOKUP($B14,Lookups!$N$3:$P$103,3))^($A14-$A$3),"") -> 0.09501512076 | AJ14: 0.1204893036 | AK14: 0.4560167855 | AL14: 0.6849457137 | AM14: 0.931144 | AP14: 19823.81466
A15: 2032 | B15: 90 | D15: =VLOOKUP(B15,Lookups!A:B,2) -> 14639.34828 | E15: =VLOOKUP(B15,Lookups!A:C,3) -> 1737.016974 | G15: =VLOOKUP(B15,Lookups!A:D,4) -> 181682.012 | H15: =VLOOKUP(B15,Lookups!A:E,5) -> 139216.4162 | J15: =VLOOKUP(A15,Trends!$A$3:$H$94,IF(ExFlg=0,4,2))+Sens -> 1.051 | K15: 1.821673276 | L15: =VLOOKUP(A15,Trends!$A$3:$H$94,IF(ExFlg=0,5,3))+Sens -> 1.052 | M15: 1.821676565 | N15: =VLOOKUP(A15,Trends!$A$3:$H$94,6)+Sens -> 1.051 | O15: 1.86709162 | Q15: =IF(B15<=120,VLOOKUP(B15,Lookups!$A$3:$I$103,8,FALSE),"") -> 0.08694 | R15: =VLOOKUP(A15,Trends!$A$3:$H$94,7)+Sens -> 1.045 | S15: 1.695881433 | T15: =IF(B15<=120,VLOOKUP(B15,Lookups!$A$3:$I$103,9,FALSE),"") -> 0.07506 | U15: =VLOOKUP(A15,Trends!$A$3:$H$94,8)+Sens -> 1.045 | V15: 1.695881433 | X15: 26668.15767 | Y15: 3243.169837 | Z15: 29911.32751 | AB15: 26787.18345 | AC15: 17721.25582 | AD15: 44508.43928 | AF15: 74419.76679 | AH15: =IF($B15<121,VLOOKUP($B15,Lookups!A:F,6)*(1-VLOOKUP($B15,Lookups!$N$3:$P$103,2))^($A15-$A$3),"") -> 0.1344242369 | AI15: =IF($B15<121,VLOOKUP($B15,Lookups!A:G,7)*(1-VLOOKUP($B15,Lookups!$N$3:$P$103,3))^($A15-$A$3),"") -> 0.1060663105 | AJ15: 0.1344242369 | AK15: 0.4010716406 | AL15: 0.6617832983 | AM15: 0.924973 | AP15: 18270.69709
A16: 2033 | B16: 91 | D16: =VLOOKUP(B16,Lookups!A:B,2) -> 14639.34828 | E16: =VLOOKUP(B16,Lookups!A:C,3) -> 1737.016974 | G16: =VLOOKUP(B16,Lookups!A:D,4) -> 177197.797 | H16: =VLOOKUP(B16,Lookups!A:E,5) -> 134995.2634 | J16: =VLOOKUP(A16,Trends!$A$3:$H$94,IF(ExFlg=0,4,2))+Sens -> 1.051 | K16: 1.914578613 | L16: =VLOOKUP(A16,Trends!$A$3:$H$94,IF(ExFlg=0,5,3))+Sens -> 1.052 | M16: 1.916403746 | N16: =VLOOKUP(A16,Trends!$A$3:$H$94,6)+Sens -> 1.051 | O16: 1.962313293 | Q16: =IF(B16<=120,VLOOKUP(B16,Lookups!$A$3:$I$103,8,FALSE),"") -> 0.09682 | R16: =VLOOKUP(A16,Trends!$A$3:$H$94,7)+Sens -> 1.045 | S16: 1.772196097 | T16: =IF(B16<=120,VLOOKUP(B16,Lookups!$A$3:$I$103,9,FALSE),"") -> 0.07948 | U16: =VLOOKUP(A16,Trends!$A$3:$H$94,8)+Sens -> 1.045 | V16: 1.772196097 | X16: 28054.90187 | Y16: 3408.571498 | Z16: 31463.47337 | AB16: 30404.31143 | AC16: 19014.64252 | AD16: 49418.95395 | AF16: 80882.42732 | AH16: =IF($B16<121,VLOOKUP($B16,Lookups!A:F,6)*(1-VLOOKUP($B16,Lookups!$N$3:$P$103,2))^($A16-$A$3),"") -> 0.1496716552 | AI16: =IF($B16<121,VLOOKUP($B16,Lookups!A:G,7)*(1-VLOOKUP($B16,Lookups!$N$3:$P$103,3))^($A16-$A$3),"") -> 0.1177260777 | AJ16: 0.1496716552 | AK16: 0.3471578914 | AL16: 0.6394041529 | AM16: 0.918221 | AP16: 16485.56711
A17: 2034 | B17: 92 | D17: =VLOOKUP(B17,Lookups!A:B,2) -> 14639.34828 | E17: =VLOOKUP(B17,Lookups!A:C,3) -> 1737.016974 | G17: =VLOOKUP(B17,Lookups!A:D,4) -> 172713.582 | H17: =VLOOKUP(B17,Lookups!A:E,5) -> 130774.1107 | J17: =VLOOKUP(A17,Trends!$A$3:$H$94,IF(ExFlg=0,4,2))+Sens -> 1.051 | K17: 2.012222122 | L17: =VLOOKUP(A17,Trends!$A$3:$H$94,IF(ExFlg=0,5,3))+Sens -> 1.052 | M17: 2.016056741 | N17: =VLOOKUP(A17,Trends!$A$3:$H$94,6)+Sens -> 1.051 | O17: 2.062391271 | Q17: =IF(B17<=120,VLOOKUP(B17,Lookups!$A$3:$I$103,8,FALSE),"") -> 0.1067 | R17: =VLOOKUP(A17,Trends!$A$3:$H$94,7)+Sens -> 1.045 | S17: 1.851944922 | T17: =IF(B17<=120,VLOOKUP(B17,Lookups!$A$3:$I$103,9,FALSE),"") -> 0.0839 | U17: =VLOOKUP(A17,Trends!$A$3:$H$94,8)+Sens -> 1.045 | V17: 1.851944922 | X17: 29513.75677 | Y17: 3582.408645 | Z17: 33096.16542 | AB17: 34128.63958 | AC17: 20319.44317 | AD17: 54448.08275 | AF17: 87544.24816 | AH17: =IF($B17<121,VLOOKUP($B17,Lookups!A:F,6)*(1-VLOOKUP($B17,Lookups!$N$3:$P$103,2))^($A17-$A$3),"") -> 0.1656272344 | AI17: =IF($B17<121,VLOOKUP($B17,Lookups!A:G,7)*(1-VLOOKUP($B17,Lookups!$N$3:$P$103,3))^($A17-$A$3),"") -> 0.1298776942 | AJ17: 0.1656272344 | AK17: 0.2951981952 | AL17: 0.6177817903 | AM17: 0.911155 | AP17: 14546.84063
A18: 2035 | B18: 93 | D18: =VLOOKUP(B18,Lookups!A:B,2) -> 14639.34828 | E18: =VLOOKUP(B18,Lookups!A:C,3) -> 1737.016974 | G18: =VLOOKUP(B18,Lookups!A:D,4) -> 167484.6387 | H18: =VLOOKUP(B18,Lookups!A:E,5) -> 128535.2672 | J18: =VLOOKUP(A18,Trends!$A$3:$H$94,IF(ExFlg=0,4,2))+Sens -> 1.051 | K18: 2.11484545 | L18: =VLOOKUP(A18,Trends!$A$3:$H$94,IF(ExFlg=0,5,3))+Sens -> 1.052 | M18: 2.120891691 | N18: =VLOOKUP(A18,Trends!$A$3:$H$94,6)+Sens -> 1.051 | O18: 2.167573226 | Q18: =IF(B18<=120,VLOOKUP(B18,Lookups!$A$3:$I$103,8,FALSE),"") -> 0.11538 | R18: =VLOOKUP(A18,Trends!$A$3:$H$94,7)+Sens -> 1.045 | S18: 1.935282443 | T18: =IF(B18<=120,VLOOKUP(B18,Lookups!$A$3:$I$103,9,FALSE),"") -> 0.08394 | U18: =VLOOKUP(A18,Trends!$A$3:$H$94,8)+Sens -> 1.045 | V18: 1.935282443 | X18: 31048.47212 | Y18: 3765.111486 | Z18: 34813.58361 | AB18: 37398.12871 | AC18: 20880.24674 | AD18: 58278.37545 | AF18: 93091.95906 | AH18: =IF($B18<121,VLOOKUP($B18,Lookups!A:F,6)*(1-VLOOKUP($B18,Lookups!$N$3:$P$103,2))^($A18-$A$3),"") -> 0.1827300162 | AI18: =IF($B18<121,VLOOKUP($B18,Lookups!A:G,7)*(1-VLOOKUP($B18,Lookups!$N$3:$P$103,3))^($A18-$A$3),"") -> 0.1424210648 | AJ18: 0.1827300162 | AK18: 0.2463053345 | AL18: 0.5968906186 | AM18: 0.903582 | AP18: 12366.54299
A19: 2036 | B19: 94 | D19: =VLOOKUP(B19,Lookups!A:B,2) -> 14639.34828 | E19: =VLOOKUP(B19,Lookups!A:C,3) -> 1737.016974 | G19: =VLOOKUP(B19,Lookups!A:D,4) -> 162255.6954 | H19: =VLOOKUP(B19,Lookups!A:E,5) -> 126296.4238 | J19: =VLOOKUP(A19,Trends!$A$3:$H$94,IF(ExFlg=0,4,2))+Sens -> 1.051 | K19: 2.222702568 | L19: =VLOOKUP(A19,Trends!$A$3:$H$94,IF(ExFlg=0,5,3))+Sens -> 1.052 | M19: 2.231178059 | N19: =VLOOKUP(A19,Trends!$A$3:$H$94,6)+Sens -> 1.051 | O19: 2.27811946 | Q19: =IF(B19<=120,VLOOKUP(B19,Lookups!$A$3:$I$103,8,FALSE),"") -> 0.12406 | R19: =VLOOKUP(A19,Trends!$A$3:$H$94,7)+Sens -> 1.045 | S19: 2.022370153 | T19: =IF(B19<=120,VLOOKUP(B19,Lookups!$A$3:$I$103,9,FALSE),"") -> 0.08398 | U19: =VLOOKUP(A19,Trends!$A$3:$H$94,8)+Sens -> 1.045 | V19: 2.022370153 | X19: 32662.99267 | Y19: 3957.132172 | Z19: 36620.12484 | AB19: 40709.18182 | AC19: 21450.01354 | AD19: 62159.19536 | AF19: 98779.32021 | AH19: =IF($B19<121,VLOOKUP($B19,Lookups!A:F,6)*(1-VLOOKUP($B19,Lookups!$N$3:$P$103,2))^($A19-$A$3),"") -> 0.2009601213 | AI19: =IF($B19<121,VLOOKUP($B19,Lookups!A:G,7)*(1-VLOOKUP($B19,Lookups!$N$3:$P$103,3))^($A19-$A$3),"") -> 0.1552677592 | AJ19: 0.2009601213 | AK19: 0.2012979567 | AL19: 0.5767059117 | AM19: 0.895509 | AP19: 10269.03793
A20: 2037 | B20: 95 | D20: =VLOOKUP(B20,Lookups!A:B,2) -> 14639.34828 | E20: =VLOOKUP(B20,Lookups!A:C,3) -> 1737.016974 | G20: =VLOOKUP(B20,Lookups!A:D,4) -> 157026.7521 | H20: =VLOOKUP(B20,Lookups!A:E,5) -> 124057.5803 | J20: =VLOOKUP(A20,Trends!$A$3:$H$94,IF(ExFlg=0,4,2))+Sens -> 1.051 | K20: 2.336060399 | L20: =VLOOKUP(A20,Trends!$A$3:$H$94,IF(ExFlg=0,5,3))+Sens -> 1.052 | M20: 2.347199318 | N20: =VLOOKUP(A20,Trends!$A$3:$H$94,6)+Sens -> 1.051 | O20: 2.394303553 | Q20: =IF(B20<=120,VLOOKUP(B20,Lookups!$A$3:$I$103,8,FALSE),"") -> 0.13274 | R20: =VLOOKUP(A20,Trends!$A$3:$H$94,7)+Sens -> 1.045 | S20: 2.11337681 | T20: =IF(B20<=120,VLOOKUP(B20,Lookups!$A$3:$I$103,9,FALSE),"") -> 0.08402 | U20: =VLOOKUP(A20,Trends!$A$3:$H$94,8)+Sens -> 1.045 | V20: 2.11337681 | X20: 34361.46829 | Y20: 4158.945912 | Z20: 38520.4142 | AB20: 44050.65787 | AC20: 22028.39833 | AD20: 66079.0562 | AF20: 104599.4704 | AH20: =IF($B20<121,VLOOKUP($B20,Lookups!A:F,6)*(1-VLOOKUP($B20,Lookups!$N$3:$P$103,2))^($A20-$A$3),"") -> 0.2203227561 | AI20: =IF($B20<121,VLOOKUP($B20,Lookups!A:G,7)*(1-VLOOKUP($B20,Lookups!$N$3:$P$103,3))^($A20-$A$3),"") -> 0.1683277737 | AJ20: 0.2203227561 | AK20: 0.1608450949 | AL20: 0.5572037794 | AM20: 0.886934 | AP20: 8314.62495
A21: 2038 | B21: 96 | D21: =VLOOKUP(B21,Lookups!A:B,2) -> 14639.34828 | E21: =VLOOKUP(B21,Lookups!A:C,3) -> 1737.016974 | G21: =VLOOKUP(B21,Lookups!A:D,4) -> 151797.8087 | H21: =VLOOKUP(B21,Lookups!A:E,5) -> 121818.7369 | J21: =VLOOKUP(A21,Trends!$A$3:$H$94,IF(ExFlg=0,4,2))+Sens -> 1.051 | K21: 2.45519948 | L21: =VLOOKUP(A21,Trends!$A$3:$H$94,IF(ExFlg=0,5,3))+Sens -> 1.052 | M21: 2.469253683 | N21: =VLOOKUP(A21,Trends!$A$3:$H$94,6)+Sens -> 1.051 | O21: 2.516413034 | Q21: =IF(B21<=120,VLOOKUP(B21,Lookups!$A$3:$I$103,8,FALSE),"") -> 0.14142 | R21: =VLOOKUP(A21,Trends!$A$3:$H$94,7)+Sens -> 1.045 | S21: 2.208478766 | T21: =IF(B21<=120,VLOOKUP(B21,Lookups!$A$3:$I$103,9,FALSE),"") -> 0.08406 | U21: =VLOOKUP(A21,Trends!$A$3:$H$94,8)+Sens -> 1.045 | V21: 2.208478766 | X21: 36148.26464 | Y21: 4371.052154 | Z21: 40519.3168 | AB21: 47409.95721 | AC21: 22615.00592 | AD21: 70024.96314 | AF21: 110544.2799 | AH21: =IF($B21<121,VLOOKUP($B21,Lookups!A:F,6)*(1-VLOOKUP($B21,Lookups!$N$3:$P$103,2))^($A21-$A$3),"") -> 0.2408557065 | AI21: =IF($B21<121,VLOOKUP($B21,Lookups!A:G,7)*(1-VLOOKUP($B21,Lookups!$N$3:$P$103,3))^($A21-$A$3),"") -> 0.1815082836 | AJ21: 0.2408557065 | AK21: 0.1254072603 | AL21: 0.5383611396 | AM21: 0.877842 | AP21: 6551.624748
A22: 2039 | B22: 97 | D22: =VLOOKUP(B22,Lookups!A:B,2) -> 14639.34828 | E22: =VLOOKUP(B22,Lookups!A:C,3) -> 1737.016974 | G22: =VLOOKUP(B22,Lookups!A:D,4) -> 146568.8654 | H22: =VLOOKUP(B22,Lookups!A:E,5) -> 119579.8935 | J22: =VLOOKUP(A22,Trends!$A$3:$H$94,IF(ExFlg=0,4,2))+Sens -> 1.051 | K22: 2.580414653 | L22: =VLOOKUP(A22,Trends!$A$3:$H$94,IF(ExFlg=0,5,3))+Sens -> 1.052 | M22: 2.597654874 | N22: =VLOOKUP(A22,Trends!$A$3:$H$94,6)+Sens -> 1.048 | O22: 2.644750099 | Q22: =IF(B22<=120,VLOOKUP(B22,Lookups!$A$3:$I$103,8,FALSE),"") -> 0.1501 | R22: =VLOOKUP(A22,Trends!$A$3:$H$94,7)+Sens -> 1.045 | S22: 2.307860311 | T22: =IF(B22<=120,VLOOKUP(B22,Lookups!$A$3:$I$103,9,FALSE),"") -> 0.0841 | U22: =VLOOKUP(A22,Trends!$A$3:$H$94,8)+Sens -> 1.045 | V22: 2.307860311 | X22: 38027.97441 | Y22: 4593.975814 | Z22: 42621.95022 | AB22: 50772.89615 | AC22: 23209.38734 | AD22: 73982.28348 | AF22: 116604.2337 | AH22: =IF($B22<121,VLOOKUP($B22,Lookups!A:F,6)*(1-VLOOKUP($B22,Lookups!$N$3:$P$103,2))^($A22-$A$3),"") -> 0.262622097 | AI22: =IF($B22<121,VLOOKUP($B22,Lookups!A:G,7)*(1-VLOOKUP($B22,Lookups!$N$3:$P$103,3))^($A22-$A$3),"") -> 0.1947220445 | AJ22: 0.262622097 | AK22: 0.09520220604 | AL22: 0.5201556904 | AM22: 0.868203 | AP22: 5013.210808
A23: 2040 | B23: 98 | D23: =VLOOKUP(B23,Lookups!A:B,2) -> 14639.34828 | E23: =VLOOKUP(B23,Lookups!A:C,3) -> 1737.016974 | G23: =VLOOKUP(B23,Lookups!A:D,4) -> 146568.8654 | H23: =VLOOKUP(B23,Lookups!A:E,5) -> 119579.8935 | J23: =VLOOKUP(A23,Trends!$A$3:$H$94,IF(ExFlg=0,4,2))+Sens -> 1.051 | K23: 2.7120158 | L23: =VLOOKUP(A23,Trends!$A$3:$H$94,IF(ExFlg=0,5,3))+Sens -> 1.053 | M23: 2.732732928 | N23: =VLOOKUP(A23,Trends!$A$3:$H$94,6)+Sens -> 1.045 | O23: 2.771698104 | Q23: =IF(B23<=120,VLOOKUP(B23,Lookups!$A$3:$I$103,8,FALSE),"") -> 0.1501 | R23: =VLOOKUP(A23,Trends!$A$3:$H$94,7)+Sens -> 1.045 | S23: 2.411714025 | T23: =IF(B23<=120,VLOOKUP(B23,Lookups!$A$3:$I$103,9,FALSE),"") -> 0.0841 | U23: =VLOOKUP(A23,Trends!$A$3:$H$94,8)+Sens -> 1.045 | V23: 2.411714025 | X23: 40005.42907 | Y23: 4814.486653 | Z23: 44819.91573 | AB23: 53057.67648 | AC23: 24253.80977 | AD23: 77311.48624 | AF23: 122131.402 | AH23: =IF($B23<121,VLOOKUP($B23,Lookups!A:F,6)*(1-VLOOKUP($B23,Lookups!$N$3:$P$103,2))^($A23-$A$3),"") -> 0.274476065 | AI23: =IF($B23<121,VLOOKUP($B23,Lookups!A:G,7)*(1-VLOOKUP($B23,Lookups!$N$3:$P$103,3))^($A23-$A$3),"") -> 0.1997013603 | AJ23: 0.274476065 | AK23: 0.07020000305 | AL23: 0.5025658844 | AM23: 0.862953 | AP23: 3718.30166
A24: 2041 | B24: 99 | D24: =VLOOKUP(B24,Lookups!A:B,2) -> 14639.34828 | E24: =VLOOKUP(B24,Lookups!A:C,3) -> 1737.016974 | G24: =VLOOKUP(B24,Lookups!A:D,4) -> 146568.8654 | H24: =VLOOKUP(B24,Lookups!A:E,5) -> 119579.8935 | J24: =VLOOKUP(A24,Trends!$A$3:$H$94,IF(ExFlg=0,4,2))+Sens -> 1.051 | K24: 2.850328606 | L24: =VLOOKUP(A24,Trends!$A$3:$H$94,IF(ExFlg=0,5,3))+Sens -> 1.053 | M24: 2.877567773 | N24: =VLOOKUP(A24,Trends!$A$3:$H$94,6)+Sens -> 1.045 | O24: 2.896424518 | Q24: =IF(B24<=120,VLOOKUP(B24,Lookups!$A$3:$I$103,8,FALSE),"") -> 0.1501 | R24: =VLOOKUP(A24,Trends!$A$3:$H$94,7)+Sens -> 1.045 | S24: 2.520241156 | T24: =IF(B24<=120,VLOOKUP(B24,Lookups!$A$3:$I$103,9,FALSE),"") -> 0.0841 | U24: =VLOOKUP(A24,Trends!$A$3:$H$94,8)+Sens -> 1.045 | V24: 2.520241156 | X24: 42125.71682 | Y24: 5031.138552 | Z24: 47156.85537 | AB24: 55445.27192 | AC24: 25345.2312 | AD24: 80790.50312 | AF24: 127947.3585 | AH24: =IF($B24<121,VLOOKUP($B24,Lookups!A:F,6)*(1-VLOOKUP($B24,Lookups!$N$3:$P$103,2))^($A24-$A$3),"") -> 0.2979079792 | AI24: =IF($B24<121,VLOOKUP($B24,Lookups!A:G,7)*(1-VLOOKUP($B24,Lookups!$N$3:$P$103,3))^($A24-$A$3),"") -> 0.2132015016 | AJ24: 0.2979079792 | AK24: 0.05093178245 | AL24: 0.4855709028 | AM24: 0.852577 | AP24: 2697.779601
A25: 2042 | B25: 100 | D25: =VLOOKUP(B25,Lookups!A:B,2) -> 14639.34828 | E25: =VLOOKUP(B25,Lookups!A:C,3) -> 1737.016974 | G25: =VLOOKUP(B25,Lookups!A:D,4) -> 146568.8654 | H25: =VLOOKUP(B25,Lookups!A:E,5) -> 119579.8935 | J25: =VLOOKUP(A25,Trends!$A$3:$H$94,IF(ExFlg=0,4,2))+Sens -> 1.051 | K25: 2.995695365 | L25: =VLOOKUP(A25,Trends!$A$3:$H$94,IF(ExFlg=0,5,3))+Sens -> 1.053 | M25: 3.030078865 | N25: =VLOOKUP(A25,Trends!$A$3:$H$94,6)+Sens -> 1.045 | O25: 3.026763622 | Q25: =IF(B25<=120,VLOOKUP(B25,Lookups!$A$3:$I$103,8,FALSE),"") -> 0.1501 | R25: =VLOOKUP(A25,Trends!$A$3:$H$94,7)+Sens -> 1.045 | S25: 2.633652008 | T25: =IF(B25<=120,VLOOKUP(B25,Lookups!$A$3:$I$103,9,FALSE),"") -> 0.0841 | U25: =VLOOKUP(A25,Trends!$A$3:$H$94,8)+Sens -> 1.045 | V25: 2.633652008 | X25: 44358.37981 | Y25: 5257.539787 | Z25: 49615.91959 | AB25: 57940.30915 | AC25: 26485.76661 | AD25: 84426.07576 | AF25: 134041.9954 | AH25: =IF($B25<121,VLOOKUP($B25,Lookups!A:F,6)*(1-VLOOKUP($B25,Lookups!$N$3:$P$103,2))^($A25-$A$3),"") -> 0.3093405946 | AI25: =IF($B25<121,VLOOKUP($B25,Lookups!A:G,7)*(1-VLOOKUP($B25,Lookups!$N$3:$P$103,3))^($A25-$A$3),"") -> 0.2200676776 | AJ25: 0.3093405946 | AK25: 0.03575879806 | AL25: 0.4691506308 | AM25: 0.847514 | AP25: 1905.824837
A26: 2043 | B26: 101 | D26: =VLOOKUP(B26,Lookups!A:B,2) -> 14639.34828 | E26: =VLOOKUP(B26,Lookups!A:C,3) -> 1737.016974 | G26: =VLOOKUP(B26,Lookups!A:D,4) -> 146568.8654 | H26: =VLOOKUP(B26,Lookups!A:E,5) -> 119579.8935 | J26: =VLOOKUP(A26,Trends!$A$3:$H$94,IF(ExFlg=0,4,2))+Sens -> 1.051 | K26: 3.148475829 | L26: =VLOOKUP(A26,Trends!$A$3:$H$94,IF(ExFlg=0,5,3))+Sens -> 1.053 | M26: 3.190673045 | N26: =VLOOKUP(A26,Trends!$A$3:$H$94,6)+Sens -> 1.045 | O26: 3.162967985 | Q26: =IF(B26<=120,VLOOKUP(B26,Lookups!$A$3:$I$103,8,FALSE),"") -> 0.1501 | R26: =VLOOKUP(A26,Trends!$A$3:$H$94,7)+Sens -> 1.045 | S26: 2.752166348 | T26: =IF(B26<=120,VLOOKUP(B26,Lookups!$A$3:$I$103,9,FALSE),"") -> 0.0841 | U26: =VLOOKUP(A26,Trends!$A$3:$H$94,8)+Sens -> 1.045 | V26: 2.752166348 | X26: 46709.37394 | Y26: 5494.129077 | Z26: 52203.50301 | AB26: 60547.62307 | AC26: 27677.62611 | AD26: 88225.24917 | AF26: 140428.7522 | AH26: =IF($B26<121,VLOOKUP($B26,Lookups!A:F,6)*(1-VLOOKUP($B26,Lookups!$N$3:$P$103,2))^($A26-$A$3),"") -> 0.3337901443 | AI26: =IF($B26<121,VLOOKUP($B26,Lookups!A:G,7)*(1-VLOOKUP($B26,Lookups!$N$3:$P$103,3))^($A26-$A$3),"") -> 0.2388027517 | AJ26: 0.3337901443 | AK26: 0.02469715021 | AL26: 0.4532856336 | AM26: 0.836687 | AP26: 1315.339481
A27: 2044 | B27: 102 | D27: =VLOOKUP(B27,Lookups!A:B,2) -> 14639.34828 | E27: =VLOOKUP(B27,Lookups!A:C,3) -> 1737.016974 | G27: =VLOOKUP(B27,Lookups!A:D,4) -> 146568.8654 | H27: =VLOOKUP(B27,Lookups!A:E,5) -> 119579.8935 | J27: =VLOOKUP(A27,Trends!$A$3:$H$94,IF(ExFlg=0,4,2))+Sens -> 1.051 | K27: 3.309048096 | L27: =VLOOKUP(A27,Trends!$A$3:$H$94,IF(ExFlg=0,5,3))+Sens -> 1.053 | M27: 3.359778716 | N27: =VLOOKUP(A27,Trends!$A$3:$H$94,6)+Sens -> 1.045 | O27: 3.305301544 | Q27: =IF(B27<=120,VLOOKUP(B27,Lookups!$A$3:$I$103,8,FALSE),"") -> 0.1501 | R27: =VLOOKUP(A27,Trends!$A$3:$H$94,7)+Sens -> 1.045 | S27: 2.876013834 | T27: =IF(B27<=120,VLOOKUP(B27,Lookups!$A$3:$I$103,9,FALSE),"") -> 0.0841 | U27: =VLOOKUP(A27,Trends!$A$3:$H$94,8)+Sens -> 1.045 | V27: 2.876013834 | X27: 49184.97075 | Y27: 5741.364886 | Z27: 54926.33564 | AB27: 63272.2661 | AC27: 28923.11928 | AD27: 92195.38538 | AF27: 147121.721 | AH27: =IF($B27<121,VLOOKUP($B27,Lookups!A:F,6)*(1-VLOOKUP($B27,Lookups!$N$3:$P$103,2))^($A27-$A$3),"") -> 0.3436690585 | AI27: =IF($B27<121,VLOOKUP($B27,Lookups!A:G,7)*(1-VLOOKUP($B27,Lookups!$N$3:$P$103,3))^($A27-$A$3),"") -> 0.2495684119 | AJ27: 0.3436690585 | AK27: 0.01645348488 | AL27: 0.4379571339 | AM27: 0.832312 | AP27: 882.3734949
A28: 2045 | B28: 103 | D28: =VLOOKUP(B28,Lookups!A:B,2) -> 14639.34828 | E28: =VLOOKUP(B28,Lookups!A:C,3) -> 1737.016974 | G28: =VLOOKUP(B28,Lookups!A:D,4) -> 146568.8654 | H28: =VLOOKUP(B28,Lookups!A:E,5) -> 119579.8935 | J28: =VLOOKUP(A28,Trends!$A$3:$H$94,IF(ExFlg=0,4,2))+Sens -> 1.051 | K28: 3.477809549 | L28: =VLOOKUP(A28,Trends!$A$3:$H$94,IF(ExFlg=0,5,3))+Sens -> 1.052 | M28: 3.537846988 | N28: =VLOOKUP(A28,Trends!$A$3:$H$94,6)+Sens -> 1.045 | O28: 3.454040113 | Q28: =IF(B28<=120,VLOOKUP(B28,Lookups!$A$3:$I$103,8,FALSE),"") -> 0.1501 | R28: =VLOOKUP(A28,Trends!$A$3:$H$94,7)+Sens -> 1.045 | S28: 3.005434457 | T28: =IF(B28<=120,VLOOKUP(B28,Lookups!$A$3:$I$103,9,FALSE),"") -> 0.0841 | U28: =VLOOKUP(A28,Trends!$A$3:$H$94,8)+Sens -> 1.045 | V28: 3.005434457 | X28: 51791.7742 | Y28: 5999.726306 | Z28: 57791.50051 | AB28: 66119.51808 | AC28: 30224.65965 | AD28: 96344.17773 | AF28: 154135.6782 | AH28: =IF($B28<121,VLOOKUP($B28,Lookups!A:F,6)*(1-VLOOKUP($B28,Lookups!$N$3:$P$103,2))^($A28-$A$3),"") -> 0.3678457644 | AI28: =IF($B28<121,VLOOKUP($B28,Lookups!A:G,7)*(1-VLOOKUP($B28,Lookups!$N$3:$P$103,3))^($A28-$A$3),"") -> 0.2734908603 | AJ28: 0.3678457644 | AK28: 0.01079893122 | AL28: 0.4231469893 | AM28: 0.821606 | AP28: 578.6804495
A29: 2046 | B29: 104 | D29: =VLOOKUP(B29,Lookups!A:B,2) -> 14639.34828 | E29: =VLOOKUP(B29,Lookups!A:C,3) -> 1737.016974 | G29: =VLOOKUP(B29,Lookups!A:D,4) -> 146568.8654 | H29: =VLOOKUP(B29,Lookups!A:E,5) -> 119579.8935 | J29: =VLOOKUP(A29,Trends!$A$3:$H$94,IF(ExFlg=0,4,2))+Sens -> 1.051 | K29: 3.655177836 | L29: =VLOOKUP(A29,Trends!$A$3:$H$94,IF(ExFlg=0,5,3))+Sens -> 1.052 | M29: 3.721815032 | N29: =VLOOKUP(A29,Trends!$A$3:$H$94,6)+Sens -> 1.045 | O29: 3.609471918 | Q29: =IF(B29<=120,VLOOKUP(B29,Lookups!$A$3:$I$103,8,FALSE),"") -> 0.1501 | R29: =VLOOKUP(A29,Trends!$A$3:$H$94,7)+Sens -> 1.045 | S29: 3.140679007 | T29: =IF(B29<=120,VLOOKUP(B29,Lookups!$A$3:$I$103,9,FALSE),"") -> 0.0841 | U29: =VLOOKUP(A29,Trends!$A$3:$H$94,8)+Sens -> 1.045 | V29: 3.140679007 | X29: 54484.94646 | Y29: 6269.713989 | Z29: 60754.66045 | AB29: 69094.89639 | AC29: 31584.76933 | AD29: 100679.6657 | AF29: 161434.3262 | AH29: =IF($B29<121,VLOOKUP($B29,Lookups!A:F,6)*(1-VLOOKUP($B29,Lookups!$N$3:$P$103,2))^($A29-$A$3),"") -> 0.3739096914 | AI29: =IF($B29<121,VLOOKUP($B29,Lookups!A:G,7)*(1-VLOOKUP($B29,Lookups!$N$3:$P$103,3))^($A29-$A$3),"") -> 0.2869487594 | AJ29: 0.3739096914 | AK29: 0.00682659011 | AL29: 0.4088376708 | AM29: 0.818921 | AP29: 368.9713336
A30: 2047 | B30: 105 | D30: =VLOOKUP(B30,Lookups!A:B,2) -> 14639.34828 | E30: =VLOOKUP(B30,Lookups!A:C,3) -> 1737.016974 | G30: =VLOOKUP(B30,Lookups!A:D,4) -> 146568.8654 | H30: =VLOOKUP(B30,Lookups!A:E,5) -> 119579.8935 | J30: =VLOOKUP(A30,Trends!$A$3:$H$94,IF(ExFlg=0,4,2))+Sens -> 1.051 | K30: 3.841591905 | L30: =VLOOKUP(A30,Trends!$A$3:$H$94,IF(ExFlg=0,5,3))+Sens -> 1.051 | M30: 3.915349413 | N30: =VLOOKUP(A30,Trends!$A$3:$H$94,6)+Sens -> 1.045 | O30: 3.771898155 | Q30: =IF(B30<=120,VLOOKUP(B30,Lookups!$A$3:$I$103,8,FALSE),"") -> 0.1501 | R30: =VLOOKUP(A30,Trends!$A$3:$H$94,7)+Sens -> 1.045 | S30: 3.282009562 | T30: =IF(B30<=120,VLOOKUP(B30,Lookups!$A$3:$I$103,9,FALSE),"") -> 0.0841 | U30: =VLOOKUP(A30,Trends!$A$3:$H$94,8)+Sens -> 1.045 | V30: 3.282009562 | X30: 57318.16368 | Y30: 6551.851119 | Z30: 63870.0148 | AB30: 72204.16673 | AC30: 33006.08395 | AD30: 105210.2507 | AF30: 169080.2655 | AH30: =IF($B30<121,VLOOKUP($B30,Lookups!A:F,6)*(1-VLOOKUP($B30,Lookups!$N$3:$P$103,2))^($A30-$A$3),"") -> 0.3960015 | AI30: =IF($B30<121,VLOOKUP($B30,Lookups!A:G,7)*(1-VLOOKUP($B30,Lookups!$N$3:$P$103,3))^($A30-$A$3),"") -> 0.315268 | AJ30: 0.3960015 | AK30: 0.004274061909 | AL30: 0.3950122423 | AM30: 0.809138 | AP30: 230.9760142
A31: 2048 | B31: 106 | D31: =VLOOKUP(B31,Lookups!A:B,2) -> 14639.34828 | E31: =VLOOKUP(B31,Lookups!A:C,3) -> 1737.016974 | G31: =VLOOKUP(B31,Lookups!A:D,4) -> 146568.8654 | H31: =VLOOKUP(B31,Lookups!A:E,5) -> 119579.8935 | J31: =VLOOKUP(A31,Trends!$A$3:$H$94,IF(ExFlg=0,4,2))+Sens -> 1.051 | K31: 4.037513093 | L31: =VLOOKUP(A31,Trends!$A$3:$H$94,IF(ExFlg=0,5,3))+Sens -> 1.051 | M31: 4.115032233 | N31: =VLOOKUP(A31,Trends!$A$3:$H$94,6)+Sens -> 1.045 | O31: 3.941633572 | Q31: =IF(B31<=120,VLOOKUP(B31,Lookups!$A$3:$I$103,8,FALSE),"") -> 0.1501 | R31: =VLOOKUP(A31,Trends!$A$3:$H$94,7)+Sens -> 1.045 | S31: 3.429699993 | T31: =IF(B31<=120,VLOOKUP(B31,Lookups!$A$3:$I$103,9,FALSE),"") -> 0.0841 | U31: =VLOOKUP(A31,Trends!$A$3:$H$94,8)+Sens -> 1.045 | V31: 3.429699993 | X31: 60241.39003 | Y31: 6846.684419 | Z31: 67088.07445 | AB31: 75453.35423 | AC31: 34491.35773 | AD31: 109944.712 | AF31: 177032.7864 | AH31: =IF($B31<121,VLOOKUP($B31,Lookups!A:F,6)*(1-VLOOKUP($B31,Lookups!$N$3:$P$103,2))^($A31-$A$3),"") -> 0.398943 | AI31: =IF($B31<121,VLOOKUP($B31,Lookups!A:G,7)*(1-VLOOKUP($B31,Lookups!$N$3:$P$103,3))^($A31-$A$3),"") -> 0.330083 | AJ31: 0.398943 | AK31: 0.002581526982 | AL31: 0.3816543404 | AM31: 0.807835 | AP31: 140.9039749
A32: 2049 | B32: 107 | D32: =VLOOKUP(B32,Lookups!A:B,2) -> 14639.34828 | E32: =VLOOKUP(B32,Lookups!A:C,3) -> 1737.016974 | G32: =VLOOKUP(B32,Lookups!A:D,4) -> 146568.8654 | H32: =VLOOKUP(B32,Lookups!A:E,5) -> 119579.8935 | J32: =VLOOKUP(A32,Trends!$A$3:$H$94,IF(ExFlg=0,4,2))+Sens -> 1.051 | K32: 4.24342626 | L32: =VLOOKUP(A32,Trends!$A$3:$H$94,IF(ExFlg=0,5,3))+Sens -> 1.051 | M32: 4.324898877 | N32: =VLOOKUP(A32,Trends!$A$3:$H$94,6)+Sens -> 1.045 | O32: 4.119007082 | Q32: =IF(B32<=120,VLOOKUP(B32,Lookups!$A$3:$I$103,8,FALSE),"") -> 0.1501 | R32: =VLOOKUP(A32,Trends!$A$3:$H$94,7)+Sens -> 1.045 | S32: 3.584036492 | T32: =IF(B32<=120,VLOOKUP(B32,Lookups!$A$3:$I$103,9,FALSE),"") -> 0.0841 | U32: =VLOOKUP(A32,Trends!$A$3:$H$94,8)+Sens -> 1.045 | V32: 3.584036492 | X32: 63313.70092 | Y32: 7154.785218 | Z32: 70468.48614 | AB32: 78848.75517 | AC32: 36043.46883 | AD32: 114892.224 | AF32: 185360.7101 | AH32: =IF($B32<121,VLOOKUP($B32,Lookups!A:F,6)*(1-VLOOKUP($B32,Lookups!$N$3:$P$103,2))^($A32-$A$3),"") -> 0.4 | AI32: =IF($B32<121,VLOOKUP($B32,Lookups!A:G,7)*(1-VLOOKUP($B32,Lookups!$N$3:$P$103,3))^($A32-$A$3),"") -> 0.3444925 | AJ32: 0.4 | AK32: 0.001551644863 | AL32: 0.368748155 | AM32: 0.807367 | AP32: 85.62702649
A33: 2050 | B33: 108 | D33: =VLOOKUP(B33,Lookups!A:B,2) -> 14639.34828 | E33: =VLOOKUP(B33,Lookups!A:C,3) -> 1737.016974 | G33: =VLOOKUP(B33,Lookups!A:D,4) -> 146568.8654 | H33: =VLOOKUP(B33,Lookups!A:E,5) -> 119579.8935 | J33: =VLOOKUP(A33,Trends!$A$3:$H$94,IF(ExFlg=0,4,2))+Sens -> 1.051 | K33: 4.459841 | L33: =VLOOKUP(A33,Trends!$A$3:$H$94,IF(ExFlg=0,5,3))+Sens -> 1.051 | M33: 4.54546872 | N33: =VLOOKUP(A33,Trends!$A$3:$H$94,6)+Sens -> 1.044 | O33: 4.304362401 | Q33: =IF(B33<=120,VLOOKUP(B33,Lookups!$A$3:$I$103,8,FALSE),"") -> 0.1501 | R33: =VLOOKUP(A33,Trends!$A$3:$H$94,7)+Sens -> 1.045 | S33: 3.745318135 | T33: =IF(B33<=120,VLOOKUP(B33,Lookups!$A$3:$I$103,9,FALSE),"") -> 0.0841 | U33: =VLOOKUP(A33,Trends!$A$3:$H$94,8)+Sens -> 1.045 | V33: 3.745318135 | X33: 66542.69967 | Y33: 7476.750553 | Z33: 74019.45022 | AB33: 82396.94916 | AC33: 37665.42493 | AD33: 120062.3741 | AF33: 194081.8243 | AH33: =IF($B33<121,VLOOKUP($B33,Lookups!A:F,6)*(1-VLOOKUP($B33,Lookups!$N$3:$P$103,2))^($A33-$A$3),"") -> 0.4 | AI33: =IF($B33<121,VLOOKUP($B33,Lookups!A:G,7)*(1-VLOOKUP($B33,Lookups!$N$3:$P$103,3))^($A33-$A$3),"") -> 0.3580805 | AJ33: 0.4 | AK33: 0.0009309869178 | AL33: 0.3562784106 | AM33: 0.807367 | AP33: 51.97433539
A34: 2051 | B34: 109 | D34: =VLOOKUP(B34,Lookups!A:B,2) -> 14639.34828 | E34: =VLOOKUP(B34,Lookups!A:C,3) -> 1737.016974 | G34: =VLOOKUP(B34,Lookups!A:D,4) -> 146568.8654 | H34: =VLOOKUP(B34,Lookups!A:E,5) -> 119579.8935 | J34: =VLOOKUP(A34,Trends!$A$3:$H$94,IF(ExFlg=0,4,2))+Sens -> 1.051 | K34: 4.687292891 | L34: =VLOOKUP(A34,Trends!$A$3:$H$94,IF(ExFlg=0,5,3))+Sens -> 1.051 | M34: 4.777287625 | N34: =VLOOKUP(A34,Trends!$A$3:$H$94,6)+Sens -> 1.044 | O34: 4.493754347 | Q34: =IF(B34<=120,VLOOKUP(B34,Lookups!$A$3:$I$103,8,FALSE),"") -> 0.1501 | R34: =VLOOKUP(A34,Trends!$A$3:$H$94,7)+Sens -> 1.045 | S34: 3.913857451 | T34: =IF(B34<=120,VLOOKUP(B34,Lookups!$A$3:$I$103,9,FALSE),"") -> 0.0841 | U34: =VLOOKUP(A34,Trends!$A$3:$H$94,8)+Sens -> 1.045 | V34: 3.913857451 | X34: 69936.37735 | Y34: 7805.727577 | Z34: 77742.10493 | AB34: 86104.81187 | AC34: 39360.36905 | AD34: 125465.1809 | AF34: 203207.2858 | AH34: =IF($B34<121,VLOOKUP($B34,Lookups!A:F,6)*(1-VLOOKUP($B34,Lookups!$N$3:$P$103,2))^($A34-$A$3),"") -> 0.4 | AI34: =IF($B34<121,VLOOKUP($B34,Lookups!A:G,7)*(1-VLOOKUP($B34,Lookups!$N$3:$P$103,3))^($A34-$A$3),"") -> 0.3704315 | AJ34: 0.4 | AK34: 0.0005585921507 | AL34: 0.3442303484 | AM34: 0.807367 | AP34: 31.54672316
A35: 2052 | B35: 110 | D35: =VLOOKUP(B35,Lookups!A:B,2) -> 14639.34828 | E35: =VLOOKUP(B35,Lookups!A:C,3) -> 1737.016974 | G35: =VLOOKUP(B35,Lookups!A:D,4) -> 146568.8654 | H35: =VLOOKUP(B35,Lookups!A:E,5) -> 119579.8935 | J35: =VLOOKUP(A35,Trends!$A$3:$H$94,IF(ExFlg=0,4,2))+Sens -> 1.051 | K35: 4.926344828 | L35: =VLOOKUP(A35,Trends!$A$3:$H$94,IF(ExFlg=0,5,3))+Sens -> 1.05 | M35: 5.020929294 | N35: =VLOOKUP(A35,Trends!$A$3:$H$94,6)+Sens -> 1.044 | O35: 4.691479538 | Q35: =IF(B35<=120,VLOOKUP(B35,Lookups!$A$3:$I$103,8,FALSE),"") -> 0.1501 | R35: =VLOOKUP(A35,Trends!$A$3:$H$94,7)+Sens -> 1.045 | S35: 4.089981036 | T35: =IF(B35<=120,VLOOKUP(B35,Lookups!$A$3:$I$103,9,FALSE),"") -> 0.0841 | U35: =VLOOKUP(A35,Trends!$A$3:$H$94,8)+Sens -> 1.045 | V35: 4.089981036 | X35: 73503.13259 | Y35: 8149.179591 | Z35: 81652.31218 | AB35: 89979.5284 | AC35: 41131.58565 | AD35: 131111.1141 | AF35: 212763.4262 | AH35: =IF($B35<121,VLOOKUP($B35,Lookups!A:F,6)*(1-VLOOKUP($B35,Lookups!$N$3:$P$103,2))^($A35-$A$3),"") -> 0.4 | AI35: =IF($B35<121,VLOOKUP($B35,Lookups!A:G,7)*(1-VLOOKUP($B35,Lookups!$N$3:$P$103,3))^($A35-$A$3),"") -> 0.3811305 | AJ35: =IF(B35<121,(PCTMALE*AH35+(1-PCTMALE)*AI35),"") -> 0.4 | AK35: 0.0003351552904 | AL35: 0.3325897086 | AM35: =IF(AJ35="","",ROUND((13/24)+(11/24)*(1/(1+IntRt))*(1-AJ35),6)) -> 0.807367 | AP35: 19.14797516
A36: =1+A35 -> 2053 | B36: =1+B35 -> 111 | D36: =VLOOKUP(B36,Lookups!A:B,2) -> 14639.34828 | E36: =VLOOKUP(B36,Lookups!A:C,3) -> 1737.016974 | G36: =VLOOKUP(B36,Lookups!A:D,4) -> 146568.8654 | H36: =VLOOKUP(B36,Lookups!A:E,5) -> 119579.8935 | J36: =VLOOKUP(A36,Trends!$A$3:$H$94,IF(ExFlg=0,4,2))+Sens -> 1.051 | K36: 5.177588414 | L36: =VLOOKUP(A36,Trends!$A$3:$H$94,IF(ExFlg=0,5,3))+Sens -> 1.05 | M36: 5.271975758 | N36: =VLOOKUP(A36,Trends!$A$3:$H$94,6)+Sens -> 1.044 | O36: 4.897904638 | Q36: =IF(B36<=120,VLOOKUP(B36,Lookups!$A$3:$I$103,8,FALSE),"") -> 0.1501 | R36: =VLOOKUP(A36,Trends!$A$3:$H$94,7)+Sens -> 1.045 | S36: 4.274030182 | T36: =IF(B36<=120,VLOOKUP(B36,Lookups!$A$3:$I$103,9,FALSE),"") -> 0.0841 | U36: =VLOOKUP(A36,Trends!$A$3:$H$94,8)+Sens -> 1.045 | V36: 4.274030182 | X36: 77178.28922 | Y36: 8507.743493 | Z36: 85686.03272 | AB36: 94028.60718 | AC36: 42982.50701 | AD36: 137011.1142 | AF36: 222697.1469 | AH36: =IF($B36<121,VLOOKUP($B36,Lookups!A:F,6)*(1-VLOOKUP($B36,Lookups!$N$3:$P$103,2))^($A36-$A$3),"") -> 0.4 | AI36: =IF($B36<121,VLOOKUP($B36,Lookups!A:G,7)*(1-VLOOKUP($B36,Lookups!$N$3:$P$103,3))^($A36-$A$3),"") -> 0.389761 | AJ36: 0.4 | AK36: 0.0002010931742 | AL36: =IF(B36<121,AL35/(1+IntRt),"") -> 0.3213427136 | AM36: 0.807367 | AP36: 11.61853669
A37: 2054 | B37: 112 | D37: =VLOOKUP(B37,Lookups!A:B,2) -> 14639.34828 | E37: =VLOOKUP(B37,Lookups!A:C,3) -> 1737.016974 | G37: =VLOOKUP(B37,Lookups!A:D,4) -> 146568.8654 | H37: =VLOOKUP(B37,Lookups!A:E,5) -> 119579.8935 | J37: =VLOOKUP(A37,Trends!$A$3:$H$94,IF(ExFlg=0,4,2))+Sens -> 1.051 | K37: 5.441645423 | L37: =VLOOKUP(A37,Trends!$A$3:$H$94,IF(ExFlg=0,5,3))+Sens -> 1.05 | M37: 5.535574546 | N37: =VLOOKUP(A37,Trends!$A$3:$H$94,6)+Sens -> 1.044 | O37: 5.113412442 | Q37: =IF(B37<=120,VLOOKUP(B37,Lookups!$A$3:$I$103,8,FALSE),"") -> 0.1501 | R37: =VLOOKUP(A37,Trends!$A$3:$H$94,7)+Sens -> 1.045 | S37: 4.466361541 | T37: =IF(B37<=120,VLOOKUP(B37,Lookups!$A$3:$I$103,9,FALSE),"") -> 0.0841 | U37: =VLOOKUP(A37,Trends!$A$3:$H$94,8)+Sens -> 1.045 | V37: 4.466361541 | X37: 81037.20368 | Y37: 8882.084206 | Z37: 89919.28789 | AB37: 98259.8945 | AC37: 44916.71982 | AD37: 143176.6143 | AF37: 233095.9022 | AH37: =IF($B37<121,VLOOKUP($B37,Lookups!A:F,6)*(1-VLOOKUP($B37,Lookups!$N$3:$P$103,2))^($A37-$A$3),"") -> 0.4 | AI37: =IF($B37<121,VLOOKUP($B37,Lookups!A:G,7)*(1-VLOOKUP($B37,Lookups!$N$3:$P$103,3))^($A37-$A$3),"") -> 0.3959075 | AJ37: 0.4 | AK37: 0.0001206559045 | AL37: 0.3104760518 | AM37: 0.807367 | AP37: 7.049889663
A38: 2055 | B38: 113 | D38: =VLOOKUP(B38,Lookups!A:B,2) -> 14639.34828 | E38: =VLOOKUP(B38,Lookups!A:C,3) -> 1737.016974 | G38: =VLOOKUP(B38,Lookups!A:D,4) -> 146568.8654 | H38: =VLOOKUP(B38,Lookups!A:E,5) -> 119579.8935 | J38: =VLOOKUP(A38,Trends!$A$3:$H$94,IF(ExFlg=0,4,2))+Sens -> 1.051 | K38: 5.71916934 | L38: =VLOOKUP(A38,Trends!$A$3:$H$94,IF(ExFlg=0,5,3))+Sens -> 1.05 | M38: 5.812353273 | N38: =VLOOKUP(A38,Trends!$A$3:$H$94,6)+Sens -> 1.044 | O38: 5.338402589 | Q38: =IF(B38<=120,VLOOKUP(B38,Lookups!$A$3:$I$103,8,FALSE),"") -> 0.1501 | R38: =VLOOKUP(A38,Trends!$A$3:$H$94,7)+Sens -> 1.045 | S38: 4.66734781 | T38: =IF(B38<=120,VLOOKUP(B38,Lookups!$A$3:$I$103,9,FALSE),"") -> 0.0841 | U38: =VLOOKUP(A38,Trends!$A$3:$H$94,8)+Sens -> 1.045 | V38: 4.66734781 | X38: 85089.06387 | Y38: 9272.895911 | Z38: 94361.95978 | AB38: 102681.5898 | AC38: 46937.97222 | AD38: 149619.562 | AF38: 243981.5218 | AH38: =IF($B38<121,VLOOKUP($B38,Lookups!A:F,6)*(1-VLOOKUP($B38,Lookups!$N$3:$P$103,2))^($A38-$A$3),"") -> 0.4 | AI38: =IF($B38<121,VLOOKUP($B38,Lookups!A:G,7)*(1-VLOOKUP($B38,Lookups!$N$3:$P$103,3))^($A38-$A$3),"") -> 0.399154 | AJ38: 0.4 | AK38: 7.239354273e-05 | AL38: 0.2999768617 | AM38: 0.807367 | AP38: 4.277751158
A39: 2056 | B39: 114 | D39: =VLOOKUP(B39,Lookups!A:B,2) -> 14639.34828 | E39: =VLOOKUP(B39,Lookups!A:C,3) -> 1737.016974 | G39: =VLOOKUP(B39,Lookups!A:D,4) -> 146568.8654 | H39: =VLOOKUP(B39,Lookups!A:E,5) -> 119579.8935 | J39: =VLOOKUP(A39,Trends!$A$3:$H$94,IF(ExFlg=0,4,2))+Sens -> 1.051 | K39: 6.010846976 | L39: =VLOOKUP(A39,Trends!$A$3:$H$94,IF(ExFlg=0,5,3))+Sens -> 1.05 | M39: 6.102970937 | N39: =VLOOKUP(A39,Trends!$A$3:$H$94,6)+Sens -> 1.044 | O39: 5.573292303 | Q39: =IF(B39<=120,VLOOKUP(B39,Lookups!$A$3:$I$103,8,FALSE),"") -> 0.1501 | R39: =VLOOKUP(A39,Trends!$A$3:$H$94,7)+Sens -> 1.045 | S39: 4.877378461 | T39: =IF(B39<=120,VLOOKUP(B39,Lookups!$A$3:$I$103,9,FALSE),"") -> 0.0841 | U39: =VLOOKUP(A39,Trends!$A$3:$H$94,8)+Sens -> 1.045 | V39: 4.877378461 | X39: 89343.51706 | Y39: 9680.903332 | Z39: 99024.42039 | AB39: 107302.2613 | AC39: 49050.18097 | AD39: 156352.4423 | AF39: 255376.8627 | AH39: =IF($B39<121,VLOOKUP($B39,Lookups!A:F,6)*(1-VLOOKUP($B39,Lookups!$N$3:$P$103,2))^($A39-$A$3),"") -> 0.4 | AI39: =IF($B39<121,VLOOKUP($B39,Lookups!A:G,7)*(1-VLOOKUP($B39,Lookups!$N$3:$P$103,3))^($A39-$A$3),"") -> 0.4 | AJ39: 0.4 | AK39: 4.343612564e-05 | AL39: 0.2898327166 | AM39: 0.807367 | AP39: 2.595679276
A40: 2057 | B40: 115 | D40: =VLOOKUP(B40,Lookups!A:B,2) -> 14639.34828 | E40: =VLOOKUP(B40,Lookups!A:C,3) -> 1737.016974 | G40: =VLOOKUP(B40,Lookups!A:D,4) -> 146568.8654 | H40: =VLOOKUP(B40,Lookups!A:E,5) -> 119579.8935 | J40: =VLOOKUP(A40,Trends!$A$3:$H$94,IF(ExFlg=0,4,2))+Sens -> 1.051 | K40: 6.317400172 | L40: =VLOOKUP(A40,Trends!$A$3:$H$94,IF(ExFlg=0,5,3))+Sens -> 1.05 | M40: 6.408119484 | N40: =VLOOKUP(A40,Trends!$A$3:$H$94,6)+Sens -> 1.044 | O40: 5.818517164 | Q40: =IF(B40<=120,VLOOKUP(B40,Lookups!$A$3:$I$103,8,FALSE),"") -> 0.1501 | R40: =VLOOKUP(A40,Trends!$A$3:$H$94,7)+Sens -> 1.045 | S40: 5.096860492 | T40: =IF(B40<=120,VLOOKUP(B40,Lookups!$A$3:$I$103,9,FALSE),"") -> 0.0841 | U40: =VLOOKUP(A40,Trends!$A$3:$H$94,8)+Sens -> 1.045 | V40: 5.096860492 | X40: 93810.69291 | Y40: 10106.86308 | Z40: 103917.556 | AB40: 112130.8631 | AC40: 51257.43911 | AD40: 163388.3022 | AF40: 267305.8582 | AH40: =IF($B40<121,VLOOKUP($B40,Lookups!A:F,6)*(1-VLOOKUP($B40,Lookups!$N$3:$P$103,2))^($A40-$A$3),"") -> 0.4 | AI40: =IF($B40<121,VLOOKUP($B40,Lookups!A:G,7)*(1-VLOOKUP($B40,Lookups!$N$3:$P$103,3))^($A40-$A$3),"") -> 0.4 | AJ40: 0.4 | AK40: 2.606167538e-05 | AL40: 0.2800316102 | AM40: 0.807367 | AP40: 1.575030106
A41: 2058 | B41: 116 | D41: =VLOOKUP(B41,Lookups!A:B,2) -> 14639.34828 | E41: =VLOOKUP(B41,Lookups!A:C,3) -> 1737.016974 | G41: =VLOOKUP(B41,Lookups!A:D,4) -> 146568.8654 | H41: =VLOOKUP(B41,Lookups!A:E,5) -> 119579.8935 | J41: =VLOOKUP(A41,Trends!$A$3:$H$94,IF(ExFlg=0,4,2))+Sens -> 1.051 | K41: 6.639587581 | L41: =VLOOKUP(A41,Trends!$A$3:$H$94,IF(ExFlg=0,5,3))+Sens -> 1.05 | M41: 6.728525458 | N41: =VLOOKUP(A41,Trends!$A$3:$H$94,6)+Sens -> 1.044 | O41: 6.07453192 | Q41: =IF(B41<=120,VLOOKUP(B41,Lookups!$A$3:$I$103,8,FALSE),"") -> 0.1501 | R41: =VLOOKUP(A41,Trends!$A$3:$H$94,7)+Sens -> 1.045 | S41: 5.326219214 | T41: =IF(B41<=120,VLOOKUP(B41,Lookups!$A$3:$I$103,9,FALSE),"") -> 0.0841 | U41: =VLOOKUP(A41,Trends!$A$3:$H$94,8)+Sens -> 1.045 | V41: 5.326219214 | X41: 98501.22756 | Y41: 10551.56505 | Z41: 109052.7926 | AB41: 117176.7519 | AC41: 53564.02387 | AD41: 170740.7758 | AF41: 279793.5684 | AH41: =IF($B41<121,VLOOKUP($B41,Lookups!A:F,6)*(1-VLOOKUP($B41,Lookups!$N$3:$P$103,2))^($A41-$A$3),"") -> 0.4 | AI41: =IF($B41<121,VLOOKUP($B41,Lookups!A:G,7)*(1-VLOOKUP($B41,Lookups!$N$3:$P$103,3))^($A41-$A$3),"") -> 0.4 | AJ41: 0.4 | AK41: 1.563700523e-05 | AL41: 0.2705619422 | AM41: 0.807367 | AP41: 0.9557163387
A42: 2059 | B42: 117 | D42: =VLOOKUP(B42,Lookups!A:B,2) -> 14639.34828 | E42: =VLOOKUP(B42,Lookups!A:C,3) -> 1737.016974 | G42: =VLOOKUP(B42,Lookups!A:D,4) -> 146568.8654 | H42: =VLOOKUP(B42,Lookups!A:E,5) -> 119579.8935 | J42: =VLOOKUP(A42,Trends!$A$3:$H$94,IF(ExFlg=0,4,2))+Sens -> 1.051 | K42: 6.978206547 | L42: =VLOOKUP(A42,Trends!$A$3:$H$94,IF(ExFlg=0,5,3))+Sens -> 1.05 | M42: 7.064951731 | N42: =VLOOKUP(A42,Trends!$A$3:$H$94,6)+Sens -> 1.044 | O42: 6.341811324 | Q42: =IF(B42<=120,VLOOKUP(B42,Lookups!$A$3:$I$103,8,FALSE),"") -> 0.1501 | R42: =VLOOKUP(A42,Trends!$A$3:$H$94,7)+Sens -> 1.045 | S42: 5.565899079 | T42: =IF(B42<=120,VLOOKUP(B42,Lookups!$A$3:$I$103,9,FALSE),"") -> 0.0841 | U42: =VLOOKUP(A42,Trends!$A$3:$H$94,8)+Sens -> 1.045 | V42: 5.565899079 | X42: 103426.2889 | Y42: 11015.83392 | Z42: 114442.1229 | AB42: 122449.7057 | AC42: 55974.40494 | AD42: 178424.1107 | AF42: 292866.2335 | AH42: =IF($B42<121,VLOOKUP($B42,Lookups!A:F,6)*(1-VLOOKUP($B42,Lookups!$N$3:$P$103,2))^($A42-$A$3),"") -> 0.4 | AI42: =IF($B42<121,VLOOKUP($B42,Lookups!A:G,7)*(1-VLOOKUP($B42,Lookups!$N$3:$P$103,3))^($A42-$A$3),"") -> 0.4 | AJ42: 0.4 | AK42: 9.382203138e-06 | AL42: 0.2614125046 | AM42: 0.807367 | AP42: 0.5799245391
A43: 2060 | B43: 118 | D43: =VLOOKUP(B43,Lookups!A:B,2) -> 14639.34828 | E43: =VLOOKUP(B43,Lookups!A:C,3) -> 1737.016974 | G43: =VLOOKUP(B43,Lookups!A:D,4) -> 146568.8654 | H43: =VLOOKUP(B43,Lookups!A:E,5) -> 119579.8935 | J43: =VLOOKUP(A43,Trends!$A$3:$H$94,IF(ExFlg=0,4,2))+Sens -> 1.051 | K43: 7.334095081 | L43: =VLOOKUP(A43,Trends!$A$3:$H$94,IF(ExFlg=0,5,3))+Sens -> 1.05 | M43: 7.418199318 | N43: =VLOOKUP(A43,Trends!$A$3:$H$94,6)+Sens -> 1.044 | O43: 6.620851022 | Q43: =IF(B43<=120,VLOOKUP(B43,Lookups!$A$3:$I$103,8,FALSE),"") -> 0.1501 | R43: =VLOOKUP(A43,Trends!$A$3:$H$94,7)+Sens -> 1.045 | S43: 5.816364538 | T43: =IF(B43<=120,VLOOKUP(B43,Lookups!$A$3:$I$103,9,FALSE),"") -> 0.0841 | U43: =VLOOKUP(A43,Trends!$A$3:$H$94,8)+Sens -> 1.045 | V43: 5.816364538 | X43: 108597.6034 | Y43: 11500.53061 | Z43: 120098.134 | AB43: 127959.9425 | AC43: 58493.25317 | AD43: 186453.1956 | AF43: 306551.3296 | AH43: =IF($B43<121,VLOOKUP($B43,Lookups!A:F,6)*(1-VLOOKUP($B43,Lookups!$N$3:$P$103,2))^($A43-$A$3),"") -> 0.7 | AI43: =IF($B43<121,VLOOKUP($B43,Lookups!A:G,7)*(1-VLOOKUP($B43,Lookups!$N$3:$P$103,3))^($A43-$A$3),"") -> 0.7 | AJ43: 0.7 | AK43: 5.629321883e-06 | AL43: 0.2525724682 | AM43: 0.674517 | AP43: 0.2939938154
A44: 2061 | B44: 119 | D44: =VLOOKUP(B44,Lookups!A:B,2) -> 14639.34828 | E44: =VLOOKUP(B44,Lookups!A:C,3) -> 1737.016974 | G44: =VLOOKUP(B44,Lookups!A:D,4) -> 146568.8654 | H44: =VLOOKUP(B44,Lookups!A:E,5) -> 119579.8935 | J44: =VLOOKUP(A44,Trends!$A$3:$H$94,IF(ExFlg=0,4,2))+Sens -> 1.051 | K44: 7.70813393 | L44: =VLOOKUP(A44,Trends!$A$3:$H$94,IF(ExFlg=0,5,3))+Sens -> 1.05 | M44: 7.789109283 | N44: =VLOOKUP(A44,Trends!$A$3:$H$94,6)+Sens -> 1.044 | O44: 6.912168467 | Q44: =IF(B44<=120,VLOOKUP(B44,Lookups!$A$3:$I$103,8,FALSE),"") -> 0.1501 | R44: =VLOOKUP(A44,Trends!$A$3:$H$94,7)+Sens -> 1.045 | S44: 6.078100942 | T44: =IF(B44<=120,VLOOKUP(B44,Lookups!$A$3:$I$103,9,FALSE),"") -> 0.0841 | U44: =VLOOKUP(A44,Trends!$A$3:$H$94,8)+Sens -> 1.045 | V44: 6.078100942 | X44: 114027.4836 | Y44: 12006.55395 | Z44: 126034.0375 | AB44: 133718.1399 | AC44: 61125.44956 | AD44: 194843.5895 | AF44: 320877.627 | AH44: =IF($B44<121,VLOOKUP($B44,Lookups!A:F,6)*(1-VLOOKUP($B44,Lookups!$N$3:$P$103,2))^($A44-$A$3),"") -> 0.7 | AI44: =IF($B44<121,VLOOKUP($B44,Lookups!A:G,7)*(1-VLOOKUP($B44,Lookups!$N$3:$P$103,3))^($A44-$A$3),"") -> 1 | AJ44: 0.7 | AK44: 1.688796565e-06 | AL44: 0.2440313702 | AM44: 0.674517 | AP44: 0.08919804428
A45: 2062 | B45: 120 | D45: =VLOOKUP(B45,Lookups!A:B,2) -> 14639.34828 | E45: =VLOOKUP(B45,Lookups!A:C,3) -> 1737.016974 | G45: =VLOOKUP(B45,Lookups!A:D,4) -> 146568.8654 | H45: =VLOOKUP(B45,Lookups!A:E,5) -> 119579.8935 | J45: =VLOOKUP(A45,Trends!$A$3:$H$94,IF(ExFlg=0,4,2))+Sens -> 1.051 | K45: 8.101248761 | L45: =VLOOKUP(A45,Trends!$A$3:$H$94,IF(ExFlg=0,5,3))+Sens -> 1.05 | M45: 8.178564748 | N45: =VLOOKUP(A45,Trends!$A$3:$H$94,6)+Sens -> 1.044 | O45: 7.21630388 | Q45: =IF(B45<=120,VLOOKUP(B45,Lookups!$A$3:$I$103,8,FALSE),"") -> 0.1501 | R45: =VLOOKUP(A45,Trends!$A$3:$H$94,7)+Sens -> 1.045 | S45: 6.351615484 | T45: =IF(B45<=120,VLOOKUP(B45,Lookups!$A$3:$I$103,9,FALSE),"") -> 0.0841 | U45: =VLOOKUP(A45,Trends!$A$3:$H$94,8)+Sens -> 1.045 | V45: 6.351615484 | X45: 119728.8577 | Y45: 12534.84233 | Z45: 132263.7001 | AB45: 139735.4562 | AC45: 63876.09479 | AD45: 203611.551 | AF45: 335875.251 | AH45: =IF($B45<121,VLOOKUP($B45,Lookups!A:F,6)*(1-VLOOKUP($B45,Lookups!$N$3:$P$103,2))^($A45-$A$3),"") -> 1 | AI45: =IF($B45<121,VLOOKUP($B45,Lookups!A:G,7)*(1-VLOOKUP($B45,Lookups!$N$3:$P$103,3))^($A45-$A$3),"") -> 1 | AJ45: 1 | AK45: 5.066389694e-07 | AL45: 0.2357791017 | AM45: 0.541667 | AP45: 0.02173272988
A46: 2063 | B46: 121 | D46: =VLOOKUP(B46,Lookups!A:B,2) -> 14639.34828 | E46: =VLOOKUP(B46,Lookups!A:C,3) -> 1737.016974 | G46: =VLOOKUP(B46,Lookups!A:D,4) -> 146568.8654 | H46: =VLOOKUP(B46,Lookups!A:E,5) -> 119579.8935 | J46: =VLOOKUP(A46,Trends!$A$3:$H$94,IF(ExFlg=0,4,2))+Sens -> 1.051 | K46: 8.514412448 | L46: =VLOOKUP(A46,Trends!$A$3:$H$94,IF(ExFlg=0,5,3))+Sens -> 1.05 | M46: 8.587492985 | N46: =VLOOKUP(A46,Trends!$A$3:$H$94,6)+Sens -> 1.044 | O46: 7.533821251 | Q46: =IF(B46<=120,VLOOKUP(B46,Lookups!$A$3:$I$103,8,FALSE),"") ->  | R46: =VLOOKUP(A46,Trends!$A$3:$H$94,7)+Sens -> 1.045 | S46: 6.637438181 | T46: =IF(B46<=120,VLOOKUP(B46,Lookups!$A$3:$I$103,9,FALSE),"") ->  | U46: =VLOOKUP(A46,Trends!$A$3:$H$94,8)+Sens -> 1.045 | V46: 6.637438181 | AH46: =IF($B46<121,VLOOKUP($B46,Lookups!A:F,6)*(1-VLOOKUP($B46,Lookups!$N$3:$P$103,2))^($A46-$A$3),"") ->  | AI46: =IF($B46<121,VLOOKUP($B46,Lookups!A:G,7)*(1-VLOOKUP($B46,Lookups!$N$3:$P$103,3))^($A46-$A$3),"") -> 
A47: 2064 | B47: 122 | D47: =VLOOKUP(B47,Lookups!A:B,2) -> 14639.34828 | E47: =VLOOKUP(B47,Lookups!A:C,3) -> 1737.016974 | G47: =VLOOKUP(B47,Lookups!A:D,4) -> 146568.8654 | H47: =VLOOKUP(B47,Lookups!A:E,5) -> 119579.8935 | J47: =VLOOKUP(A47,Trends!$A$3:$H$94,IF(ExFlg=0,4,2))+Sens -> 1.051 | K47: 8.948647483 | L47: =VLOOKUP(A47,Trends!$A$3:$H$94,IF(ExFlg=0,5,3))+Sens -> 1.049 | M47: 9.016867634 | N47: =VLOOKUP(A47,Trends!$A$3:$H$94,6)+Sens -> 1.044 | O47: 7.865309386 | Q47: =IF(B47<=120,VLOOKUP(B47,Lookups!$A$3:$I$103,8,FALSE),"") ->  | R47: =VLOOKUP(A47,Trends!$A$3:$H$94,7)+Sens -> 1.045 | S47: 6.936122899 | T47: =IF(B47<=120,VLOOKUP(B47,Lookups!$A$3:$I$103,9,FALSE),"") ->  | U47: =VLOOKUP(A47,Trends!$A$3:$H$94,8)+Sens -> 1.045 | V47: 6.936122899 | AH47: =IF($B47<121,VLOOKUP($B47,Lookups!A:F,6)*(1-VLOOKUP($B47,Lookups!$N$3:$P$103,2))^($A47-$A$3),"") ->  | AI47: =IF($B47<121,VLOOKUP($B47,Lookups!A:G,7)*(1-VLOOKUP($B47,Lookups!$N$3:$P$103,3))^($A47-$A$3),"") -> 
A48: 2065 | B48: 123 | D48: =VLOOKUP(B48,Lookups!A:B,2) -> 14639.34828 | E48: =VLOOKUP(B48,Lookups!A:C,3) -> 1737.016974 | G48: =VLOOKUP(B48,Lookups!A:D,4) -> 146568.8654 | H48: =VLOOKUP(B48,Lookups!A:E,5) -> 119579.8935 | J48: =VLOOKUP(A48,Trends!$A$3:$H$94,IF(ExFlg=0,4,2))+Sens -> 1.051 | K48: 9.405028504 | L48: =VLOOKUP(A48,Trends!$A$3:$H$94,IF(ExFlg=0,5,3))+Sens -> 1.048 | M48: 9.458694148 | N48: =VLOOKUP(A48,Trends!$A$3:$H$94,6)+Sens -> 1.044 | O48: 8.211382999 | Q48: =IF(B48<=120,VLOOKUP(B48,Lookups!$A$3:$I$103,8,FALSE),"") ->  | R48: =VLOOKUP(A48,Trends!$A$3:$H$94,7)+Sens -> 1.045 | S48: 7.24824843 | T48: =IF(B48<=120,VLOOKUP(B48,Lookups!$A$3:$I$103,9,FALSE),"") ->  | U48: =VLOOKUP(A48,Trends!$A$3:$H$94,8)+Sens -> 1.045 | V48: 7.24824843 | AH48: =IF($B48<121,VLOOKUP($B48,Lookups!A:F,6)*(1-VLOOKUP($B48,Lookups!$N$3:$P$103,2))^($A48-$A$3),"") ->  | AI48: =IF($B48<121,VLOOKUP($B48,Lookups!A:G,7)*(1-VLOOKUP($B48,Lookups!$N$3:$P$103,3))^($A48-$A$3),"") -> 
A49: 2066 | B49: 124 | D49: =VLOOKUP(B49,Lookups!A:B,2) -> 14639.34828 | E49: =VLOOKUP(B49,Lookups!A:C,3) -> 1737.016974 | G49: =VLOOKUP(B49,Lookups!A:D,4) -> 146568.8654 | H49: =VLOOKUP(B49,Lookups!A:E,5) -> 119579.8935 | J49: =VLOOKUP(A49,Trends!$A$3:$H$94,IF(ExFlg=0,4,2))+Sens -> 1.051 | K49: 9.884684958 | L49: =VLOOKUP(A49,Trends!$A$3:$H$94,IF(ExFlg=0,5,3))+Sens -> 1.048 | M49: 9.912711467 | N49: =VLOOKUP(A49,Trends!$A$3:$H$94,6)+Sens -> 1.044 | O49: 8.572683851 | Q49: =IF(B49<=120,VLOOKUP(B49,Lookups!$A$3:$I$103,8,FALSE),"") ->  | R49: =VLOOKUP(A49,Trends!$A$3:$H$94,7)+Sens -> 1.045 | S49: 7.574419609 | T49: =IF(B49<=120,VLOOKUP(B49,Lookups!$A$3:$I$103,9,FALSE),"") ->  | U49: =VLOOKUP(A49,Trends!$A$3:$H$94,8)+Sens -> 1.045 | V49: 7.574419609 | AH49: =IF($B49<121,VLOOKUP($B49,Lookups!A:F,6)*(1-VLOOKUP($B49,Lookups!$N$3:$P$103,2))^($A49-$A$3),"") ->  | AI49: =IF($B49<121,VLOOKUP($B49,Lookups!A:G,7)*(1-VLOOKUP($B49,Lookups!$N$3:$P$103,3))^($A49-$A$3),"") -> 
A50: 2067 | B50: 125 | D50: =VLOOKUP(B50,Lookups!A:B,2) -> 14639.34828 | E50: =VLOOKUP(B50,Lookups!A:C,3) -> 1737.016974 | G50: =VLOOKUP(B50,Lookups!A:D,4) -> 146568.8654 | H50: =VLOOKUP(B50,Lookups!A:E,5) -> 119579.8935 | J50: =VLOOKUP(A50,Trends!$A$3:$H$94,IF(ExFlg=0,4,2))+Sens -> 1.051 | K50: 10.38880389 | L50: =VLOOKUP(A50,Trends!$A$3:$H$94,IF(ExFlg=0,5,3))+Sens -> 1.047 | M50: 10.38852162 | N50: =VLOOKUP(A50,Trends!$A$3:$H$94,6)+Sens -> 1.044 | O50: 8.94988194 | Q50: =IF(B50<=120,VLOOKUP(B50,Lookups!$A$3:$I$103,8,FALSE),"") ->  | R50: =VLOOKUP(A50,Trends!$A$3:$H$94,7)+Sens -> 1.045 | S50: 7.915268491 | T50: =IF(B50<=120,VLOOKUP(B50,Lookups!$A$3:$I$103,9,FALSE),"") ->  | U50: =VLOOKUP(A50,Trends!$A$3:$H$94,8)+Sens -> 1.045 | V50: 7.915268491 | AH50: =IF($B50<121,VLOOKUP($B50,Lookups!A:F,6)*(1-VLOOKUP($B50,Lookups!$N$3:$P$103,2))^($A50-$A$3),"") ->  | AI50: =IF($B50<121,VLOOKUP($B50,Lookups!A:G,7)*(1-VLOOKUP($B50,Lookups!$N$3:$P$103,3))^($A50-$A$3),"") -> 
A51: 2068 | B51: 126 | D51: =VLOOKUP(B51,Lookups!A:B,2) -> 14639.34828 | E51: =VLOOKUP(B51,Lookups!A:C,3) -> 1737.016974 | G51: =VLOOKUP(B51,Lookups!A:D,4) -> 146568.8654 | H51: =VLOOKUP(B51,Lookups!A:E,5) -> 119579.8935 | J51: =VLOOKUP(A51,Trends!$A$3:$H$94,IF(ExFlg=0,4,2))+Sens -> 1.051 | K51: 10.91863289 | L51: =VLOOKUP(A51,Trends!$A$3:$H$94,IF(ExFlg=0,5,3))+Sens -> 1.046 | M51: 10.87678213 | N51: =VLOOKUP(A51,Trends!$A$3:$H$94,6)+Sens -> 1.044 | O51: 9.343676745 | Q51: =IF(B51<=120,VLOOKUP(B51,Lookups!$A$3:$I$103,8,FALSE),"") ->  | R51: =VLOOKUP(A51,Trends!$A$3:$H$94,7)+Sens -> 1.045 | S51: 8.271455573 | T51: =IF(B51<=120,VLOOKUP(B51,Lookups!$A$3:$I$103,9,FALSE),"") ->  | U51: =VLOOKUP(A51,Trends!$A$3:$H$94,8)+Sens -> 1.045 | V51: 8.271455573 | AH51: =IF($B51<121,VLOOKUP($B51,Lookups!A:F,6)*(1-VLOOKUP($B51,Lookups!$N$3:$P$103,2))^($A51-$A$3),"") ->  | AI51: =IF($B51<121,VLOOKUP($B51,Lookups!A:G,7)*(1-VLOOKUP($B51,Lookups!$N$3:$P$103,3))^($A51-$A$3),"") -> 
A52: 2069 | B52: 127 | D52: =VLOOKUP(B52,Lookups!A:B,2) -> 14639.34828 | E52: =VLOOKUP(B52,Lookups!A:C,3) -> 1737.016974 | G52: =VLOOKUP(B52,Lookups!A:D,4) -> 146568.8654 | H52: =VLOOKUP(B52,Lookups!A:E,5) -> 119579.8935 | J52: =VLOOKUP(A52,Trends!$A$3:$H$94,IF(ExFlg=0,4,2))+Sens -> 1.051 | K52: 11.47548317 | L52: =VLOOKUP(A52,Trends!$A$3:$H$94,IF(ExFlg=0,5,3))+Sens -> 1.046 | M52: 11.37711411 | N52: =VLOOKUP(A52,Trends!$A$3:$H$94,6)+Sens -> 1.044 | O52: 9.754798522 | Q52: =IF(B52<=120,VLOOKUP(B52,Lookups!$A$3:$I$103,8,FALSE),"") ->  | R52: =VLOOKUP(A52,Trends!$A$3:$H$94,7)+Sens -> 1.045 | S52: 8.643671074 | T52: =IF(B52<=120,VLOOKUP(B52,Lookups!$A$3:$I$103,9,FALSE),"") ->  | U52: =VLOOKUP(A52,Trends!$A$3:$H$94,8)+Sens -> 1.045 | V52: 8.643671074 | AH52: =IF($B52<121,VLOOKUP($B52,Lookups!A:F,6)*(1-VLOOKUP($B52,Lookups!$N$3:$P$103,2))^($A52-$A$3),"") ->  | AI52: =IF($B52<121,VLOOKUP($B52,Lookups!A:G,7)*(1-VLOOKUP($B52,Lookups!$N$3:$P$103,3))^($A52-$A$3),"") -> 
A53: 2070 | B53: 128 | D53: =VLOOKUP(B53,Lookups!A:B,2) -> 14639.34828 | E53: =VLOOKUP(B53,Lookups!A:C,3) -> 1737.016974 | G53: =VLOOKUP(B53,Lookups!A:D,4) -> 146568.8654 | H53: =VLOOKUP(B53,Lookups!A:E,5) -> 119579.8935 | J53: =VLOOKUP(A53,Trends!$A$3:$H$94,IF(ExFlg=0,4,2))+Sens -> 1.051 | K53: 12.06073281 | L53: =VLOOKUP(A53,Trends!$A$3:$H$94,IF(ExFlg=0,5,3))+Sens -> 1.045 | M53: 11.90046136 | N53: =VLOOKUP(A53,Trends!$A$3:$H$94,6)+Sens -> 1.044 | O53: 10.18400966 | Q53: =IF(B53<=120,VLOOKUP(B53,Lookups!$A$3:$I$103,8,FALSE),"") ->  | R53: =VLOOKUP(A53,Trends!$A$3:$H$94,7)+Sens -> 1.045 | S53: 9.032636273 | T53: =IF(B53<=120,VLOOKUP(B53,Lookups!$A$3:$I$103,9,FALSE),"") ->  | U53: =VLOOKUP(A53,Trends!$A$3:$H$94,8)+Sens -> 1.045 | V53: 9.032636273 | AH53: =IF($B53<121,VLOOKUP($B53,Lookups!A:F,6)*(1-VLOOKUP($B53,Lookups!$N$3:$P$103,2))^($A53-$A$3),"") ->  | AI53: =IF($B53<121,VLOOKUP($B53,Lookups!A:G,7)*(1-VLOOKUP($B53,Lookups!$N$3:$P$103,3))^($A53-$A$3),"") -> 
A54: 2071 | B54: 129 | D54: =VLOOKUP(B54,Lookups!A:B,2) -> 14639.34828 | E54: =VLOOKUP(B54,Lookups!A:C,3) -> 1737.016974 | G54: =VLOOKUP(B54,Lookups!A:D,4) -> 146568.8654 | H54: =VLOOKUP(B54,Lookups!A:E,5) -> 119579.8935 | J54: =VLOOKUP(A54,Trends!$A$3:$H$94,IF(ExFlg=0,4,2))+Sens -> 1.051 | K54: 12.67583018 | L54: =VLOOKUP(A54,Trends!$A$3:$H$94,IF(ExFlg=0,5,3))+Sens -> 1.044 | M54: 12.43598212 | N54: =VLOOKUP(A54,Trends!$A$3:$H$94,6)+Sens -> 1.044 | O54: 10.63210608 | Q54: =IF(B54<=120,VLOOKUP(B54,Lookups!$A$3:$I$103,8,FALSE),"") ->  | R54: =VLOOKUP(A54,Trends!$A$3:$H$94,7)+Sens -> 1.045 | S54: 9.439104905 | T54: =IF(B54<=120,VLOOKUP(B54,Lookups!$A$3:$I$103,9,FALSE),"") ->  | U54: =VLOOKUP(A54,Trends!$A$3:$H$94,8)+Sens -> 1.045 | V54: 9.439104905 | AH54: =IF($B54<121,VLOOKUP($B54,Lookups!A:F,6)*(1-VLOOKUP($B54,Lookups!$N$3:$P$103,2))^($A54-$A$3),"") ->  | AI54: =IF($B54<121,VLOOKUP($B54,Lookups!A:G,7)*(1-VLOOKUP($B54,Lookups!$N$3:$P$103,3))^($A54-$A$3),"") -> 
A55: 2072 | B55: 130 | D55: =VLOOKUP(B55,Lookups!A:B,2) -> 14639.34828 | E55: =VLOOKUP(B55,Lookups!A:C,3) -> 1737.016974 | G55: =VLOOKUP(B55,Lookups!A:D,4) -> 146568.8654 | H55: =VLOOKUP(B55,Lookups!A:E,5) -> 119579.8935 | J55: =VLOOKUP(A55,Trends!$A$3:$H$94,IF(ExFlg=0,4,2))+Sens -> 1.051 | K55: 13.32229752 | L55: =VLOOKUP(A55,Trends!$A$3:$H$94,IF(ExFlg=0,5,3))+Sens -> 1.044 | M55: 12.98316534 | N55: =VLOOKUP(A55,Trends!$A$3:$H$94,6)+Sens -> 1.044 | O55: 11.09991875 | Q55: =IF(B55<=120,VLOOKUP(B55,Lookups!$A$3:$I$103,8,FALSE),"") ->  | R55: =VLOOKUP(A55,Trends!$A$3:$H$94,7)+Sens -> 1.045 | S55: 9.863864626 | T55: =IF(B55<=120,VLOOKUP(B55,Lookups!$A$3:$I$103,9,FALSE),"") ->  | U55: =VLOOKUP(A55,Trends!$A$3:$H$94,8)+Sens -> 1.045 | V55: 9.863864626 | AH55: =IF($B55<121,VLOOKUP($B55,Lookups!A:F,6)*(1-VLOOKUP($B55,Lookups!$N$3:$P$103,2))^($A55-$A$3),"") ->  | AI55: =IF($B55<121,VLOOKUP($B55,Lookups!A:G,7)*(1-VLOOKUP($B55,Lookups!$N$3:$P$103,3))^($A55-$A$3),"") -> 
A56: 2073 | B56: 131 | D56: =VLOOKUP(B56,Lookups!A:B,2) -> 14639.34828 | E56: =VLOOKUP(B56,Lookups!A:C,3) -> 1737.016974 | G56: =VLOOKUP(B56,Lookups!A:D,4) -> 146568.8654 | H56: =VLOOKUP(B56,Lookups!A:E,5) -> 119579.8935 | J56: =VLOOKUP(A56,Trends!$A$3:$H$94,IF(ExFlg=0,4,2))+Sens -> 1.051 | K56: 14.00173469 | L56: =VLOOKUP(A56,Trends!$A$3:$H$94,IF(ExFlg=0,5,3))+Sens -> 1.043 | M56: 13.55442461 | N56: =VLOOKUP(A56,Trends!$A$3:$H$94,6)+Sens -> 1.044 | O56: 11.58831517 | Q56: =IF(B56<=120,VLOOKUP(B56,Lookups!$A$3:$I$103,8,FALSE),"") ->  | R56: =VLOOKUP(A56,Trends!$A$3:$H$94,7)+Sens -> 1.045 | S56: 10.30773853 | T56: =IF(B56<=120,VLOOKUP(B56,Lookups!$A$3:$I$103,9,FALSE),"") ->  | U56: =VLOOKUP(A56,Trends!$A$3:$H$94,8)+Sens -> 1.045 | V56: 10.30773853 | AH56: =IF($B56<121,VLOOKUP($B56,Lookups!A:F,6)*(1-VLOOKUP($B56,Lookups!$N$3:$P$103,2))^($A56-$A$3),"") ->  | AI56: =IF($B56<121,VLOOKUP($B56,Lookups!A:G,7)*(1-VLOOKUP($B56,Lookups!$N$3:$P$103,3))^($A56-$A$3),"") -> 
A57: 2074 | B57: 132 | D57: =VLOOKUP(B57,Lookups!A:B,2) -> 14639.34828 | E57: =VLOOKUP(B57,Lookups!A:C,3) -> 1737.016974 | G57: =VLOOKUP(B57,Lookups!A:D,4) -> 146568.8654 | H57: =VLOOKUP(B57,Lookups!A:E,5) -> 119579.8935 | J57: =VLOOKUP(A57,Trends!$A$3:$H$94,IF(ExFlg=0,4,2))+Sens -> 1.051 | K57: 14.71582316 | L57: =VLOOKUP(A57,Trends!$A$3:$H$94,IF(ExFlg=0,5,3))+Sens -> 1.043 | M57: 14.13726487 | N57: =VLOOKUP(A57,Trends!$A$3:$H$94,6)+Sens -> 1.044 | O57: 12.09820104 | Q57: =IF(B57<=120,VLOOKUP(B57,Lookups!$A$3:$I$103,8,FALSE),"") ->  | R57: =VLOOKUP(A57,Trends!$A$3:$H$94,7)+Sens -> 1.045 | S57: 10.77158677 | T57: =IF(B57<=120,VLOOKUP(B57,Lookups!$A$3:$I$103,9,FALSE),"") ->  | U57: =VLOOKUP(A57,Trends!$A$3:$H$94,8)+Sens -> 1.045 | V57: 10.77158677 | AH57: =IF($B57<121,VLOOKUP($B57,Lookups!A:F,6)*(1-VLOOKUP($B57,Lookups!$N$3:$P$103,2))^($A57-$A$3),"") ->  | AI57: =IF($B57<121,VLOOKUP($B57,Lookups!A:G,7)*(1-VLOOKUP($B57,Lookups!$N$3:$P$103,3))^($A57-$A$3),"") -> 
A58: 2075 | B58: 133 | D58: =VLOOKUP(B58,Lookups!A:B,2) -> 14639.34828 | E58: =VLOOKUP(B58,Lookups!A:C,3) -> 1737.016974 | G58: =VLOOKUP(B58,Lookups!A:D,4) -> 146568.8654 | H58: =VLOOKUP(B58,Lookups!A:E,5) -> 119579.8935 | J58: =VLOOKUP(A58,Trends!$A$3:$H$94,IF(ExFlg=0,4,2))+Sens -> 1.051 | K58: 15.46633014 | L58: =VLOOKUP(A58,Trends!$A$3:$H$94,IF(ExFlg=0,5,3))+Sens -> 1.043 | M58: 14.74516726 | N58: =VLOOKUP(A58,Trends!$A$3:$H$94,6)+Sens -> 1.044 | O58: 12.63052189 | Q58: =IF(B58<=120,VLOOKUP(B58,Lookups!$A$3:$I$103,8,FALSE),"") ->  | R58: =VLOOKUP(A58,Trends!$A$3:$H$94,7)+Sens -> 1.045 | S58: 11.25630817 | T58: =IF(B58<=120,VLOOKUP(B58,Lookups!$A$3:$I$103,9,FALSE),"") ->  | U58: =VLOOKUP(A58,Trends!$A$3:$H$94,8)+Sens -> 1.045 | V58: 11.25630817 | AH58: =IF($B58<121,VLOOKUP($B58,Lookups!A:F,6)*(1-VLOOKUP($B58,Lookups!$N$3:$P$103,2))^($A58-$A$3),"") ->  | AI58: =IF($B58<121,VLOOKUP($B58,Lookups!A:G,7)*(1-VLOOKUP($B58,Lookups!$N$3:$P$103,3))^($A58-$A$3),"") -> 
A59: 2076 | B59: 134 | D59: =VLOOKUP(B59,Lookups!A:B,2) -> 14639.34828 | E59: =VLOOKUP(B59,Lookups!A:C,3) -> 1737.016974 | G59: =VLOOKUP(B59,Lookups!A:D,4) -> 146568.8654 | H59: =VLOOKUP(B59,Lookups!A:E,5) -> 119579.8935 | J59: =VLOOKUP(A59,Trends!$A$3:$H$94,IF(ExFlg=0,4,2))+Sens -> 1.051 | K59: 16.25511298 | L59: =VLOOKUP(A59,Trends!$A$3:$H$94,IF(ExFlg=0,5,3))+Sens -> 1.043 | M59: 15.37920945 | N59: =VLOOKUP(A59,Trends!$A$3:$H$94,6)+Sens -> 1.044 | O59: 13.18626485 | Q59: =IF(B59<=120,VLOOKUP(B59,Lookups!$A$3:$I$103,8,FALSE),"") ->  | R59: =VLOOKUP(A59,Trends!$A$3:$H$94,7)+Sens -> 1.045 | S59: 11.76284204 | T59: =IF(B59<=120,VLOOKUP(B59,Lookups!$A$3:$I$103,9,FALSE),"") ->  | U59: =VLOOKUP(A59,Trends!$A$3:$H$94,8)+Sens -> 1.045 | V59: 11.76284204 | AH59: =IF($B59<121,VLOOKUP($B59,Lookups!A:F,6)*(1-VLOOKUP($B59,Lookups!$N$3:$P$103,2))^($A59-$A$3),"") ->  | AI59: =IF($B59<121,VLOOKUP($B59,Lookups!A:G,7)*(1-VLOOKUP($B59,Lookups!$N$3:$P$103,3))^($A59-$A$3),"") -> 
A60: 2077 | B60: 135 | D60: =VLOOKUP(B60,Lookups!A:B,2) -> 14639.34828 | E60: =VLOOKUP(B60,Lookups!A:C,3) -> 1737.016974 | G60: =VLOOKUP(B60,Lookups!A:D,4) -> 146568.8654 | H60: =VLOOKUP(B60,Lookups!A:E,5) -> 119579.8935 | J60: =VLOOKUP(A60,Trends!$A$3:$H$94,IF(ExFlg=0,4,2))+Sens -> 1.051 | K60: 17.08412374 | L60: =VLOOKUP(A60,Trends!$A$3:$H$94,IF(ExFlg=0,5,3))+Sens -> 1.043 | M60: 16.04051546 | N60: =VLOOKUP(A60,Trends!$A$3:$H$94,6)+Sens -> 1.044 | O60: 13.7664605 | Q60: =IF(B60<=120,VLOOKUP(B60,Lookups!$A$3:$I$103,8,FALSE),"") ->  | R60: =VLOOKUP(A60,Trends!$A$3:$H$94,7)+Sens -> 1.045 | S60: 12.29216993 | T60: =IF(B60<=120,VLOOKUP(B60,Lookups!$A$3:$I$103,9,FALSE),"") ->  | U60: =VLOOKUP(A60,Trends!$A$3:$H$94,8)+Sens -> 1.045 | V60: 12.29216993 | AH60: =IF($B60<121,VLOOKUP($B60,Lookups!A:F,6)*(1-VLOOKUP($B60,Lookups!$N$3:$P$103,2))^($A60-$A$3),"") ->  | AI60: =IF($B60<121,VLOOKUP($B60,Lookups!A:G,7)*(1-VLOOKUP($B60,Lookups!$N$3:$P$103,3))^($A60-$A$3),"") -> 
A61: 2078 | B61: 136 | D61: =VLOOKUP(B61,Lookups!A:B,2) -> 14639.34828 | E61: =VLOOKUP(B61,Lookups!A:C,3) -> 1737.016974 | G61: =VLOOKUP(B61,Lookups!A:D,4) -> 146568.8654 | H61: =VLOOKUP(B61,Lookups!A:E,5) -> 119579.8935 | J61: =VLOOKUP(A61,Trends!$A$3:$H$94,IF(ExFlg=0,4,2))+Sens -> 1.051 | K61: 17.95541406 | L61: =VLOOKUP(A61,Trends!$A$3:$H$94,IF(ExFlg=0,5,3))+Sens -> 1.043 | M61: 16.73025762 | N61: =VLOOKUP(A61,Trends!$A$3:$H$94,6)+Sens -> 1.044 | O61: 14.37218477 | Q61: =IF(B61<=120,VLOOKUP(B61,Lookups!$A$3:$I$103,8,FALSE),"") ->  | R61: =VLOOKUP(A61,Trends!$A$3:$H$94,7)+Sens -> 1.045 | S61: 12.84531758 | T61: =IF(B61<=120,VLOOKUP(B61,Lookups!$A$3:$I$103,9,FALSE),"") ->  | U61: =VLOOKUP(A61,Trends!$A$3:$H$94,8)+Sens -> 1.045 | V61: 12.84531758 | AH61: =IF($B61<121,VLOOKUP($B61,Lookups!A:F,6)*(1-VLOOKUP($B61,Lookups!$N$3:$P$103,2))^($A61-$A$3),"") ->  | AI61: =IF($B61<121,VLOOKUP($B61,Lookups!A:G,7)*(1-VLOOKUP($B61,Lookups!$N$3:$P$103,3))^($A61-$A$3),"") -> 
A62: 2079 | B62: 137 | D62: =VLOOKUP(B62,Lookups!A:B,2) -> 14639.34828 | E62: =VLOOKUP(B62,Lookups!A:C,3) -> 1737.016974 | G62: =VLOOKUP(B62,Lookups!A:D,4) -> 146568.8654 | H62: =VLOOKUP(B62,Lookups!A:E,5) -> 119579.8935 | J62: =VLOOKUP(A62,Trends!$A$3:$H$94,IF(ExFlg=0,4,2))+Sens -> 1.051 | K62: 18.87114017 | L62: =VLOOKUP(A62,Trends!$A$3:$H$94,IF(ExFlg=0,5,3))+Sens -> 1.043 | M62: 17.4496587 | N62: =VLOOKUP(A62,Trends!$A$3:$H$94,6)+Sens -> 1.043 | O62: 15.0045609 | Q62: =IF(B62<=120,VLOOKUP(B62,Lookups!$A$3:$I$103,8,FALSE),"") ->  | R62: =VLOOKUP(A62,Trends!$A$3:$H$94,7)+Sens -> 1.045 | S62: 13.42335687 | T62: =IF(B62<=120,VLOOKUP(B62,Lookups!$A$3:$I$103,9,FALSE),"") ->  | U62: =VLOOKUP(A62,Trends!$A$3:$H$94,8)+Sens -> 1.045 | V62: 13.42335687 | AH62: =IF($B62<121,VLOOKUP($B62,Lookups!A:F,6)*(1-VLOOKUP($B62,Lookups!$N$3:$P$103,2))^($A62-$A$3),"") ->  | AI62: =IF($B62<121,VLOOKUP($B62,Lookups!A:G,7)*(1-VLOOKUP($B62,Lookups!$N$3:$P$103,3))^($A62-$A$3),"") -> 
A63: 2080 | B63: 138 | D63: =VLOOKUP(B63,Lookups!A:B,2) -> 14639.34828 | E63: =VLOOKUP(B63,Lookups!A:C,3) -> 1737.016974 | G63: =VLOOKUP(B63,Lookups!A:D,4) -> 146568.8654 | H63: =VLOOKUP(B63,Lookups!A:E,5) -> 119579.8935 | J63: =VLOOKUP(A63,Trends!$A$3:$H$94,IF(ExFlg=0,4,2))+Sens -> 1.051 | K63: 19.83356832 | L63: =VLOOKUP(A63,Trends!$A$3:$H$94,IF(ExFlg=0,5,3))+Sens -> 1.043 | M63: 18.19999402 | N63: =VLOOKUP(A63,Trends!$A$3:$H$94,6)+Sens -> 1.043 | O63: 15.64975702 | Q63: =IF(B63<=120,VLOOKUP(B63,Lookups!$A$3:$I$103,8,FALSE),"") ->  | R63: =VLOOKUP(A63,Trends!$A$3:$H$94,7)+Sens -> 1.045 | S63: 14.02740793 | T63: =IF(B63<=120,VLOOKUP(B63,Lookups!$A$3:$I$103,9,FALSE),"") ->  | U63: =VLOOKUP(A63,Trends!$A$3:$H$94,8)+Sens -> 1.045 | V63: 14.02740793 | AH63: =IF($B63<121,VLOOKUP($B63,Lookups!A:F,6)*(1-VLOOKUP($B63,Lookups!$N$3:$P$103,2))^($A63-$A$3),"") ->  | AI63: =IF($B63<121,VLOOKUP($B63,Lookups!A:G,7)*(1-VLOOKUP($B63,Lookups!$N$3:$P$103,3))^($A63-$A$3),"") -> 
A64: 2081 | B64: 139 | D64: =VLOOKUP(B64,Lookups!A:B,2) -> 14639.34828 | E64: =VLOOKUP(B64,Lookups!A:C,3) -> 1737.016974 | G64: =VLOOKUP(B64,Lookups!A:D,4) -> 146568.8654 | H64: =VLOOKUP(B64,Lookups!A:E,5) -> 119579.8935 | J64: =VLOOKUP(A64,Trends!$A$3:$H$94,IF(ExFlg=0,4,2))+Sens -> 1.051 | K64: 20.84508031 | L64: =VLOOKUP(A64,Trends!$A$3:$H$94,IF(ExFlg=0,5,3))+Sens -> 1.043 | M64: 18.98259377 | N64: =VLOOKUP(A64,Trends!$A$3:$H$94,6)+Sens -> 1.043 | O64: 16.32269657 | Q64: =IF(B64<=120,VLOOKUP(B64,Lookups!$A$3:$I$103,8,FALSE),"") ->  | R64: =VLOOKUP(A64,Trends!$A$3:$H$94,7)+Sens -> 1.045 | S64: 14.65864129 | T64: =IF(B64<=120,VLOOKUP(B64,Lookups!$A$3:$I$103,9,FALSE),"") ->  | U64: =VLOOKUP(A64,Trends!$A$3:$H$94,8)+Sens -> 1.045 | V64: 14.65864129 | AH64: =IF($B64<121,VLOOKUP($B64,Lookups!A:F,6)*(1-VLOOKUP($B64,Lookups!$N$3:$P$103,2))^($A64-$A$3),"") ->  | AI64: =IF($B64<121,VLOOKUP($B64,Lookups!A:G,7)*(1-VLOOKUP($B64,Lookups!$N$3:$P$103,3))^($A64-$A$3),"") -> 
A65: 2082 | B65: 140 | D65: =VLOOKUP(B65,Lookups!A:B,2) -> 14639.34828 | E65: =VLOOKUP(B65,Lookups!A:C,3) -> 1737.016974 | G65: =VLOOKUP(B65,Lookups!A:D,4) -> 146568.8654 | H65: =VLOOKUP(B65,Lookups!A:E,5) -> 119579.8935 | J65: =VLOOKUP(A65,Trends!$A$3:$H$94,IF(ExFlg=0,4,2))+Sens -> 1.051 | K65: 21.9081794 | L65: =VLOOKUP(A65,Trends!$A$3:$H$94,IF(ExFlg=0,5,3))+Sens -> 1.043 | M65: 19.7988453 | N65: =VLOOKUP(A65,Trends!$A$3:$H$94,6)+Sens -> 1.043 | O65: 17.02457252 | Q65: =IF(B65<=120,VLOOKUP(B65,Lookups!$A$3:$I$103,8,FALSE),"") ->  | R65: =VLOOKUP(A65,Trends!$A$3:$H$94,7)+Sens -> 1.045 | S65: 15.31828014 | T65: =IF(B65<=120,VLOOKUP(B65,Lookups!$A$3:$I$103,9,FALSE),"") ->  | U65: =VLOOKUP(A65,Trends!$A$3:$H$94,8)+Sens -> 1.045 | V65: 15.31828014 | AH65: =IF($B65<121,VLOOKUP($B65,Lookups!A:F,6)*(1-VLOOKUP($B65,Lookups!$N$3:$P$103,2))^($A65-$A$3),"") ->  | AI65: =IF($B65<121,VLOOKUP($B65,Lookups!A:G,7)*(1-VLOOKUP($B65,Lookups!$N$3:$P$103,3))^($A65-$A$3),"") -> 
A66: 2083 | B66: 141 | D66: =VLOOKUP(B66,Lookups!A:B,2) -> 14639.34828 | E66: =VLOOKUP(B66,Lookups!A:C,3) -> 1737.016974 | G66: =VLOOKUP(B66,Lookups!A:D,4) -> 146568.8654 | H66: =VLOOKUP(B66,Lookups!A:E,5) -> 119579.8935 | J66: =VLOOKUP(A66,Trends!$A$3:$H$94,IF(ExFlg=0,4,2))+Sens -> 1.051 | K66: 23.02549655 | L66: =VLOOKUP(A66,Trends!$A$3:$H$94,IF(ExFlg=0,5,3))+Sens -> 1.043 | M66: 20.65019565 | N66: =VLOOKUP(A66,Trends!$A$3:$H$94,6)+Sens -> 1.043 | O66: 17.75662914 | Q66: =IF(B66<=120,VLOOKUP(B66,Lookups!$A$3:$I$103,8,FALSE),"") ->  | R66: =VLOOKUP(A66,Trends!$A$3:$H$94,7)+Sens -> 1.045 | S66: 16.00760275 | T66: =IF(B66<=120,VLOOKUP(B66,Lookups!$A$3:$I$103,9,FALSE),"") ->  | U66: =VLOOKUP(A66,Trends!$A$3:$H$94,8)+Sens -> 1.045 | V66: 16.00760275 | AH66: =IF($B66<121,VLOOKUP($B66,Lookups!A:F,6)*(1-VLOOKUP($B66,Lookups!$N$3:$P$103,2))^($A66-$A$3),"") ->  | AI66: =IF($B66<121,VLOOKUP($B66,Lookups!A:G,7)*(1-VLOOKUP($B66,Lookups!$N$3:$P$103,3))^($A66-$A$3),"") -> 
A67: 2084 | B67: 142 | D67: =VLOOKUP(B67,Lookups!A:B,2) -> 14639.34828 | E67: =VLOOKUP(B67,Lookups!A:C,3) -> 1737.016974 | G67: =VLOOKUP(B67,Lookups!A:D,4) -> 146568.8654 | H67: =VLOOKUP(B67,Lookups!A:E,5) -> 119579.8935 | J67: =VLOOKUP(A67,Trends!$A$3:$H$94,IF(ExFlg=0,4,2))+Sens -> 1.051 | K67: 24.19979687 | L67: =VLOOKUP(A67,Trends!$A$3:$H$94,IF(ExFlg=0,5,3))+Sens -> 1.043 | M67: 21.53815406 | N67: =VLOOKUP(A67,Trends!$A$3:$H$94,6)+Sens -> 1.043 | O67: 18.52016419 | Q67: =IF(B67<=120,VLOOKUP(B67,Lookups!$A$3:$I$103,8,FALSE),"") ->  | R67: =VLOOKUP(A67,Trends!$A$3:$H$94,7)+Sens -> 1.045 | S67: 16.72794487 | T67: =IF(B67<=120,VLOOKUP(B67,Lookups!$A$3:$I$103,9,FALSE),"") ->  | U67: =VLOOKUP(A67,Trends!$A$3:$H$94,8)+Sens -> 1.045 | V67: 16.72794487 | AH67: =IF($B67<121,VLOOKUP($B67,Lookups!A:F,6)*(1-VLOOKUP($B67,Lookups!$N$3:$P$103,2))^($A67-$A$3),"") ->  | AI67: =IF($B67<121,VLOOKUP($B67,Lookups!A:G,7)*(1-VLOOKUP($B67,Lookups!$N$3:$P$103,3))^($A67-$A$3),"") ->  | AJ67: =IF(B67<121,(PCTMALE*AH67+(1-PCTMALE)*AI67),"") ->  | AM67: =IF(AJ67="","",ROUND((13/24)+(11/24)*(1/(1+IntRt))*(1-AJ67),6)) -> 
A68: =1+A67 -> 2085 | B68: =1+B67 -> 143 | D68: =VLOOKUP(B68,Lookups!A:B,2) -> 14639.34828 | E68: =VLOOKUP(B68,Lookups!A:C,3) -> 1737.016974 | G68: =VLOOKUP(B68,Lookups!A:D,4) -> 146568.8654 | H68: =VLOOKUP(B68,Lookups!A:E,5) -> 119579.8935 | J68: =VLOOKUP(A68,Trends!$A$3:$H$94,IF(ExFlg=0,4,2))+Sens -> 1.051 | K68: 25.43398651 | L68: =VLOOKUP(A68,Trends!$A$3:$H$94,IF(ExFlg=0,5,3))+Sens -> 1.043 | M68: 22.46429468 | N68: =VLOOKUP(A68,Trends!$A$3:$H$94,6)+Sens -> 1.043 | O68: 19.31653125 | Q68: =IF(B68<=120,VLOOKUP(B68,Lookups!$A$3:$I$103,8,FALSE),"") ->  | R68: =VLOOKUP(A68,Trends!$A$3:$H$94,7)+Sens -> 1.045 | S68: 17.48070239 | T68: =IF(B68<=120,VLOOKUP(B68,Lookups!$A$3:$I$103,9,FALSE),"") ->  | U68: =VLOOKUP(A68,Trends!$A$3:$H$94,8)+Sens -> 1.045 | V68: 17.48070239 | X68: =IF(B68<=120,IF(B68<65,D68*K68,D68*M68),"") ->  | Y68: =IF(B68<=120,E68*O68,"") ->  | Z68: =IF(B68<=120,X68+Y68,"") ->  | AB68: =IF(B68<=120,G68*Q68*S68,"") ->  | AC68: =IF(B68<=120,H68*T68*V68,"") ->  | AD68: =IF(B68<=120,AB68+AC68,"") ->  | AF68: =IF(B68<=120,Z68+AD68, "") ->  | AH68: =IF($B68<121,VLOOKUP($B68,Lookups!A:F,6)*(1-VLOOKUP($B68,Lookups!$N$3:$P$103,2))^($A68-$A$3),"") ->  | AI68: =IF($B68<121,VLOOKUP($B68,Lookups!A:G,7)*(1-VLOOKUP($B68,Lookups!$N$3:$P$103,3))^($A68-$A$3),"") ->  | AL68: =IF(B68<121,AL67/(1+IntRt),"") ->  | AP68: =IF(B68<=120,AF68*AK68*AL68*AM68,"") -> 
A69: 2086 | B69: 144 | D69: =VLOOKUP(B69,Lookups!A:B,2) -> 14639.34828 | E69: =VLOOKUP(B69,Lookups!A:C,3) -> 1737.016974 | G69: =VLOOKUP(B69,Lookups!A:D,4) -> 146568.8654 | H69: =VLOOKUP(B69,Lookups!A:E,5) -> 119579.8935 | J69: =VLOOKUP(A69,Trends!$A$3:$H$94,IF(ExFlg=0,4,2))+Sens -> 1.051 | K69: =K68*J68 -> 26.73111983 | L69: =VLOOKUP(A69,Trends!$A$3:$H$94,IF(ExFlg=0,5,3))+Sens -> 1.043 | M69: 23.43025935 | N69: =VLOOKUP(A69,Trends!$A$3:$H$94,6)+Sens -> 1.043 | O69: =O68*N68 -> 20.14714209 | Q69: =IF(B69<=120,VLOOKUP(B69,Lookups!$A$3:$I$103,8,FALSE),"") ->  | R69: =VLOOKUP(A69,Trends!$A$3:$H$94,7)+Sens -> 1.045 | S69: =S68*R68 -> 18.267334 | T69: =IF(B69<=120,VLOOKUP(B69,Lookups!$A$3:$I$103,9,FALSE),"") ->  | U69: =VLOOKUP(A69,Trends!$A$3:$H$94,8)+Sens -> 1.045 | V69: =V68*U68 -> 18.267334 | AH69: =IF($B69<121,VLOOKUP($B69,Lookups!A:F,6)*(1-VLOOKUP($B69,Lookups!$N$3:$P$103,2))^($A69-$A$3),"") ->  | AI69: =IF($B69<121,VLOOKUP($B69,Lookups!A:G,7)*(1-VLOOKUP($B69,Lookups!$N$3:$P$103,3))^($A69-$A$3),"") ->  | AK69: =IF(B69<121,AK68*(1-AJ68),"") -> 
A70: 2087 | B70: 145 | D70: =VLOOKUP(B70,Lookups!A:B,2) -> 14639.34828 | E70: =VLOOKUP(B70,Lookups!A:C,3) -> 1737.016974 | G70: =VLOOKUP(B70,Lookups!A:D,4) -> 146568.8654 | H70: =VLOOKUP(B70,Lookups!A:E,5) -> 119579.8935 | J70: =VLOOKUP(A70,Trends!$A$3:$H$94,IF(ExFlg=0,4,2))+Sens -> 1.051 | K70: 28.09440694 | L70: =VLOOKUP(A70,Trends!$A$3:$H$94,IF(ExFlg=0,5,3))+Sens -> 1.043 | M70: 24.43776051 | N70: =VLOOKUP(A70,Trends!$A$3:$H$94,6)+Sens -> 1.043 | O70: 21.0134692 | Q70: =IF(B70<=120,VLOOKUP(B70,Lookups!$A$3:$I$103,8,FALSE),"") ->  | R70: =VLOOKUP(A70,Trends!$A$3:$H$94,7)+Sens -> 1.045 | S70: 19.08936403 | T70: =IF(B70<=120,VLOOKUP(B70,Lookups!$A$3:$I$103,9,FALSE),"") ->  | U70: =VLOOKUP(A70,Trends!$A$3:$H$94,8)+Sens -> 1.045 | V70: 19.08936403 | AH70: =IF($B70<121,VLOOKUP($B70,Lookups!A:F,6)*(1-VLOOKUP($B70,Lookups!$N$3:$P$103,2))^($A70-$A$3),"") ->  | AI70: =IF($B70<121,VLOOKUP($B70,Lookups!A:G,7)*(1-VLOOKUP($B70,Lookups!$N$3:$P$103,3))^($A70-$A$3),"") -> 
A71: 2088 | B71: 146 | D71: =VLOOKUP(B71,Lookups!A:B,2) -> 14639.34828 | E71: =VLOOKUP(B71,Lookups!A:C,3) -> 1737.016974 | G71: =VLOOKUP(B71,Lookups!A:D,4) -> 146568.8654 | H71: =VLOOKUP(B71,Lookups!A:E,5) -> 119579.8935 | J71: =VLOOKUP(A71,Trends!$A$3:$H$94,IF(ExFlg=0,4,2))+Sens -> 1.051 | K71: 29.52722169 | L71: =VLOOKUP(A71,Trends!$A$3:$H$94,IF(ExFlg=0,5,3))+Sens -> 1.043 | M71: 25.48858421 | N71: =VLOOKUP(A71,Trends!$A$3:$H$94,6)+Sens -> 1.043 | O71: 21.91704838 | Q71: =IF(B71<=120,VLOOKUP(B71,Lookups!$A$3:$I$103,8,FALSE),"") ->  | R71: =VLOOKUP(A71,Trends!$A$3:$H$94,7)+Sens -> 1.045 | S71: 19.94838541 | T71: =IF(B71<=120,VLOOKUP(B71,Lookups!$A$3:$I$103,9,FALSE),"") ->  | U71: =VLOOKUP(A71,Trends!$A$3:$H$94,8)+Sens -> 1.045 | V71: 19.94838541 | AH71: =IF($B71<121,VLOOKUP($B71,Lookups!A:F,6)*(1-VLOOKUP($B71,Lookups!$N$3:$P$103,2))^($A71-$A$3),"") ->  | AI71: =IF($B71<121,VLOOKUP($B71,Lookups!A:G,7)*(1-VLOOKUP($B71,Lookups!$N$3:$P$103,3))^($A71-$A$3),"") -> 
A72: 2089 | B72: 147 | D72: =VLOOKUP(B72,Lookups!A:B,2) -> 14639.34828 | E72: =VLOOKUP(B72,Lookups!A:C,3) -> 1737.016974 | G72: =VLOOKUP(B72,Lookups!A:D,4) -> 146568.8654 | H72: =VLOOKUP(B72,Lookups!A:E,5) -> 119579.8935 | J72: =VLOOKUP(A72,Trends!$A$3:$H$94,IF(ExFlg=0,4,2))+Sens -> 1.051 | K72: 31.03311 | L72: =VLOOKUP(A72,Trends!$A$3:$H$94,IF(ExFlg=0,5,3))+Sens -> 1.043 | M72: 26.58459333 | N72: =VLOOKUP(A72,Trends!$A$3:$H$94,6)+Sens -> 1.043 | O72: 22.85948146 | Q72: =IF(B72<=120,VLOOKUP(B72,Lookups!$A$3:$I$103,8,FALSE),"") ->  | R72: =VLOOKUP(A72,Trends!$A$3:$H$94,7)+Sens -> 1.045 | S72: 20.84606276 | T72: =IF(B72<=120,VLOOKUP(B72,Lookups!$A$3:$I$103,9,FALSE),"") ->  | U72: =VLOOKUP(A72,Trends!$A$3:$H$94,8)+Sens -> 1.045 | V72: 20.84606276 | AH72: =IF($B72<121,VLOOKUP($B72,Lookups!A:F,6)*(1-VLOOKUP($B72,Lookups!$N$3:$P$103,2))^($A72-$A$3),"") ->  | AI72: =IF($B72<121,VLOOKUP($B72,Lookups!A:G,7)*(1-VLOOKUP($B72,Lookups!$N$3:$P$103,3))^($A72-$A$3),"") -> 
A73: 2090 | B73: 148 | D73: =VLOOKUP(B73,Lookups!A:B,2) -> 14639.34828 | E73: =VLOOKUP(B73,Lookups!A:C,3) -> 1737.016974 | G73: =VLOOKUP(B73,Lookups!A:D,4) -> 146568.8654 | H73: =VLOOKUP(B73,Lookups!A:E,5) -> 119579.8935 | J73: =VLOOKUP(A73,Trends!$A$3:$H$94,IF(ExFlg=0,4,2))+Sens -> 1.051 | K73: 32.61579861 | L73: =VLOOKUP(A73,Trends!$A$3:$H$94,IF(ExFlg=0,5,3))+Sens -> 1.043 | M73: 27.72773084 | N73: =VLOOKUP(A73,Trends!$A$3:$H$94,6)+Sens -> 1.043 | O73: 23.84243916 | Q73: =IF(B73<=120,VLOOKUP(B73,Lookups!$A$3:$I$103,8,FALSE),"") ->  | R73: =VLOOKUP(A73,Trends!$A$3:$H$94,7)+Sens -> 1.045 | S73: 21.78413558 | T73: =IF(B73<=120,VLOOKUP(B73,Lookups!$A$3:$I$103,9,FALSE),"") ->  | U73: =VLOOKUP(A73,Trends!$A$3:$H$94,8)+Sens -> 1.045 | V73: 21.78413558 | AH73: =IF($B73<121,VLOOKUP($B73,Lookups!A:F,6)*(1-VLOOKUP($B73,Lookups!$N$3:$P$103,2))^($A73-$A$3),"") ->  | AI73: =IF($B73<121,VLOOKUP($B73,Lookups!A:G,7)*(1-VLOOKUP($B73,Lookups!$N$3:$P$103,3))^($A73-$A$3),"") -> 
A74: 2091 | B74: 149 | D74: =VLOOKUP(B74,Lookups!A:B,2) -> 14639.34828 | E74: =VLOOKUP(B74,Lookups!A:C,3) -> 1737.016974 | G74: =VLOOKUP(B74,Lookups!A:D,4) -> 146568.8654 | H74: =VLOOKUP(B74,Lookups!A:E,5) -> 119579.8935 | J74: =VLOOKUP(A74,Trends!$A$3:$H$94,IF(ExFlg=0,4,2))+Sens -> 1.051 | K74: 34.27920434 | L74: =VLOOKUP(A74,Trends!$A$3:$H$94,IF(ExFlg=0,5,3))+Sens -> 1.043 | M74: 28.92002327 | N74: =VLOOKUP(A74,Trends!$A$3:$H$94,6)+Sens -> 1.043 | O74: 24.86766405 | Q74: =IF(B74<=120,VLOOKUP(B74,Lookups!$A$3:$I$103,8,FALSE),"") ->  | R74: =VLOOKUP(A74,Trends!$A$3:$H$94,7)+Sens -> 1.045 | S74: 22.76442168 | T74: =IF(B74<=120,VLOOKUP(B74,Lookups!$A$3:$I$103,9,FALSE),"") ->  | U74: =VLOOKUP(A74,Trends!$A$3:$H$94,8)+Sens -> 1.045 | V74: 22.76442168 | AH74: =IF($B74<121,VLOOKUP($B74,Lookups!A:F,6)*(1-VLOOKUP($B74,Lookups!$N$3:$P$103,2))^($A74-$A$3),"") ->  | AI74: =IF($B74<121,VLOOKUP($B74,Lookups!A:G,7)*(1-VLOOKUP($B74,Lookups!$N$3:$P$103,3))^($A74-$A$3),"") -> 
A75: 2092 | B75: 150 | D75: =VLOOKUP(B75,Lookups!A:B,2) -> 14639.34828 | E75: =VLOOKUP(B75,Lookups!A:C,3) -> 1737.016974 | G75: =VLOOKUP(B75,Lookups!A:D,4) -> 146568.8654 | H75: =VLOOKUP(B75,Lookups!A:E,5) -> 119579.8935 | J75: =VLOOKUP(A75,Trends!$A$3:$H$94,IF(ExFlg=0,4,2))+Sens -> 1.051 | K75: 36.02744376 | L75: =VLOOKUP(A75,Trends!$A$3:$H$94,IF(ExFlg=0,5,3))+Sens -> 1.043 | M75: 30.16358427 | N75: =VLOOKUP(A75,Trends!$A$3:$H$94,6)+Sens -> 1.043 | O75: 25.9369736 | Q75: =IF(B75<=120,VLOOKUP(B75,Lookups!$A$3:$I$103,8,FALSE),"") ->  | R75: =VLOOKUP(A75,Trends!$A$3:$H$94,7)+Sens -> 1.045 | S75: 23.78882066 | T75: =IF(B75<=120,VLOOKUP(B75,Lookups!$A$3:$I$103,9,FALSE),"") ->  | U75: =VLOOKUP(A75,Trends!$A$3:$H$94,8)+Sens -> 1.045 | V75: 23.78882066 | AH75: =IF($B75<121,VLOOKUP($B75,Lookups!A:F,6)*(1-VLOOKUP($B75,Lookups!$N$3:$P$103,2))^($A75-$A$3),"") ->  | AI75: =IF($B75<121,VLOOKUP($B75,Lookups!A:G,7)*(1-VLOOKUP($B75,Lookups!$N$3:$P$103,3))^($A75-$A$3),"") -> 
A76: 2093 | B76: 151 | D76: =VLOOKUP(B76,Lookups!A:B,2) -> 14639.34828 | E76: =VLOOKUP(B76,Lookups!A:C,3) -> 1737.016974 | G76: =VLOOKUP(B76,Lookups!A:D,4) -> 146568.8654 | H76: =VLOOKUP(B76,Lookups!A:E,5) -> 119579.8935 | J76: =VLOOKUP(A76,Trends!$A$3:$H$94,IF(ExFlg=0,4,2))+Sens -> 1.051 | K76: 37.86484339 | L76: =VLOOKUP(A76,Trends!$A$3:$H$94,IF(ExFlg=0,5,3))+Sens -> 1.043 | M76: 31.46061839 | N76: =VLOOKUP(A76,Trends!$A$3:$H$94,6)+Sens -> 1.043 | O76: 27.05226347 | Q76: =IF(B76<=120,VLOOKUP(B76,Lookups!$A$3:$I$103,8,FALSE),"") ->  | R76: =VLOOKUP(A76,Trends!$A$3:$H$94,7)+Sens -> 1.045 | S76: 24.85931759 | T76: =IF(B76<=120,VLOOKUP(B76,Lookups!$A$3:$I$103,9,FALSE),"") ->  | U76: =VLOOKUP(A76,Trends!$A$3:$H$94,8)+Sens -> 1.045 | V76: 24.85931759 | AH76: =IF($B76<121,VLOOKUP($B76,Lookups!A:F,6)*(1-VLOOKUP($B76,Lookups!$N$3:$P$103,2))^($A76-$A$3),"") ->  | AI76: =IF($B76<121,VLOOKUP($B76,Lookups!A:G,7)*(1-VLOOKUP($B76,Lookups!$N$3:$P$103,3))^($A76-$A$3),"") -> 
A77: 2094 | B77: 152 | D77: =VLOOKUP(B77,Lookups!A:B,2) -> 14639.34828 | E77: =VLOOKUP(B77,Lookups!A:C,3) -> 1737.016974 | G77: =VLOOKUP(B77,Lookups!A:D,4) -> 146568.8654 | H77: =VLOOKUP(B77,Lookups!A:E,5) -> 119579.8935 | J77: =VLOOKUP(A77,Trends!$A$3:$H$94,IF(ExFlg=0,4,2))+Sens -> 1.051 | K77: 39.7959504 | L77: =VLOOKUP(A77,Trends!$A$3:$H$94,IF(ExFlg=0,5,3))+Sens -> 1.043 | M77: 32.81342498 | N77: =VLOOKUP(A77,Trends!$A$3:$H$94,6)+Sens -> 1.043 | O77: 28.2155108 | Q77: =IF(B77<=120,VLOOKUP(B77,Lookups!$A$3:$I$103,8,FALSE),"") ->  | R77: =VLOOKUP(A77,Trends!$A$3:$H$94,7)+Sens -> 1.045 | S77: 25.97798688 | T77: =IF(B77<=120,VLOOKUP(B77,Lookups!$A$3:$I$103,9,FALSE),"") ->  | U77: =VLOOKUP(A77,Trends!$A$3:$H$94,8)+Sens -> 1.045 | V77: 25.97798688 | AH77: =IF($B77<121,VLOOKUP($B77,Lookups!A:F,6)*(1-VLOOKUP($B77,Lookups!$N$3:$P$103,2))^($A77-$A$3),"") ->  | AI77: =IF($B77<121,VLOOKUP($B77,Lookups!A:G,7)*(1-VLOOKUP($B77,Lookups!$N$3:$P$103,3))^($A77-$A$3),"") -> 
A78: 2095 | B78: 153 | D78: =VLOOKUP(B78,Lookups!A:B,2) -> 14639.34828 | E78: =VLOOKUP(B78,Lookups!A:C,3) -> 1737.016974 | G78: =VLOOKUP(B78,Lookups!A:D,4) -> 146568.8654 | H78: =VLOOKUP(B78,Lookups!A:E,5) -> 119579.8935 | J78: =VLOOKUP(A78,Trends!$A$3:$H$94,IF(ExFlg=0,4,2))+Sens -> 1.051 | K78: 41.82554387 | L78: =VLOOKUP(A78,Trends!$A$3:$H$94,IF(ExFlg=0,5,3))+Sens -> 1.043 | M78: 34.22440226 | N78: =VLOOKUP(A78,Trends!$A$3:$H$94,6)+Sens -> 1.043 | O78: 29.42877776 | Q78: =IF(B78<=120,VLOOKUP(B78,Lookups!$A$3:$I$103,8,FALSE),"") ->  | R78: =VLOOKUP(A78,Trends!$A$3:$H$94,7)+Sens -> 1.045 | S78: 27.14699629 | T78: =IF(B78<=120,VLOOKUP(B78,Lookups!$A$3:$I$103,9,FALSE),"") ->  | U78: =VLOOKUP(A78,Trends!$A$3:$H$94,8)+Sens -> 1.045 | V78: 27.14699629 | AH78: =IF($B78<121,VLOOKUP($B78,Lookups!A:F,6)*(1-VLOOKUP($B78,Lookups!$N$3:$P$103,2))^($A78-$A$3),"") ->  | AI78: =IF($B78<121,VLOOKUP($B78,Lookups!A:G,7)*(1-VLOOKUP($B78,Lookups!$N$3:$P$103,3))^($A78-$A$3),"") -> 
A79: 2096 | B79: 154 | D79: =VLOOKUP(B79,Lookups!A:B,2) -> 14639.34828 | E79: =VLOOKUP(B79,Lookups!A:C,3) -> 1737.016974 | G79: =VLOOKUP(B79,Lookups!A:D,4) -> 146568.8654 | H79: =VLOOKUP(B79,Lookups!A:E,5) -> 119579.8935 | J79: =VLOOKUP(A79,Trends!$A$3:$H$94,IF(ExFlg=0,4,2))+Sens -> 1.051 | K79: 43.95864661 | L79: =VLOOKUP(A79,Trends!$A$3:$H$94,IF(ExFlg=0,5,3))+Sens -> 1.043 | M79: 35.69605156 | N79: =VLOOKUP(A79,Trends!$A$3:$H$94,6)+Sens -> 1.043 | O79: 30.6942152 | Q79: =IF(B79<=120,VLOOKUP(B79,Lookups!$A$3:$I$103,8,FALSE),"") ->  | R79: =VLOOKUP(A79,Trends!$A$3:$H$94,7)+Sens -> 1.045 | S79: 28.36861112 | T79: =IF(B79<=120,VLOOKUP(B79,Lookups!$A$3:$I$103,9,FALSE),"") ->  | U79: =VLOOKUP(A79,Trends!$A$3:$H$94,8)+Sens -> 1.045 | V79: 28.36861112 | AH79: =IF($B79<121,VLOOKUP($B79,Lookups!A:F,6)*(1-VLOOKUP($B79,Lookups!$N$3:$P$103,2))^($A79-$A$3),"") ->  | AI79: =IF($B79<121,VLOOKUP($B79,Lookups!A:G,7)*(1-VLOOKUP($B79,Lookups!$N$3:$P$103,3))^($A79-$A$3),"") -> 
A80: 2097 | B80: 155 | D80: =VLOOKUP(B80,Lookups!A:B,2) -> 14639.34828 | E80: =VLOOKUP(B80,Lookups!A:C,3) -> 1737.016974 | G80: =VLOOKUP(B80,Lookups!A:D,4) -> 146568.8654 | H80: =VLOOKUP(B80,Lookups!A:E,5) -> 119579.8935 | J80: =VLOOKUP(A80,Trends!$A$3:$H$94,IF(ExFlg=0,4,2))+Sens -> 1.051 | K80: 46.20053759 | L80: =VLOOKUP(A80,Trends!$A$3:$H$94,IF(ExFlg=0,5,3))+Sens -> 1.043 | M80: 37.23098177 | N80: =VLOOKUP(A80,Trends!$A$3:$H$94,6)+Sens -> 1.043 | O80: 32.01406646 | Q80: =IF(B80<=120,VLOOKUP(B80,Lookups!$A$3:$I$103,8,FALSE),"") ->  | R80: =VLOOKUP(A80,Trends!$A$3:$H$94,7)+Sens -> 1.045 | S80: 29.64519862 | T80: =IF(B80<=120,VLOOKUP(B80,Lookups!$A$3:$I$103,9,FALSE),"") ->  | U80: =VLOOKUP(A80,Trends!$A$3:$H$94,8)+Sens -> 1.045 | V80: 29.64519862 | AH80: =IF($B80<121,VLOOKUP($B80,Lookups!A:F,6)*(1-VLOOKUP($B80,Lookups!$N$3:$P$103,2))^($A80-$A$3),"") ->  | AI80: =IF($B80<121,VLOOKUP($B80,Lookups!A:G,7)*(1-VLOOKUP($B80,Lookups!$N$3:$P$103,3))^($A80-$A$3),"") -> 
A81: 2098 | B81: 156 | D81: =VLOOKUP(B81,Lookups!A:B,2) -> 14639.34828 | E81: =VLOOKUP(B81,Lookups!A:C,3) -> 1737.016974 | G81: =VLOOKUP(B81,Lookups!A:D,4) -> 146568.8654 | H81: =VLOOKUP(B81,Lookups!A:E,5) -> 119579.8935 | J81: =VLOOKUP(A81,Trends!$A$3:$H$94,IF(ExFlg=0,4,2))+Sens -> 1.051 | K81: 48.55676501 | L81: =VLOOKUP(A81,Trends!$A$3:$H$94,IF(ExFlg=0,5,3))+Sens -> 1.043 | M81: 38.83191399 | N81: =VLOOKUP(A81,Trends!$A$3:$H$94,6)+Sens -> 1.043 | O81: 33.39067131 | Q81: =IF(B81<=120,VLOOKUP(B81,Lookups!$A$3:$I$103,8,FALSE),"") ->  | R81: =VLOOKUP(A81,Trends!$A$3:$H$94,7)+Sens -> 1.045 | S81: 30.97923256 | T81: =IF(B81<=120,VLOOKUP(B81,Lookups!$A$3:$I$103,9,FALSE),"") ->  | U81: =VLOOKUP(A81,Trends!$A$3:$H$94,8)+Sens -> 1.045 | V81: 30.97923256 | AH81: =IF($B81<121,VLOOKUP($B81,Lookups!A:F,6)*(1-VLOOKUP($B81,Lookups!$N$3:$P$103,2))^($A81-$A$3),"") ->  | AI81: =IF($B81<121,VLOOKUP($B81,Lookups!A:G,7)*(1-VLOOKUP($B81,Lookups!$N$3:$P$103,3))^($A81-$A$3),"") -> 
A82: 2099 | B82: 157 | D82: =VLOOKUP(B82,Lookups!A:B,2) -> 14639.34828 | E82: =VLOOKUP(B82,Lookups!A:C,3) -> 1737.016974 | G82: =VLOOKUP(B82,Lookups!A:D,4) -> 146568.8654 | H82: =VLOOKUP(B82,Lookups!A:E,5) -> 119579.8935 | J82: =VLOOKUP(A82,Trends!$A$3:$H$94,IF(ExFlg=0,4,2))+Sens -> 1.051 | K82: 51.03316002 | L82: =VLOOKUP(A82,Trends!$A$3:$H$94,IF(ExFlg=0,5,3))+Sens -> 1.043 | M82: 40.50168629 | N82: =VLOOKUP(A82,Trends!$A$3:$H$94,6)+Sens -> 1.043 | O82: 34.82647018 | Q82: =IF(B82<=120,VLOOKUP(B82,Lookups!$A$3:$I$103,8,FALSE),"") ->  | R82: =VLOOKUP(A82,Trends!$A$3:$H$94,7)+Sens -> 1.045 | S82: 32.37329802 | T82: =IF(B82<=120,VLOOKUP(B82,Lookups!$A$3:$I$103,9,FALSE),"") ->  | U82: =VLOOKUP(A82,Trends!$A$3:$H$94,8)+Sens -> 1.045 | V82: 32.37329802 | AH82: =IF($B82<121,VLOOKUP($B82,Lookups!A:F,6)*(1-VLOOKUP($B82,Lookups!$N$3:$P$103,2))^($A82-$A$3),"") ->  | AI82: =IF($B82<121,VLOOKUP($B82,Lookups!A:G,7)*(1-VLOOKUP($B82,Lookups!$N$3:$P$103,3))^($A82-$A$3),"") -> 
A83: 2100 | B83: 158 | D83: =VLOOKUP(B83,Lookups!A:B,2) -> 14639.34828 | E83: =VLOOKUP(B83,Lookups!A:C,3) -> 1737.016974 | G83: =VLOOKUP(B83,Lookups!A:D,4) -> 146568.8654 | H83: =VLOOKUP(B83,Lookups!A:E,5) -> 119579.8935 | J83: =VLOOKUP(A83,Trends!$A$3:$H$94,IF(ExFlg=0,4,2))+Sens -> 1.051 | K83: 53.63585118 | L83: =VLOOKUP(A83,Trends!$A$3:$H$94,IF(ExFlg=0,5,3))+Sens -> 1.043 | M83: 42.2432588 | N83: =VLOOKUP(A83,Trends!$A$3:$H$94,6)+Sens -> 1.043 | O83: 36.3240084 | Q83: =IF(B83<=120,VLOOKUP(B83,Lookups!$A$3:$I$103,8,FALSE),"") ->  | R83: =VLOOKUP(A83,Trends!$A$3:$H$94,7)+Sens -> 1.045 | S83: 33.83009643 | T83: =IF(B83<=120,VLOOKUP(B83,Lookups!$A$3:$I$103,9,FALSE),"") ->  | U83: =VLOOKUP(A83,Trends!$A$3:$H$94,8)+Sens -> 1.045 | V83: 33.83009643 | AH83: =IF($B83<121,VLOOKUP($B83,Lookups!A:F,6)*(1-VLOOKUP($B83,Lookups!$N$3:$P$103,2))^($A83-$A$3),"") ->  | AI83: =IF($B83<121,VLOOKUP($B83,Lookups!A:G,7)*(1-VLOOKUP($B83,Lookups!$N$3:$P$103,3))^($A83-$A$3),"") -> 
A84: 2101 | B84: 159 | D84: =VLOOKUP(B84,Lookups!A:B,2) -> 14639.34828 | E84: =VLOOKUP(B84,Lookups!A:C,3) -> 1737.016974 | G84: =VLOOKUP(B84,Lookups!A:D,4) -> 146568.8654 | H84: =VLOOKUP(B84,Lookups!A:E,5) -> 119579.8935 | J84: =VLOOKUP(A84,Trends!$A$3:$H$94,IF(ExFlg=0,4,2))+Sens -> 1.051 | K84: 56.37127959 | L84: =VLOOKUP(A84,Trends!$A$3:$H$94,IF(ExFlg=0,5,3))+Sens -> 1.043 | M84: 44.05971893 | N84: =VLOOKUP(A84,Trends!$A$3:$H$94,6)+Sens -> 1.043 | O84: 37.88594076 | Q84: =IF(B84<=120,VLOOKUP(B84,Lookups!$A$3:$I$103,8,FALSE),"") ->  | R84: =VLOOKUP(A84,Trends!$A$3:$H$94,7)+Sens -> 1.045 | S84: 35.35245077 | T84: =IF(B84<=120,VLOOKUP(B84,Lookups!$A$3:$I$103,9,FALSE),"") ->  | U84: =VLOOKUP(A84,Trends!$A$3:$H$94,8)+Sens -> 1.045 | V84: 35.35245077 | AH84: =IF($B84<121,VLOOKUP($B84,Lookups!A:F,6)*(1-VLOOKUP($B84,Lookups!$N$3:$P$103,2))^($A84-$A$3),"") ->  | AI84: =IF($B84<121,VLOOKUP($B84,Lookups!A:G,7)*(1-VLOOKUP($B84,Lookups!$N$3:$P$103,3))^($A84-$A$3),"") -> 
A85: 2102 | B85: 160 | D85: =VLOOKUP(B85,Lookups!A:B,2) -> 14639.34828 | E85: =VLOOKUP(B85,Lookups!A:C,3) -> 1737.016974 | G85: =VLOOKUP(B85,Lookups!A:D,4) -> 146568.8654 | H85: =VLOOKUP(B85,Lookups!A:E,5) -> 119579.8935 | J85: =VLOOKUP(A85,Trends!$A$3:$H$94,IF(ExFlg=0,4,2))+Sens -> 1.051 | K85: 59.24621485 | L85: =VLOOKUP(A85,Trends!$A$3:$H$94,IF(ExFlg=0,5,3))+Sens -> 1.043 | M85: 45.95428684 | N85: =VLOOKUP(A85,Trends!$A$3:$H$94,6)+Sens -> 1.043 | O85: 39.51503621 | Q85: =IF(B85<=120,VLOOKUP(B85,Lookups!$A$3:$I$103,8,FALSE),"") ->  | R85: =VLOOKUP(A85,Trends!$A$3:$H$94,7)+Sens -> 1.045 | S85: 36.94331106 | T85: =IF(B85<=120,VLOOKUP(B85,Lookups!$A$3:$I$103,9,FALSE),"") ->  | U85: =VLOOKUP(A85,Trends!$A$3:$H$94,8)+Sens -> 1.045 | V85: 36.94331106 | AH85: =IF($B85<121,VLOOKUP($B85,Lookups!A:F,6)*(1-VLOOKUP($B85,Lookups!$N$3:$P$103,2))^($A85-$A$3),"") ->  | AI85: =IF($B85<121,VLOOKUP($B85,Lookups!A:G,7)*(1-VLOOKUP($B85,Lookups!$N$3:$P$103,3))^($A85-$A$3),"") -> 
A86: 2103 | B86: 161 | D86: =VLOOKUP(B86,Lookups!A:B,2) -> 14639.34828 | E86: =VLOOKUP(B86,Lookups!A:C,3) -> 1737.016974 | G86: =VLOOKUP(B86,Lookups!A:D,4) -> 146568.8654 | H86: =VLOOKUP(B86,Lookups!A:E,5) -> 119579.8935 | J86: =VLOOKUP(A86,Trends!$A$3:$H$94,IF(ExFlg=0,4,2))+Sens -> 1.051 | K86: 62.26777181 | L86: =VLOOKUP(A86,Trends!$A$3:$H$94,IF(ExFlg=0,5,3))+Sens -> 1.043 | M86: 47.93032118 | N86: =VLOOKUP(A86,Trends!$A$3:$H$94,6)+Sens -> 1.043 | O86: 41.21418277 | Q86: =IF(B86<=120,VLOOKUP(B86,Lookups!$A$3:$I$103,8,FALSE),"") ->  | R86: =VLOOKUP(A86,Trends!$A$3:$H$94,7)+Sens -> 1.045 | S86: 38.60576006 | T86: =IF(B86<=120,VLOOKUP(B86,Lookups!$A$3:$I$103,9,FALSE),"") ->  | U86: =VLOOKUP(A86,Trends!$A$3:$H$94,8)+Sens -> 1.045 | V86: 38.60576006 | AH86: =IF($B86<121,VLOOKUP($B86,Lookups!A:F,6)*(1-VLOOKUP($B86,Lookups!$N$3:$P$103,2))^($A86-$A$3),"") ->  | AI86: =IF($B86<121,VLOOKUP($B86,Lookups!A:G,7)*(1-VLOOKUP($B86,Lookups!$N$3:$P$103,3))^($A86-$A$3),"") -> 
A87: 2104 | B87: 162 | D87: =VLOOKUP(B87,Lookups!A:B,2) -> 14639.34828 | E87: =VLOOKUP(B87,Lookups!A:C,3) -> 1737.016974 | G87: =VLOOKUP(B87,Lookups!A:D,4) -> 146568.8654 | H87: =VLOOKUP(B87,Lookups!A:E,5) -> 119579.8935 | J87: =VLOOKUP(A87,Trends!$A$3:$H$94,IF(ExFlg=0,4,2))+Sens -> 1.051 | K87: 65.44342817 | L87: =VLOOKUP(A87,Trends!$A$3:$H$94,IF(ExFlg=0,5,3))+Sens -> 1.043 | M87: 49.99132499 | N87: =VLOOKUP(A87,Trends!$A$3:$H$94,6)+Sens -> 1.043 | O87: 42.98639263 | Q87: =IF(B87<=120,VLOOKUP(B87,Lookups!$A$3:$I$103,8,FALSE),"") ->  | R87: =VLOOKUP(A87,Trends!$A$3:$H$94,7)+Sens -> 1.045 | S87: 40.34301926 | T87: =IF(B87<=120,VLOOKUP(B87,Lookups!$A$3:$I$103,9,FALSE),"") ->  | U87: =VLOOKUP(A87,Trends!$A$3:$H$94,8)+Sens -> 1.045 | V87: 40.34301926 | AH87: =IF($B87<121,VLOOKUP($B87,Lookups!A:F,6)*(1-VLOOKUP($B87,Lookups!$N$3:$P$103,2))^($A87-$A$3),"") ->  | AI87: =IF($B87<121,VLOOKUP($B87,Lookups!A:G,7)*(1-VLOOKUP($B87,Lookups!$N$3:$P$103,3))^($A87-$A$3),"") -> 
A88: 2105 | B88: 163 | D88: =VLOOKUP(B88,Lookups!A:B,2) -> 14639.34828 | E88: =VLOOKUP(B88,Lookups!A:C,3) -> 1737.016974 | G88: =VLOOKUP(B88,Lookups!A:D,4) -> 146568.8654 | H88: =VLOOKUP(B88,Lookups!A:E,5) -> 119579.8935 | J88: =VLOOKUP(A88,Trends!$A$3:$H$94,IF(ExFlg=0,4,2))+Sens -> 1.051 | K88: 68.78104301 | L88: =VLOOKUP(A88,Trends!$A$3:$H$94,IF(ExFlg=0,5,3))+Sens -> 1.043 | M88: 52.14095196 | N88: =VLOOKUP(A88,Trends!$A$3:$H$94,6)+Sens -> 1.043 | O88: 44.83480751 | Q88: =IF(B88<=120,VLOOKUP(B88,Lookups!$A$3:$I$103,8,FALSE),"") ->  | R88: =VLOOKUP(A88,Trends!$A$3:$H$94,7)+Sens -> 1.045 | S88: 42.15845513 | T88: =IF(B88<=120,VLOOKUP(B88,Lookups!$A$3:$I$103,9,FALSE),"") ->  | U88: =VLOOKUP(A88,Trends!$A$3:$H$94,8)+Sens -> 1.045 | V88: 42.15845513 | AH88: =IF($B88<121,VLOOKUP($B88,Lookups!A:F,6)*(1-VLOOKUP($B88,Lookups!$N$3:$P$103,2))^($A88-$A$3),"") ->  | AI88: =IF($B88<121,VLOOKUP($B88,Lookups!A:G,7)*(1-VLOOKUP($B88,Lookups!$N$3:$P$103,3))^($A88-$A$3),"") -> 
A89: 2106 | B89: 164 | D89: =VLOOKUP(B89,Lookups!A:B,2) -> 14639.34828 | E89: =VLOOKUP(B89,Lookups!A:C,3) -> 1737.016974 | G89: =VLOOKUP(B89,Lookups!A:D,4) -> 146568.8654 | H89: =VLOOKUP(B89,Lookups!A:E,5) -> 119579.8935 | J89: =VLOOKUP(A89,Trends!$A$3:$H$94,IF(ExFlg=0,4,2))+Sens -> 1.051 | K89: 72.2888762 | L89: =VLOOKUP(A89,Trends!$A$3:$H$94,IF(ExFlg=0,5,3))+Sens -> 1.043 | M89: 54.3830129 | N89: =VLOOKUP(A89,Trends!$A$3:$H$94,6)+Sens -> 1.043 | O89: 46.76270424 | Q89: =IF(B89<=120,VLOOKUP(B89,Lookups!$A$3:$I$103,8,FALSE),"") ->  | R89: =VLOOKUP(A89,Trends!$A$3:$H$94,7)+Sens -> 1.045 | S89: 44.05558561 | T89: =IF(B89<=120,VLOOKUP(B89,Lookups!$A$3:$I$103,9,FALSE),"") ->  | U89: =VLOOKUP(A89,Trends!$A$3:$H$94,8)+Sens -> 1.045 | V89: 44.05558561 | AH89: =IF($B89<121,VLOOKUP($B89,Lookups!A:F,6)*(1-VLOOKUP($B89,Lookups!$N$3:$P$103,2))^($A89-$A$3),"") ->  | AI89: =IF($B89<121,VLOOKUP($B89,Lookups!A:G,7)*(1-VLOOKUP($B89,Lookups!$N$3:$P$103,3))^($A89-$A$3),"") -> 
A90: 2107 | B90: 165 | D90: =VLOOKUP(B90,Lookups!A:B,2) -> 14639.34828 | E90: =VLOOKUP(B90,Lookups!A:C,3) -> 1737.016974 | G90: =VLOOKUP(B90,Lookups!A:D,4) -> 146568.8654 | H90: =VLOOKUP(B90,Lookups!A:E,5) -> 119579.8935 | J90: =VLOOKUP(A90,Trends!$A$3:$H$94,IF(ExFlg=0,4,2))+Sens -> 1.051 | K90: 75.97560889 | L90: =VLOOKUP(A90,Trends!$A$3:$H$94,IF(ExFlg=0,5,3))+Sens -> 1.043 | M90: 56.72148245 | N90: =VLOOKUP(A90,Trends!$A$3:$H$94,6)+Sens -> 1.043 | O90: 48.77350052 | Q90: =IF(B90<=120,VLOOKUP(B90,Lookups!$A$3:$I$103,8,FALSE),"") ->  | R90: =VLOOKUP(A90,Trends!$A$3:$H$94,7)+Sens -> 1.045 | S90: 46.03808696 | T90: =IF(B90<=120,VLOOKUP(B90,Lookups!$A$3:$I$103,9,FALSE),"") ->  | U90: =VLOOKUP(A90,Trends!$A$3:$H$94,8)+Sens -> 1.045 | V90: 46.03808696 | AH90: =IF($B90<121,VLOOKUP($B90,Lookups!A:F,6)*(1-VLOOKUP($B90,Lookups!$N$3:$P$103,2))^($A90-$A$3),"") ->  | AI90: =IF($B90<121,VLOOKUP($B90,Lookups!A:G,7)*(1-VLOOKUP($B90,Lookups!$N$3:$P$103,3))^($A90-$A$3),"") -> 
A91: 2108 | B91: 166 | D91: =VLOOKUP(B91,Lookups!A:B,2) -> 14639.34828 | E91: =VLOOKUP(B91,Lookups!A:C,3) -> 1737.016974 | G91: =VLOOKUP(B91,Lookups!A:D,4) -> 146568.8654 | H91: =VLOOKUP(B91,Lookups!A:E,5) -> 119579.8935 | J91: =VLOOKUP(A91,Trends!$A$3:$H$94,IF(ExFlg=0,4,2))+Sens -> 1.051 | K91: 79.85036494 | L91: =VLOOKUP(A91,Trends!$A$3:$H$94,IF(ExFlg=0,5,3))+Sens -> 1.043 | M91: 59.1605062 | N91: =VLOOKUP(A91,Trends!$A$3:$H$94,6)+Sens -> 1.043 | O91: 50.87076104 | Q91: =IF(B91<=120,VLOOKUP(B91,Lookups!$A$3:$I$103,8,FALSE),"") ->  | R91: =VLOOKUP(A91,Trends!$A$3:$H$94,7)+Sens -> 1.045 | S91: 48.10980087 | T91: =IF(B91<=120,VLOOKUP(B91,Lookups!$A$3:$I$103,9,FALSE),"") ->  | U91: =VLOOKUP(A91,Trends!$A$3:$H$94,8)+Sens -> 1.045 | V91: 48.10980087 | AH91: =IF($B91<121,VLOOKUP($B91,Lookups!A:F,6)*(1-VLOOKUP($B91,Lookups!$N$3:$P$103,2))^($A91-$A$3),"") ->  | AI91: =IF($B91<121,VLOOKUP($B91,Lookups!A:G,7)*(1-VLOOKUP($B91,Lookups!$N$3:$P$103,3))^($A91-$A$3),"") -> 
A92: 2109 | B92: 167 | D92: =VLOOKUP(B92,Lookups!A:B,2) -> 14639.34828 | E92: =VLOOKUP(B92,Lookups!A:C,3) -> 1737.016974 | G92: =VLOOKUP(B92,Lookups!A:D,4) -> 146568.8654 | H92: =VLOOKUP(B92,Lookups!A:E,5) -> 119579.8935 | J92: =VLOOKUP(A92,Trends!$A$3:$H$94,IF(ExFlg=0,4,2))+Sens -> 1.051 | K92: 83.92273355 | L92: =VLOOKUP(A92,Trends!$A$3:$H$94,IF(ExFlg=0,5,3))+Sens -> 1.043 | M92: 61.70440796 | N92: =VLOOKUP(A92,Trends!$A$3:$H$94,6)+Sens -> 1.043 | O92: 53.05820376 | Q92: =IF(B92<=120,VLOOKUP(B92,Lookups!$A$3:$I$103,8,FALSE),"") ->  | R92: =VLOOKUP(A92,Trends!$A$3:$H$94,7)+Sens -> 1.045 | S92: 50.27474191 | T92: =IF(B92<=120,VLOOKUP(B92,Lookups!$A$3:$I$103,9,FALSE),"") ->  | U92: =VLOOKUP(A92,Trends!$A$3:$H$94,8)+Sens -> 1.045 | V92: 50.27474191 | AH92: =IF($B92<121,VLOOKUP($B92,Lookups!A:F,6)*(1-VLOOKUP($B92,Lookups!$N$3:$P$103,2))^($A92-$A$3),"") ->  | AI92: =IF($B92<121,VLOOKUP($B92,Lookups!A:G,7)*(1-VLOOKUP($B92,Lookups!$N$3:$P$103,3))^($A92-$A$3),"") -> 
A93: 2110 | B93: 168 | D93: =VLOOKUP(B93,Lookups!A:B,2) -> 14639.34828 | E93: =VLOOKUP(B93,Lookups!A:C,3) -> 1737.016974 | G93: =VLOOKUP(B93,Lookups!A:D,4) -> 146568.8654 | H93: =VLOOKUP(B93,Lookups!A:E,5) -> 119579.8935 | K93: 88.20279296 | M93: 64.35769751 | O93: 55.33970653 | Q93: =IF(B93<=120,VLOOKUP(B93,Lookups!$A$3:$I$103,8,FALSE),"") ->  | S93: 52.5371053 | T93: =IF(B93<=120,VLOOKUP(B93,Lookups!$A$3:$I$103,9,FALSE),"") ->  | V93: 52.5371053 | AH93: =IF($B93<121,VLOOKUP($B93,Lookups!A:F,6)*(1-VLOOKUP($B93,Lookups!$N$3:$P$103,2))^($A93-$A$3),"") ->  | AI93: =IF($B93<121,VLOOKUP($B93,Lookups!A:G,7)*(1-VLOOKUP($B93,Lookups!$N$3:$P$103,3))^($A93-$A$3),"") -> 
AP95: =SUM(AP3:AP93) -> 384460.3348 | AQ95: Sum
AP96: =B1 -> 0 | AQ96: Count
AP97: =AP95*AP96 -> 0 | AQ97: Aggregate
AP100: Total OPEB Liability | AQ100: =AP97 -> 0
AP101: Expected Benefit Payments | AQ101: =SUM(AO3:AP3)*AP96 -> 0

Sheet Log (hidden)
A1: EoP = End of Period | B1: Actives Cohort | G1: Inactive Cohorts
A2: BoP = Beginning of Period | B2: 1 | C2: 2 | D2: 3 | E2: 4 | G2: 1 | H2: 2 | I2: 3 | J2: 4
G3: 55-64 | H3: 65-69 | I3: 70-74 | J3: 75+ | L3: Total
A4: Run 1 - EoP Data, BoP Discount Rate, New HC Assumptions
A5: Service Cost (EANC) | L5: =SUM(B5:E5) -> 0
A6: Total OPEB Liability (TOL) | G6: 0 | H6: 0 | I6: 0 | J6: 0 | L6: =SUM(B6:E6,G6:J6) -> 0
A7: Expected Benefit Payments | G7: 0 | H7: 0 | I7: 0 | J7: 0 | L7: =SUM(B7:E7,G7:J7) -> 0
A9: Run 2 - EoP Data, EoP Discount Rate, New HC Assumptions
A10: Service Cost (EANC) | L10: =SUM(B10:E10) -> 0
A11: Total OPEB Liability (TOL) | G11: 0 | H11: 0 | I11: 0 | J11: 0 | L11: =SUM(B11:E11,G11:J11) -> 0
A12: Expected Benefit Payments | G12: 0 | H12: 0 | I12: 0 | J12: 0 | L12: =SUM(B12:E12,G12:J12) -> 0
A14: Run 3 - EoP Data, EoP Discount Rate, New HC Assumptions -1% Sensitvity
A15: Service Cost (EANC) | L15: =SUM(B15:E15) -> 0
A16: Total OPEB Liability (TOL) | G16: 0 | H16: 0 | I16: 0 | J16: 0 | L16: =SUM(B16:E16,G16:J16) -> 0
A17: Expected Benefit Payments | G17: 0 | H17: 0 | I17: 0 | J17: 0 | L17: =SUM(B17:E17,G17:J17) -> 0
A19: Run 4 - EoP Data, EoP Discount Rate, New HC Assumptions +1% Sensitvity
A20: Service Cost (EANC) | L20: =SUM(B20:E20) -> 0
A21: Total OPEB Liability (TOL) | G21: 0 | H21: 0 | I21: 0 | J21: 0 | L21: =SUM(B21:E21,G21:J21) -> 0
A22: Expected Benefit Payments | G22: 0 | H22: 0 | I22: 0 | J22: 0 | L22: =SUM(B22:E22,G22:J22) -> 0
A24: Run 5 - EoP Data, EoP Discount Rate -1% Sensitivity, New HC Assumptions
A25: Service Cost (EANC) | L25: =SUM(B25:E25) -> 0
A26: Total OPEB Liability (TOL) | G26: 0 | H26: 0 | I26: 0 | J26: 0 | L26: =SUM(B26:E26,G26:J26) -> 0
A27: Expected Benefit Payments | G27: 0 | H27: 0 | I27: 0 | J27: 0 | L27: =SUM(B27:E27,G27:J27) -> 0
A28: PVFB
A29: Run 6 - EoP Data, EoP Discount Rate +1% Sensitivity, New HC Assumptions
A30: Service Cost (EANC) | L30: =SUM(B30:E30) -> 0
A31: Total OPEB Liability (TOL) | G31: 0 | H31: 0 | I31: 0 | J31: 0 | L31: =SUM(B31:E31,G31:J31) -> 0
A32: Expected Benefit Payments | G32: 0 | H32: 0 | I32: 0 | J32: 0 | L32: =SUM(B32:E32,G32:J32) -> 0

Sheet Lookups (hidden)
B1: Medical | C1: Medicare | D1: LTC Inst. | E1: LTC Non- | F1: Mortality | G1: Mortality | H1: Institutional LTC Rate | I1: Non-Inst. LTC Rate | K1: =ToolYear - 1 & " Discount" -> 2019 Discount | L1: 0.035 | O1: 100% Scale BB | R1: Medical | S1: Medicare | T1: LTC Inst. | U1: LTC Non- | W1: Mortality | X1: Mortality
A2: Age | B2: Cost | C2: Cost | D2: Cost | E2: Inst. Cost | F2: Male | G2: Female | K2: =ToolYear & " Discount" -> 2020 Discount | L2: 0.0221 | N2: Age | O2: Male | P2: Female | R2: Cost | S2: Cost | T2: Cost | U2: Inst. Cost | W2: Male | X2: Female
A3: 20 | B3: =R3*IF(ValYear=ToolYear,1,IF(ValYear = ToolYear-1, VLOOKUP(ToolYear-1,Trends!$A$3:$H$94,IF(ExFlg=1,2,4)), VLOOKUP(ToolYear-1,Trends!$A$3:$H$94,IF(ExFlg=1,2,4)) * VLOOKUP(ToolYear-2,Trends!$A$3:$H$94,IF(ExFlg=1,2,4)))) -> 43474.1382 | C3: 0 | D3: =T3*IF(ValYear=ToolYear,1,IF(ValYear = ToolYear-1, VLOOKUP(ToolYear-1,Trends!$A$3:$H$94,7), VLOOKUP(ToolYear-1,Trends!$A$3:$H$94,7) * VLOOKUP(ToolYear-2,Trends!$A$3:$H$94,7))) -> 211534.5247 | E3: =U3*IF(ValYear=ToolYear,1,IF(ValYear = ToolYear-1, VLOOKUP(ToolYear-1,Trends!$A$3:$H$94,8), VLOOKUP(ToolYear-1,Trends!$A$3:$H$94,8) * VLOOKUP(ToolYear-2,Trends!$A$3:$H$94,8))) -> 149955.8683 | F3: =W3*IF(ValYear=ToolYear,1,IF(ValYear=ToolYear-1, 1-O3, (1-O3)^2)) -> 0.0003285199745 | G3: =X3*IF(ValYear=ToolYear,1,IF(ValYear=ToolYear-1, 1-P3, (1-P3)^2)) -> 0.000181903647 | H3: 0.0004 | I3: 0.0019 | N3: 20 | O3: 0.003 | P3: 0.003 | R3: 38510.04 | S3: 0 | T3: 193708.5 | U3: 137319.08 | W3: 0.0003305 | X3: 0.000183 | Z3: Sources
A4: =1+A3 -> 21 | B4: =R4*IF(ValYear=ToolYear,1,IF(ValYear = ToolYear-1, VLOOKUP(ToolYear-1,Trends!$A$3:$H$94,IF(ExFlg=1,2,4)), VLOOKUP(ToolYear-1,Trends!$A$3:$H$94,IF(ExFlg=1,2,4)) * VLOOKUP(ToolYear-2,Trends!$A$3:$H$94,IF(ExFlg=1,2,4)))) -> 43474.1382 | C4: 0 | D4: =T4*IF(ValYear=ToolYear,1,IF(ValYear = ToolYear-1, VLOOKUP(ToolYear-1,Trends!$A$3:$H$94,7), VLOOKUP(ToolYear-1,Trends!$A$3:$H$94,7) * VLOOKUP(ToolYear-2,Trends!$A$3:$H$94,7))) -> 211534.5247 | E4: =U4*IF(ValYear=ToolYear,1,IF(ValYear = ToolYear-1, VLOOKUP(ToolYear-1,Trends!$A$3:$H$94,8), VLOOKUP(ToolYear-1,Trends!$A$3:$H$94,8) * VLOOKUP(ToolYear-2,Trends!$A$3:$H$94,8))) -> 149955.8683 | F4: 0.00033796306 | G4: 0.0001843886695 | H4: 0.0004 | I4: 0.0019 | L4: Int Rt | N4: 21 | O4: 0.003 | P4: 0.003 | R4: 38510.04 | S4: 0 | T4: 193708.5 | U4: 137319.08 | W4: 0.00034 | X4: 0.0001855 | Z4: Mortality Assumption
A5: 22 | B5: =R5*IF(ValYear=ToolYear,1,IF(ValYear = ToolYear-1, VLOOKUP(ToolYear-1,Trends!$A$3:$H$94,IF(ExFlg=1,2,4)), VLOOKUP(ToolYear-1,Trends!$A$3:$H$94,IF(ExFlg=1,2,4)) * VLOOKUP(ToolYear-2,Trends!$A$3:$H$94,IF(ExFlg=1,2,4)))) -> 43474.1382 | C5: 0 | D5: =T5*IF(ValYear=ToolYear,1,IF(ValYear = ToolYear-1, VLOOKUP(ToolYear-1,Trends!$A$3:$H$94,7), VLOOKUP(ToolYear-1,Trends!$A$3:$H$94,7) * VLOOKUP(ToolYear-2,Trends!$A$3:$H$94,7))) -> 211534.5247 | E5: =U5*IF(ValYear=ToolYear,1,IF(ValYear = ToolYear-1, VLOOKUP(ToolYear-1,Trends!$A$3:$H$94,8), VLOOKUP(ToolYear-1,Trends!$A$3:$H$94,8) * VLOOKUP(ToolYear-2,Trends!$A$3:$H$94,8))) -> 149955.8683 | F5: 0.000344921123 | G5: 0.0001873706965 | H5: 0.0004 | I5: 0.0019 | L5: 0.035 | N5: 22 | O5: 0.003 | P5: 0.003 | R5: 38510.04 | S5: 0 | T5: 193708.5 | U5: 137319.08 | W5: 0.000347 | X5: 0.0001885 | Z5: Medical, Medicare, and LTC Costs
A6: 23 | B6: =R6*IF(ValYear=ToolYear,1,IF(ValYear = ToolYear-1, VLOOKUP(ToolYear-1,Trends!$A$3:$H$94,IF(ExFlg=1,2,4)), VLOOKUP(ToolYear-1,Trends!$A$3:$H$94,IF(ExFlg=1,2,4)) * VLOOKUP(ToolYear-2,Trends!$A$3:$H$94,IF(ExFlg=1,2,4)))) -> 43474.1382 | C6: 0 | D6: =T6*IF(ValYear=ToolYear,1,IF(ValYear = ToolYear-1, VLOOKUP(ToolYear-1,Trends!$A$3:$H$94,7), VLOOKUP(ToolYear-1,Trends!$A$3:$H$94,7) * VLOOKUP(ToolYear-2,Trends!$A$3:$H$94,7))) -> 211534.5247 | E6: =U6*IF(ValYear=ToolYear,1,IF(ValYear = ToolYear-1, VLOOKUP(ToolYear-1,Trends!$A$3:$H$94,8), VLOOKUP(ToolYear-1,Trends!$A$3:$H$94,8) * VLOOKUP(ToolYear-2,Trends!$A$3:$H$94,8))) -> 149955.8683 | F6: 0.0003493941635 | G6: 0.000191843737 | H6: 0.0004 | I6: 0.0019 | N6: 23 | O6: 0.003 | P6: 0.003 | R6: 38510.04 | S6: 0 | T6: 193708.5 | U6: 137319.08 | W6: 0.0003515 | X6: 0.000193 | Z6: LTC Probabilities
A7: 24 | B7: =R7*IF(ValYear=ToolYear,1,IF(ValYear = ToolYear-1, VLOOKUP(ToolYear-1,Trends!$A$3:$H$94,IF(ExFlg=1,2,4)), VLOOKUP(ToolYear-1,Trends!$A$3:$H$94,IF(ExFlg=1,2,4)) * VLOOKUP(ToolYear-2,Trends!$A$3:$H$94,IF(ExFlg=1,2,4)))) -> 43474.1382 | C7: 0 | D7: =T7*IF(ValYear=ToolYear,1,IF(ValYear = ToolYear-1, VLOOKUP(ToolYear-1,Trends!$A$3:$H$94,7), VLOOKUP(ToolYear-1,Trends!$A$3:$H$94,7) * VLOOKUP(ToolYear-2,Trends!$A$3:$H$94,7))) -> 211534.5247 | E7: =U7*IF(ValYear=ToolYear,1,IF(ValYear = ToolYear-1, VLOOKUP(ToolYear-1,Trends!$A$3:$H$94,8), VLOOKUP(ToolYear-1,Trends!$A$3:$H$94,8) * VLOOKUP(ToolYear-2,Trends!$A$3:$H$94,8))) -> 149955.8683 | F7: 0.0003533701995 | G7: 0.0001983047955 | H7: 0.0004 | I7: 0.0019 | L7: Sens | N7: 24 | O7: 0.003 | P7: 0.003 | R7: 38510.04 | S7: 0 | T7: 193708.5 | U7: 137319.08 | W7: 0.0003555 | X7: 0.0001995
A8: 25 | B8: =R8*IF(ValYear=ToolYear,1,IF(ValYear = ToolYear-1, VLOOKUP(ToolYear-1,Trends!$A$3:$H$94,IF(ExFlg=1,2,4)), VLOOKUP(ToolYear-1,Trends!$A$3:$H$94,IF(ExFlg=1,2,4)) * VLOOKUP(ToolYear-2,Trends!$A$3:$H$94,IF(ExFlg=1,2,4)))) -> 43474.1382 | C8: 0 | D8: =T8*IF(ValYear=ToolYear,1,IF(ValYear = ToolYear-1, VLOOKUP(ToolYear-1,Trends!$A$3:$H$94,7), VLOOKUP(ToolYear-1,Trends!$A$3:$H$94,7) * VLOOKUP(ToolYear-2,Trends!$A$3:$H$94,7))) -> 211534.5247 | E8: =U8*IF(ValYear=ToolYear,1,IF(ValYear = ToolYear-1, VLOOKUP(ToolYear-1,Trends!$A$3:$H$94,8), VLOOKUP(ToolYear-1,Trends!$A$3:$H$94,8) * VLOOKUP(ToolYear-2,Trends!$A$3:$H$94,8))) -> 149955.8683 | F8: 0.000356849231 | G8: 0.000205759863 | H8: 0.0004 | I8: 0.0019 | L8: 0 | N8: 25 | O8: 0.003 | P8: 0.003 | R8: 38510.04 | S8: 0 | T8: 193708.5 | U8: 137319.08 | W8: 0.000359 | X8: 0.000207
A9: 26 | B9: =R9*IF(ValYear=ToolYear,1,IF(ValYear = ToolYear-1, VLOOKUP(ToolYear-1,Trends!$A$3:$H$94,IF(ExFlg=1,2,4)), VLOOKUP(ToolYear-1,Trends!$A$3:$H$94,IF(ExFlg=1,2,4)) * VLOOKUP(ToolYear-2,Trends!$A$3:$H$94,IF(ExFlg=1,2,4)))) -> 43474.1382 | C9: 0 | D9: =T9*IF(ValYear=ToolYear,1,IF(ValYear = ToolYear-1, VLOOKUP(ToolYear-1,Trends!$A$3:$H$94,7), VLOOKUP(ToolYear-1,Trends!$A$3:$H$94,7) * VLOOKUP(ToolYear-2,Trends!$A$3:$H$94,7))) -> 211534.5247 | E9: =U9*IF(ValYear=ToolYear,1,IF(ValYear = ToolYear-1, VLOOKUP(ToolYear-1,Trends!$A$3:$H$94,8), VLOOKUP(ToolYear-1,Trends!$A$3:$H$94,8) * VLOOKUP(ToolYear-2,Trends!$A$3:$H$94,8))) -> 149955.8683 | F9: 0.000361819276 | G9: 0.000215699953 | H9: 0.0004 | I9: 0.0019 | N9: 26 | O9: 0.003 | P9: 0.003 | R9: 38510.04 | S9: 0 | T9: 193708.5 | U9: 137319.08 | W9: 0.000364 | X9: 0.000217
A10: 27 | B10: =R10*IF(ValYear=ToolYear,1,IF(ValYear = ToolYear-1, VLOOKUP(ToolYear-1,Trends!$A$3:$H$94,IF(ExFlg=1,2,4)), VLOOKUP(ToolYear-1,Trends!$A$3:$H$94,IF(ExFlg=1,2,4)) * VLOOKUP(ToolYear-2,Trends!$A$3:$H$94,IF(ExFlg=1,2,4)))) -> 43474.1382 | C10: 0 | D10: =T10*IF(ValYear=ToolYear,1,IF(ValYear = ToolYear-1, VLOOKUP(ToolYear-1,Trends!$A$3:$H$94,7), VLOOKUP(ToolYear-1,Trends!$A$3:$H$94,7) * VLOOKUP(ToolYear-2,Trends!$A$3:$H$94,7))) -> 211534.5247 | E10: =U10*IF(ValYear=ToolYear,1,IF(ValYear = ToolYear-1, VLOOKUP(ToolYear-1,Trends!$A$3:$H$94,8), VLOOKUP(ToolYear-1,Trends!$A$3:$H$94,8) * VLOOKUP(ToolYear-2,Trends!$A$3:$H$94,8))) -> 149955.8683 | F10: 0.000371759366 | G10: 0.000227628061 | H10: 0.0004 | I10: 0.0019 | L10: ExFlg | N10: 27 | O10: 0.003 | P10: 0.003 | R10: 38510.04 | S10: 0 | T10: 193708.5 | U10: 137319.08 | W10: 0.000374 | X10: 0.000229
A11: 28 | B11: =R11*IF(ValYear=ToolYear,1,IF(ValYear = ToolYear-1, VLOOKUP(ToolYear-1,Trends!$A$3:$H$94,IF(ExFlg=1,2,4)), VLOOKUP(ToolYear-1,Trends!$A$3:$H$94,IF(ExFlg=1,2,4)) * VLOOKUP(ToolYear-2,Trends!$A$3:$H$94,IF(ExFlg=1,2,4)))) -> 43474.1382 | C11: 0 | D11: =T11*IF(ValYear=ToolYear,1,IF(ValYear = ToolYear-1, VLOOKUP(ToolYear-1,Trends!$A$3:$H$94,7), VLOOKUP(ToolYear-1,Trends!$A$3:$H$94,7) * VLOOKUP(ToolYear-2,Trends!$A$3:$H$94,7))) -> 211534.5247 | E11: =U11*IF(ValYear=ToolYear,1,IF(ValYear = ToolYear-1, VLOOKUP(ToolYear-1,Trends!$A$3:$H$94,8), VLOOKUP(ToolYear-1,Trends!$A$3:$H$94,8) * VLOOKUP(ToolYear-2,Trends!$A$3:$H$94,8))) -> 149955.8683 | F11: 0.0003891545235 | G11: 0.0002410471825 | H11: 0.0004 | I11: 0.0019 | L11: 0 | N11: 28 | O11: 0.003 | P11: 0.003 | R11: 38510.04 | S11: 0 | T11: 193708.5 | U11: 137319.08 | W11: 0.0003915 | X11: 0.0002425
A12: 29 | B12: =R12*IF(ValYear=ToolYear,1,IF(ValYear = ToolYear-1, VLOOKUP(ToolYear-1,Trends!$A$3:$H$94,IF(ExFlg=1,2,4)), VLOOKUP(ToolYear-1,Trends!$A$3:$H$94,IF(ExFlg=1,2,4)) * VLOOKUP(ToolYear-2,Trends!$A$3:$H$94,IF(ExFlg=1,2,4)))) -> 43474.1382 | C12: 0 | D12: =T12*IF(ValYear=ToolYear,1,IF(ValYear = ToolYear-1, VLOOKUP(ToolYear-1,Trends!$A$3:$H$94,7), VLOOKUP(ToolYear-1,Trends!$A$3:$H$94,7) * VLOOKUP(ToolYear-2,Trends!$A$3:$H$94,7))) -> 211534.5247 | E12: =U12*IF(ValYear=ToolYear,1,IF(ValYear = ToolYear-1, VLOOKUP(ToolYear-1,Trends!$A$3:$H$94,8), VLOOKUP(ToolYear-1,Trends!$A$3:$H$94,8) * VLOOKUP(ToolYear-2,Trends!$A$3:$H$94,8))) -> 149955.8683 | F12: 0.0004199688025 | G12: 0.0002688794345 | H12: 0.0004 | I12: 0.0019 | N12: 29 | O12: 0.003 | P12: 0.003 | R12: 38510.04 | S12: 0 | T12: 193708.5 | U12: 137319.08 | W12: 0.0004225 | X12: 0.0002705
A13: 30 | B13: =R13*IF(ValYear=ToolYear,1,IF(ValYear = ToolYear-1, VLOOKUP(ToolYear-1,Trends!$A$3:$H$94,IF(ExFlg=1,2,4)), VLOOKUP(ToolYear-1,Trends!$A$3:$H$94,IF(ExFlg=1,2,4)) * VLOOKUP(ToolYear-2,Trends!$A$3:$H$94,IF(ExFlg=1,2,4)))) -> 43474.1382 | C13: 0 | D13: =T13*IF(ValYear=ToolYear,1,IF(ValYear = ToolYear-1, VLOOKUP(ToolYear-1,Trends!$A$3:$H$94,7), VLOOKUP(ToolYear-1,Trends!$A$3:$H$94,7) * VLOOKUP(ToolYear-2,Trends!$A$3:$H$94,7))) -> 211534.5247 | E13: =U13*IF(ValYear=ToolYear,1,IF(ValYear = ToolYear-1, VLOOKUP(ToolYear-1,Trends!$A$3:$H$94,8), VLOOKUP(ToolYear-1,Trends!$A$3:$H$94,8) * VLOOKUP(ToolYear-2,Trends!$A$3:$H$94,8))) -> 149955.8683 | F13: 0.000458238149 | G13: 0.0003096338035 | H13: 0.0004 | I13: 0.0019 | L13: Valuation Year | N13: 30 | O13: 0.003 | P13: 0.003 | R13: 38510.04 | S13: 0 | T13: 193708.5 | U13: 137319.08 | W13: 0.000461 | X13: 0.0003115
A14: 31 | B14: =R14*IF(ValYear=ToolYear,1,IF(ValYear = ToolYear-1, VLOOKUP(ToolYear-1,Trends!$A$3:$H$94,IF(ExFlg=1,2,4)), VLOOKUP(ToolYear-1,Trends!$A$3:$H$94,IF(ExFlg=1,2,4)) * VLOOKUP(ToolYear-2,Trends!$A$3:$H$94,IF(ExFlg=1,2,4)))) -> 43474.1382 | C14: 0 | D14: =T14*IF(ValYear=ToolYear,1,IF(ValYear = ToolYear-1, VLOOKUP(ToolYear-1,Trends!$A$3:$H$94,7), VLOOKUP(ToolYear-1,Trends!$A$3:$H$94,7) * VLOOKUP(ToolYear-2,Trends!$A$3:$H$94,7))) -> 211534.5247 | E14: =U14*IF(ValYear=ToolYear,1,IF(ValYear = ToolYear-1, VLOOKUP(ToolYear-1,Trends!$A$3:$H$94,8), VLOOKUP(ToolYear-1,Trends!$A$3:$H$94,8) * VLOOKUP(ToolYear-2,Trends!$A$3:$H$94,8))) -> 149955.8683 | F14: 0.0005064475855 | G14: 0.0003503881725 | H14: 0.0004 | I14: 0.0019 | L14: 2018 | N14: 31 | O14: 0.003 | P14: 0.003 | R14: 38510.04 | S14: 0 | T14: 193708.5 | U14: 137319.08 | W14: 0.0005095 | X14: 0.0003525
A15: 32 | B15: =R15*IF(ValYear=ToolYear,1,IF(ValYear = ToolYear-1, VLOOKUP(ToolYear-1,Trends!$A$3:$H$94,IF(ExFlg=1,2,4)), VLOOKUP(ToolYear-1,Trends!$A$3:$H$94,IF(ExFlg=1,2,4)) * VLOOKUP(ToolYear-2,Trends!$A$3:$H$94,IF(ExFlg=1,2,4)))) -> 43474.1382 | C15: 0 | D15: =T15*IF(ValYear=ToolYear,1,IF(ValYear = ToolYear-1, VLOOKUP(ToolYear-1,Trends!$A$3:$H$94,7), VLOOKUP(ToolYear-1,Trends!$A$3:$H$94,7) * VLOOKUP(ToolYear-2,Trends!$A$3:$H$94,7))) -> 211534.5247 | E15: =U15*IF(ValYear=ToolYear,1,IF(ValYear = ToolYear-1, VLOOKUP(ToolYear-1,Trends!$A$3:$H$94,8), VLOOKUP(ToolYear-1,Trends!$A$3:$H$94,8) * VLOOKUP(ToolYear-2,Trends!$A$3:$H$94,8))) -> 149955.8683 | F15: 0.000565591121 | G15: 0.0003901485325 | H15: 0.0004 | I15: 0.0019 | N15: 32 | O15: 0.003 | P15: 0.003 | R15: 38510.04 | S15: 0 | T15: 193708.5 | U15: 137319.08 | W15: 0.000569 | X15: 0.0003925
A16: 33 | B16: =R16*IF(ValYear=ToolYear,1,IF(ValYear = ToolYear-1, VLOOKUP(ToolYear-1,Trends!$A$3:$H$94,IF(ExFlg=1,2,4)), VLOOKUP(ToolYear-1,Trends!$A$3:$H$94,IF(ExFlg=1,2,4)) * VLOOKUP(ToolYear-2,Trends!$A$3:$H$94,IF(ExFlg=1,2,4)))) -> 43474.1382 | C16: 0 | D16: =T16*IF(ValYear=ToolYear,1,IF(ValYear = ToolYear-1, VLOOKUP(ToolYear-1,Trends!$A$3:$H$94,7), VLOOKUP(ToolYear-1,Trends!$A$3:$H$94,7) * VLOOKUP(ToolYear-2,Trends!$A$3:$H$94,7))) -> 211534.5247 | E16: =U16*IF(ValYear=ToolYear,1,IF(ValYear = ToolYear-1, VLOOKUP(ToolYear-1,Trends!$A$3:$H$94,8), VLOOKUP(ToolYear-1,Trends!$A$3:$H$94,8) * VLOOKUP(ToolYear-2,Trends!$A$3:$H$94,8))) -> 149955.8683 | F16: 0.000628213688 | G16: 0.000428417879 | H16: 0.0004 | I16: 0.0019 | L16: Tool Year | N16: 33 | O16: 0.003 | P16: 0.003 | R16: 38510.04 | S16: 0 | T16: 193708.5 | U16: 137319.08 | W16: 0.000632 | X16: 0.000431
A17: 34 | B17: =R17*IF(ValYear=ToolYear,1,IF(ValYear = ToolYear-1, VLOOKUP(ToolYear-1,Trends!$A$3:$H$94,IF(ExFlg=1,2,4)), VLOOKUP(ToolYear-1,Trends!$A$3:$H$94,IF(ExFlg=1,2,4)) * VLOOKUP(ToolYear-2,Trends!$A$3:$H$94,IF(ExFlg=1,2,4)))) -> 43474.1382 | C17: 0 | D17: =T17*IF(ValYear=ToolYear,1,IF(ValYear = ToolYear-1, VLOOKUP(ToolYear-1,Trends!$A$3:$H$94,7), VLOOKUP(ToolYear-1,Trends!$A$3:$H$94,7) * VLOOKUP(ToolYear-2,Trends!$A$3:$H$94,7))) -> 211534.5247 | E17: =U17*IF(ValYear=ToolYear,1,IF(ValYear = ToolYear-1, VLOOKUP(ToolYear-1,Trends!$A$3:$H$94,8), VLOOKUP(ToolYear-1,Trends!$A$3:$H$94,8) * VLOOKUP(ToolYear-2,Trends!$A$3:$H$94,8))) -> 149955.8683 | F17: 0.0006933212775 | G17: 0.0004656932165 | H17: 0.0004 | I17: 0.0019 | L17: 2020 | N17: 34 | O17: 0.003 | P17: 0.003 | R17: 38510.04 | S17: 0 | T17: 193708.5 | U17: 137319.08 | W17: 0.0006975 | X17: 0.0004685
A18: 35 | B18: =R18*IF(ValYear=ToolYear,1,IF(ValYear = ToolYear-1, VLOOKUP(ToolYear-1,Trends!$A$3:$H$94,IF(ExFlg=1,2,4)), VLOOKUP(ToolYear-1,Trends!$A$3:$H$94,IF(ExFlg=1,2,4)) * VLOOKUP(ToolYear-2,Trends!$A$3:$H$94,IF(ExFlg=1,2,4)))) -> 43474.1382 | C18: 0 | D18: =T18*IF(ValYear=ToolYear,1,IF(ValYear = ToolYear-1, VLOOKUP(ToolYear-1,Trends!$A$3:$H$94,7), VLOOKUP(ToolYear-1,Trends!$A$3:$H$94,7) * VLOOKUP(ToolYear-2,Trends!$A$3:$H$94,7))) -> 211534.5247 | E18: =U18*IF(ValYear=ToolYear,1,IF(ValYear = ToolYear-1, VLOOKUP(ToolYear-1,Trends!$A$3:$H$94,8), VLOOKUP(ToolYear-1,Trends!$A$3:$H$94,8) * VLOOKUP(ToolYear-2,Trends!$A$3:$H$94,8))) -> 149955.8683 | F18: 0.0007559438445 | G18: 0.000502968554 | H18: 0.0004 | I18: 0.0019 | N18: 35 | O18: 0.003 | P18: 0.003 | R18: 38510.04 | S18: 0 | T18: 193708.5 | U18: 137319.08 | W18: 0.0007605 | X18: 0.000506
A19: 36 | B19: =R19*IF(ValYear=ToolYear,1,IF(ValYear = ToolYear-1, VLOOKUP(ToolYear-1,Trends!$A$3:$H$94,IF(ExFlg=1,2,4)), VLOOKUP(ToolYear-1,Trends!$A$3:$H$94,IF(ExFlg=1,2,4)) * VLOOKUP(ToolYear-2,Trends!$A$3:$H$94,IF(ExFlg=1,2,4)))) -> 43474.1382 | C19: 0 | D19: =T19*IF(ValYear=ToolYear,1,IF(ValYear = ToolYear-1, VLOOKUP(ToolYear-1,Trends!$A$3:$H$94,7), VLOOKUP(ToolYear-1,Trends!$A$3:$H$94,7) * VLOOKUP(ToolYear-2,Trends!$A$3:$H$94,7))) -> 211534.5247 | E19: =U19*IF(ValYear=ToolYear,1,IF(ValYear = ToolYear-1, VLOOKUP(ToolYear-1,Trends!$A$3:$H$94,8), VLOOKUP(ToolYear-1,Trends!$A$3:$H$94,8) * VLOOKUP(ToolYear-2,Trends!$A$3:$H$94,8))) -> 149955.8683 | F19: 0.0008175724025 | G19: 0.000542728914 | H19: 0.0004 | I19: 0.0019 | N19: 36 | O19: 0.003 | P19: 0.003 | R19: 38510.04 | S19: 0 | T19: 193708.5 | U19: 137319.08 | W19: 0.0008225 | X19: 0.000546
A20: 37 | B20: =R20*IF(ValYear=ToolYear,1,IF(ValYear = ToolYear-1, VLOOKUP(ToolYear-1,Trends!$A$3:$H$94,IF(ExFlg=1,2,4)), VLOOKUP(ToolYear-1,Trends!$A$3:$H$94,IF(ExFlg=1,2,4)) * VLOOKUP(ToolYear-2,Trends!$A$3:$H$94,IF(ExFlg=1,2,4)))) -> 43474.1382 | C20: 0 | D20: =T20*IF(ValYear=ToolYear,1,IF(ValYear = ToolYear-1, VLOOKUP(ToolYear-1,Trends!$A$3:$H$94,7), VLOOKUP(ToolYear-1,Trends!$A$3:$H$94,7) * VLOOKUP(ToolYear-2,Trends!$A$3:$H$94,7))) -> 211534.5247 | E20: =U20*IF(ValYear=ToolYear,1,IF(ValYear = ToolYear-1, VLOOKUP(ToolYear-1,Trends!$A$3:$H$94,8), VLOOKUP(ToolYear-1,Trends!$A$3:$H$94,8) * VLOOKUP(ToolYear-2,Trends!$A$3:$H$94,8))) -> 149955.8683 | F20: 0.000876715938 | G20: 0.0005869623145 | H20: 0.0004 | I20: 0.0019 | N20: 37 | O20: 0.003 | P20: 0.003 | R20: 38510.04 | S20: 0 | T20: 193708.5 | U20: 137319.08 | W20: 0.000882 | X20: 0.0005905
A21: 38 | B21: =R21*IF(ValYear=ToolYear,1,IF(ValYear = ToolYear-1, VLOOKUP(ToolYear-1,Trends!$A$3:$H$94,IF(ExFlg=1,2,4)), VLOOKUP(ToolYear-1,Trends!$A$3:$H$94,IF(ExFlg=1,2,4)) * VLOOKUP(ToolYear-2,Trends!$A$3:$H$94,IF(ExFlg=1,2,4)))) -> 43474.1382 | C21: 0 | D21: =T21*IF(ValYear=ToolYear,1,IF(ValYear = ToolYear-1, VLOOKUP(ToolYear-1,Trends!$A$3:$H$94,7), VLOOKUP(ToolYear-1,Trends!$A$3:$H$94,7) * VLOOKUP(ToolYear-2,Trends!$A$3:$H$94,7))) -> 211534.5247 | E21: =U21*IF(ValYear=ToolYear,1,IF(ValYear = ToolYear-1, VLOOKUP(ToolYear-1,Trends!$A$3:$H$94,8), VLOOKUP(ToolYear-1,Trends!$A$3:$H$94,8) * VLOOKUP(ToolYear-2,Trends!$A$3:$H$94,8))) -> 149955.8683 | F21: 0.000933374451 | G21: 0.0006376567735 | H21: 0.0004 | I21: 0.0019 | N21: 38 | O21: 0.003 | P21: 0.003 | R21: 38510.04 | S21: 0 | T21: 193708.5 | U21: 137319.08 | W21: 0.000939 | X21: 0.0006415
A22: 39 | B22: =R22*IF(ValYear=ToolYear,1,IF(ValYear = ToolYear-1, VLOOKUP(ToolYear-1,Trends!$A$3:$H$94,IF(ExFlg=1,2,4)), VLOOKUP(ToolYear-1,Trends!$A$3:$H$94,IF(ExFlg=1,2,4)) * VLOOKUP(ToolYear-2,Trends!$A$3:$H$94,IF(ExFlg=1,2,4)))) -> 43474.1382 | C22: 0 | D22: =T22*IF(ValYear=ToolYear,1,IF(ValYear = ToolYear-1, VLOOKUP(ToolYear-1,Trends!$A$3:$H$94,7), VLOOKUP(ToolYear-1,Trends!$A$3:$H$94,7) * VLOOKUP(ToolYear-2,Trends!$A$3:$H$94,7))) -> 211534.5247 | E22: =U22*IF(ValYear=ToolYear,1,IF(ValYear = ToolYear-1, VLOOKUP(ToolYear-1,Trends!$A$3:$H$94,8), VLOOKUP(ToolYear-1,Trends!$A$3:$H$94,8) * VLOOKUP(ToolYear-2,Trends!$A$3:$H$94,8))) -> 149955.8683 | F22: 0.0009915239775 | G22: 0.000696800309 | H22: 0.0004 | I22: 0.0019 | N22: 39 | O22: 0.003 | P22: 0.003 | R22: 38510.04 | S22: 0 | T22: 193708.5 | U22: 137319.08 | W22: 0.0009975 | X22: 0.000701
A23: 40 | B23: =R23*IF(ValYear=ToolYear,1,IF(ValYear = ToolYear-1, VLOOKUP(ToolYear-1,Trends!$A$3:$H$94,IF(ExFlg=1,2,4)), VLOOKUP(ToolYear-1,Trends!$A$3:$H$94,IF(ExFlg=1,2,4)) * VLOOKUP(ToolYear-2,Trends!$A$3:$H$94,IF(ExFlg=1,2,4)))) -> 43474.1382 | C23: 0 | D23: =T23*IF(ValYear=ToolYear,1,IF(ValYear = ToolYear-1, VLOOKUP(ToolYear-1,Trends!$A$3:$H$94,7), VLOOKUP(ToolYear-1,Trends!$A$3:$H$94,7) * VLOOKUP(ToolYear-2,Trends!$A$3:$H$94,7))) -> 211534.5247 | E23: =U23*IF(ValYear=ToolYear,1,IF(ValYear = ToolYear-1, VLOOKUP(ToolYear-1,Trends!$A$3:$H$94,8), VLOOKUP(ToolYear-1,Trends!$A$3:$H$94,8) * VLOOKUP(ToolYear-2,Trends!$A$3:$H$94,8))) -> 149955.8683 | F23: 0.001052655531 | G23: 0.00076538693 | H23: 0.0004 | I23: 0.0019 | N23: 40 | O23: 0.003 | P23: 0.003 | R23: 38510.04 | S23: 0 | T23: 193708.5 | U23: 137319.08 | W23: 0.001059 | X23: 0.00077
A24: 41 | B24: =R24*IF(ValYear=ToolYear,1,IF(ValYear = ToolYear-1, VLOOKUP(ToolYear-1,Trends!$A$3:$H$94,IF(ExFlg=1,2,4)), VLOOKUP(ToolYear-1,Trends!$A$3:$H$94,IF(ExFlg=1,2,4)) * VLOOKUP(ToolYear-2,Trends!$A$3:$H$94,IF(ExFlg=1,2,4)))) -> 43474.1382 | C24: 0 | D24: =T24*IF(ValYear=ToolYear,1,IF(ValYear = ToolYear-1, VLOOKUP(ToolYear-1,Trends!$A$3:$H$94,7), VLOOKUP(ToolYear-1,Trends!$A$3:$H$94,7) * VLOOKUP(ToolYear-2,Trends!$A$3:$H$94,7))) -> 211534.5247 | E24: =U24*IF(ValYear=ToolYear,1,IF(ValYear = ToolYear-1, VLOOKUP(ToolYear-1,Trends!$A$3:$H$94,8), VLOOKUP(ToolYear-1,Trends!$A$3:$H$94,8) * VLOOKUP(ToolYear-2,Trends!$A$3:$H$94,8))) -> 149955.8683 | F24: 0.001119751138 | G24: 0.0008424226275 | H24: 0.0004 | I24: 0.0019 | N24: 41 | O24: 0.003 | P24: 0.003 | R24: 38510.04 | S24: 0 | T24: 193708.5 | U24: 137319.08 | W24: 0.0011265 | X24: 0.0008475
A25: 42 | B25: =R25*IF(ValYear=ToolYear,1,IF(ValYear = ToolYear-1, VLOOKUP(ToolYear-1,Trends!$A$3:$H$94,IF(ExFlg=1,2,4)), VLOOKUP(ToolYear-1,Trends!$A$3:$H$94,IF(ExFlg=1,2,4)) * VLOOKUP(ToolYear-2,Trends!$A$3:$H$94,IF(ExFlg=1,2,4)))) -> 43474.1382 | C25: 0 | D25: =T25*IF(ValYear=ToolYear,1,IF(ValYear = ToolYear-1, VLOOKUP(ToolYear-1,Trends!$A$3:$H$94,7), VLOOKUP(ToolYear-1,Trends!$A$3:$H$94,7) * VLOOKUP(ToolYear-2,Trends!$A$3:$H$94,7))) -> 211534.5247 | E25: =U25*IF(ValYear=ToolYear,1,IF(ValYear = ToolYear-1, VLOOKUP(ToolYear-1,Trends!$A$3:$H$94,8), VLOOKUP(ToolYear-1,Trends!$A$3:$H$94,8) * VLOOKUP(ToolYear-2,Trends!$A$3:$H$94,8))) -> 149955.8683 | F25: 0.001195295823 | G25: 0.0009259193835 | H25: 0.0004 | I25: 0.0019 | N25: 42 | O25: 0.003 | P25: 0.003 | R25: 38510.04 | S25: 0 | T25: 193708.5 | U25: 137319.08 | W25: 0.0012025 | X25: 0.0009315
A26: 43 | B26: =R26*IF(ValYear=ToolYear,1,IF(ValYear = ToolYear-1, VLOOKUP(ToolYear-1,Trends!$A$3:$H$94,IF(ExFlg=1,2,4)), VLOOKUP(ToolYear-1,Trends!$A$3:$H$94,IF(ExFlg=1,2,4)) * VLOOKUP(ToolYear-2,Trends!$A$3:$H$94,IF(ExFlg=1,2,4)))) -> 43474.1382 | C26: 0 | D26: =T26*IF(ValYear=ToolYear,1,IF(ValYear = ToolYear-1, VLOOKUP(ToolYear-1,Trends!$A$3:$H$94,7), VLOOKUP(ToolYear-1,Trends!$A$3:$H$94,7) * VLOOKUP(ToolYear-2,Trends!$A$3:$H$94,7))) -> 211534.5247 | E26: =U26*IF(ValYear=ToolYear,1,IF(ValYear = ToolYear-1, VLOOKUP(ToolYear-1,Trends!$A$3:$H$94,8), VLOOKUP(ToolYear-1,Trends!$A$3:$H$94,8) * VLOOKUP(ToolYear-2,Trends!$A$3:$H$94,8))) -> 149955.8683 | F26: 0.00128227161 | G26: 0.00101388918 | H26: 0.0004 | I26: 0.0019 | N26: 43 | O26: 0.003 | P26: 0.003 | R26: 38510.04 | S26: 0 | T26: 193708.5 | U26: 137319.08 | W26: 0.00129 | X26: 0.00102
A27: 44 | B27: =R27*IF(ValYear=ToolYear,1,IF(ValYear = ToolYear-1, VLOOKUP(ToolYear-1,Trends!$A$3:$H$94,IF(ExFlg=1,2,4)), VLOOKUP(ToolYear-1,Trends!$A$3:$H$94,IF(ExFlg=1,2,4)) * VLOOKUP(ToolYear-2,Trends!$A$3:$H$94,IF(ExFlg=1,2,4)))) -> 43474.1382 | C27: 0 | D27: =T27*IF(ValYear=ToolYear,1,IF(ValYear = ToolYear-1, VLOOKUP(ToolYear-1,Trends!$A$3:$H$94,7), VLOOKUP(ToolYear-1,Trends!$A$3:$H$94,7) * VLOOKUP(ToolYear-2,Trends!$A$3:$H$94,7))) -> 211534.5247 | E27: =U27*IF(ValYear=ToolYear,1,IF(ValYear = ToolYear-1, VLOOKUP(ToolYear-1,Trends!$A$3:$H$94,8), VLOOKUP(ToolYear-1,Trends!$A$3:$H$94,8) * VLOOKUP(ToolYear-2,Trends!$A$3:$H$94,8))) -> 149955.8683 | F27: 0.001372726429 | G27: 0.001105338008 | H27: 0.0004 | I27: 0.0019 | N27: 44 | O27: 0.003 | P27: 0.003 | R27: 38510.04 | S27: 0 | T27: 193708.5 | U27: 137319.08 | W27: 0.001381 | X27: 0.001112
A28: 45 | B28: =R28*IF(ValYear=ToolYear,1,IF(ValYear = ToolYear-1, VLOOKUP(ToolYear-1,Trends!$A$3:$H$94,IF(ExFlg=1,2,4)), VLOOKUP(ToolYear-1,Trends!$A$3:$H$94,IF(ExFlg=1,2,4)) * VLOOKUP(ToolYear-2,Trends!$A$3:$H$94,IF(ExFlg=1,2,4)))) -> 43474.1382 | C28: 0 | D28: =T28*IF(ValYear=ToolYear,1,IF(ValYear = ToolYear-1, VLOOKUP(ToolYear-1,Trends!$A$3:$H$94,7), VLOOKUP(ToolYear-1,Trends!$A$3:$H$94,7) * VLOOKUP(ToolYear-2,Trends!$A$3:$H$94,7))) -> 211534.5247 | E28: =U28*IF(ValYear=ToolYear,1,IF(ValYear = ToolYear-1, VLOOKUP(ToolYear-1,Trends!$A$3:$H$94,8), VLOOKUP(ToolYear-1,Trends!$A$3:$H$94,8) * VLOOKUP(ToolYear-2,Trends!$A$3:$H$94,8))) -> 149955.8683 | F28: 0.001474115347 | G28: 0.001200265868 | H28: 0.0004 | I28: 0.0019 | N28: 45 | O28: 0.003 | P28: 0.003 | R28: 38510.04 | S28: 0 | T28: 193708.5 | U28: 137319.08 | W28: 0.001483 | X28: 0.0012075
A29: 46 | B29: =R29*IF(ValYear=ToolYear,1,IF(ValYear = ToolYear-1, VLOOKUP(ToolYear-1,Trends!$A$3:$H$94,IF(ExFlg=1,2,4)), VLOOKUP(ToolYear-1,Trends!$A$3:$H$94,IF(ExFlg=1,2,4)) * VLOOKUP(ToolYear-2,Trends!$A$3:$H$94,IF(ExFlg=1,2,4)))) -> 43474.1382 | C29: 0 | D29: =T29*IF(ValYear=ToolYear,1,IF(ValYear = ToolYear-1, VLOOKUP(ToolYear-1,Trends!$A$3:$H$94,7), VLOOKUP(ToolYear-1,Trends!$A$3:$H$94,7) * VLOOKUP(ToolYear-2,Trends!$A$3:$H$94,7))) -> 211360.2266 | E29: =U29*IF(ValYear=ToolYear,1,IF(ValYear = ToolYear-1, VLOOKUP(ToolYear-1,Trends!$A$3:$H$94,8), VLOOKUP(ToolYear-1,Trends!$A$3:$H$94,8) * VLOOKUP(ToolYear-2,Trends!$A$3:$H$94,8))) -> 149845.0922 | F29: 0.001585941359 | G29: 0.001299666768 | H29: 0.00044 | I29: 0.00211 | N29: 46 | O29: 0.003 | P29: 0.003 | R29: 38510.04 | S29: 0 | T29: 193548.89 | U29: 137217.639 | W29: 0.0015955 | X29: 0.0013075
A30: 47 | B30: =R30*IF(ValYear=ToolYear,1,IF(ValYear = ToolYear-1, VLOOKUP(ToolYear-1,Trends!$A$3:$H$94,IF(ExFlg=1,2,4)), VLOOKUP(ToolYear-1,Trends!$A$3:$H$94,IF(ExFlg=1,2,4)) * VLOOKUP(ToolYear-2,Trends!$A$3:$H$94,IF(ExFlg=1,2,4)))) -> 43474.1382 | C30: 0 | D30: =T30*IF(ValYear=ToolYear,1,IF(ValYear = ToolYear-1, VLOOKUP(ToolYear-1,Trends!$A$3:$H$94,7), VLOOKUP(ToolYear-1,Trends!$A$3:$H$94,7) * VLOOKUP(ToolYear-2,Trends!$A$3:$H$94,7))) -> 211185.9285 | E30: =U30*IF(ValYear=ToolYear,1,IF(ValYear = ToolYear-1, VLOOKUP(ToolYear-1,Trends!$A$3:$H$94,8), VLOOKUP(ToolYear-1,Trends!$A$3:$H$94,8) * VLOOKUP(ToolYear-2,Trends!$A$3:$H$94,8))) -> 149734.3161 | F30: 0.001700252395 | G30: 0.001405031721 | H30: 0.00048 | I30: 0.00232 | N30: 47 | O30: 0.003 | P30: 0.003 | R30: 38510.04 | S30: 0 | T30: 193389.28 | U30: 137116.198 | W30: 0.0017105 | X30: 0.0014135
A31: 48 | B31: =R31*IF(ValYear=ToolYear,1,IF(ValYear = ToolYear-1, VLOOKUP(ToolYear-1,Trends!$A$3:$H$94,IF(ExFlg=1,2,4)), VLOOKUP(ToolYear-1,Trends!$A$3:$H$94,IF(ExFlg=1,2,4)) * VLOOKUP(ToolYear-2,Trends!$A$3:$H$94,IF(ExFlg=1,2,4)))) -> 43474.1382 | C31: 0 | D31: =T31*IF(ValYear=ToolYear,1,IF(ValYear = ToolYear-1, VLOOKUP(ToolYear-1,Trends!$A$3:$H$94,7), VLOOKUP(ToolYear-1,Trends!$A$3:$H$94,7) * VLOOKUP(ToolYear-2,Trends!$A$3:$H$94,7))) -> 211011.6304 | E31: =U31*IF(ValYear=ToolYear,1,IF(ValYear = ToolYear-1, VLOOKUP(ToolYear-1,Trends!$A$3:$H$94,8), VLOOKUP(ToolYear-1,Trends!$A$3:$H$94,8) * VLOOKUP(ToolYear-2,Trends!$A$3:$H$94,8))) -> 149623.54 | F31: 0.001823012506 | G31: 0.001518845752 | H31: 0.00052 | I31: 0.00253 | N31: 48 | O31: 0.003 | P31: 0.003 | R31: 38510.04 | S31: 0 | T31: 193229.67 | U31: 137014.757 | W31: 0.001834 | X31: 0.001528
A32: 49 | B32: =R32*IF(ValYear=ToolYear,1,IF(ValYear = ToolYear-1, VLOOKUP(ToolYear-1,Trends!$A$3:$H$94,IF(ExFlg=1,2,4)), VLOOKUP(ToolYear-1,Trends!$A$3:$H$94,IF(ExFlg=1,2,4)) * VLOOKUP(ToolYear-2,Trends!$A$3:$H$94,IF(ExFlg=1,2,4)))) -> 43474.1382 | C32: 0 | D32: =T32*IF(ValYear=ToolYear,1,IF(ValYear = ToolYear-1, VLOOKUP(ToolYear-1,Trends!$A$3:$H$94,7), VLOOKUP(ToolYear-1,Trends!$A$3:$H$94,7) * VLOOKUP(ToolYear-2,Trends!$A$3:$H$94,7))) -> 210837.3323 | E32: =U32*IF(ValYear=ToolYear,1,IF(ValYear = ToolYear-1, VLOOKUP(ToolYear-1,Trends!$A$3:$H$94,8), VLOOKUP(ToolYear-1,Trends!$A$3:$H$94,8) * VLOOKUP(ToolYear-2,Trends!$A$3:$H$94,8))) -> 149512.7639 | F32: 0.002028772369 | G32: 0.001661486044 | H32: 0.00056 | I32: 0.00274 | N32: 49 | O32: 0.003 | P32: 0.003 | R32: 38510.04 | S32: 0 | T32: 193070.06 | U32: 136913.316 | W32: 0.002041 | X32: 0.0016715
A33: 50 | B33: =R33*IF(ValYear=ToolYear,1,IF(ValYear = ToolYear-1, VLOOKUP(ToolYear-1,Trends!$A$3:$H$94,IF(ExFlg=1,2,4)), VLOOKUP(ToolYear-1,Trends!$A$3:$H$94,IF(ExFlg=1,2,4)) * VLOOKUP(ToolYear-2,Trends!$A$3:$H$94,IF(ExFlg=1,2,4)))) -> 43474.1382 | C33: 0 | D33: =T33*IF(ValYear=ToolYear,1,IF(ValYear = ToolYear-1, VLOOKUP(ToolYear-1,Trends!$A$3:$H$94,7), VLOOKUP(ToolYear-1,Trends!$A$3:$H$94,7) * VLOOKUP(ToolYear-2,Trends!$A$3:$H$94,7))) -> 210663.0342 | E33: =U33*IF(ValYear=ToolYear,1,IF(ValYear = ToolYear-1, VLOOKUP(ToolYear-1,Trends!$A$3:$H$94,8), VLOOKUP(ToolYear-1,Trends!$A$3:$H$94,8) * VLOOKUP(ToolYear-2,Trends!$A$3:$H$94,8))) -> 149401.9878 | F33: 0.002195268876 | G33: 0.001822515502 | H33: 0.0006 | I33: 0.00295 | N33: 50 | O33: 0.003 | P33: 0.003 | R33: 38510.04 | S33: 0 | T33: 192910.45 | U33: 136811.875 | W33: 0.0022085 | X33: 0.0018335
A34: 51 | B34: =R34*IF(ValYear=ToolYear,1,IF(ValYear = ToolYear-1, VLOOKUP(ToolYear-1,Trends!$A$3:$H$94,IF(ExFlg=1,2,4)), VLOOKUP(ToolYear-1,Trends!$A$3:$H$94,IF(ExFlg=1,2,4)) * VLOOKUP(ToolYear-2,Trends!$A$3:$H$94,IF(ExFlg=1,2,4)))) -> 43474.1382 | C34: 0 | D34: =T34*IF(ValYear=ToolYear,1,IF(ValYear = ToolYear-1, VLOOKUP(ToolYear-1,Trends!$A$3:$H$94,7), VLOOKUP(ToolYear-1,Trends!$A$3:$H$94,7) * VLOOKUP(ToolYear-2,Trends!$A$3:$H$94,7))) -> 210488.7361 | E34: =U34*IF(ValYear=ToolYear,1,IF(ValYear = ToolYear-1, VLOOKUP(ToolYear-1,Trends!$A$3:$H$94,8), VLOOKUP(ToolYear-1,Trends!$A$3:$H$94,8) * VLOOKUP(ToolYear-2,Trends!$A$3:$H$94,8))) -> 149291.2117 | F34: 0.002379160541 | G34: 0.001989509013 | H34: 0.00064 | I34: 0.00316 | N34: 51 | O34: 0.003 | P34: 0.003 | R34: 38510.04 | S34: 0 | T34: 192750.84 | U34: 136710.434 | W34: 0.0023935 | X34: 0.0020015
A35: 52 | B35: =R35*IF(ValYear=ToolYear,1,IF(ValYear = ToolYear-1, VLOOKUP(ToolYear-1,Trends!$A$3:$H$94,IF(ExFlg=1,2,4)), VLOOKUP(ToolYear-1,Trends!$A$3:$H$94,IF(ExFlg=1,2,4)) * VLOOKUP(ToolYear-2,Trends!$A$3:$H$94,IF(ExFlg=1,2,4)))) -> 43474.1382 | C35: 0 | D35: =T35*IF(ValYear=ToolYear,1,IF(ValYear = ToolYear-1, VLOOKUP(ToolYear-1,Trends!$A$3:$H$94,7), VLOOKUP(ToolYear-1,Trends!$A$3:$H$94,7) * VLOOKUP(ToolYear-2,Trends!$A$3:$H$94,7))) -> 210314.4379 | E35: =U35*IF(ValYear=ToolYear,1,IF(ValYear = ToolYear-1, VLOOKUP(ToolYear-1,Trends!$A$3:$H$94,8), VLOOKUP(ToolYear-1,Trends!$A$3:$H$94,8) * VLOOKUP(ToolYear-2,Trends!$A$3:$H$94,8))) -> 149180.4356 | F35: =W35*IF(ValYear=ToolYear,1,IF(ValYear=ToolYear-1, 1-O35, (1-O35)^2)) -> 0.002657980066 | G35: =X35*IF(ValYear=ToolYear,1,IF(ValYear=ToolYear-1, 1-P35, (1-P35)^2)) -> 0.002180358742 | H35: 0.00068 | I35: 0.00337 | N35: 52 | O35: 0.003 | P35: 0.003 | R35: 38510.04 | S35: 0 | T35: 192591.23 | U35: 136608.993 | W35: 0.002674 | X35: 0.0021935
A36: =1+A35 -> 53 | B36: =R36*IF(ValYear=ToolYear,1,IF(ValYear = ToolYear-1, VLOOKUP(ToolYear-1,Trends!$A$3:$H$94,IF(ExFlg=1,2,4)), VLOOKUP(ToolYear-1,Trends!$A$3:$H$94,IF(ExFlg=1,2,4)) * VLOOKUP(ToolYear-2,Trends!$A$3:$H$94,IF(ExFlg=1,2,4)))) -> 43474.1382 | C36: 0 | D36: =T36*IF(ValYear=ToolYear,1,IF(ValYear = ToolYear-1, VLOOKUP(ToolYear-1,Trends!$A$3:$H$94,7), VLOOKUP(ToolYear-1,Trends!$A$3:$H$94,7) * VLOOKUP(ToolYear-2,Trends!$A$3:$H$94,7))) -> 210140.1398 | E36: =U36*IF(ValYear=ToolYear,1,IF(ValYear = ToolYear-1, VLOOKUP(ToolYear-1,Trends!$A$3:$H$94,8), VLOOKUP(ToolYear-1,Trends!$A$3:$H$94,8) * VLOOKUP(ToolYear-2,Trends!$A$3:$H$94,8))) -> 149069.6595 | F36: 0.00296214682 | G36: 0.002420411915 | H36: 0.00072 | I36: 0.00358 | N36: 53 | O36: 0.003 | P36: 0.003 | R36: 38510.04 | S36: 0 | T36: 192431.62 | U36: 136507.552 | W36: 0.00298 | X36: 0.002435
A37: 54 | B37: =R37*IF(ValYear=ToolYear,1,IF(ValYear = ToolYear-1, VLOOKUP(ToolYear-1,Trends!$A$3:$H$94,IF(ExFlg=1,2,4)), VLOOKUP(ToolYear-1,Trends!$A$3:$H$94,IF(ExFlg=1,2,4)) * VLOOKUP(ToolYear-2,Trends!$A$3:$H$94,IF(ExFlg=1,2,4)))) -> 43474.1382 | C37: 0 | D37: =T37*IF(ValYear=ToolYear,1,IF(ValYear = ToolYear-1, VLOOKUP(ToolYear-1,Trends!$A$3:$H$94,7), VLOOKUP(ToolYear-1,Trends!$A$3:$H$94,7) * VLOOKUP(ToolYear-2,Trends!$A$3:$H$94,7))) -> 209965.8417 | E37: =U37*IF(ValYear=ToolYear,1,IF(ValYear = ToolYear-1, VLOOKUP(ToolYear-1,Trends!$A$3:$H$94,8), VLOOKUP(ToolYear-1,Trends!$A$3:$H$94,8) * VLOOKUP(ToolYear-2,Trends!$A$3:$H$94,8))) -> 148958.8834 | F37: 0.003350307335 | G37: 0.002679931224 | H37: 0.00076 | I37: 0.00379 | N37: 54 | O37: 0.003 | P37: 0.004 | R37: 38510.04 | S37: 0 | T37: 192272.01 | U37: 136406.111 | W37: 0.0033705 | X37: 0.0027015
A38: 55 | B38: =R38*IF(ValYear=ToolYear,1,IF(ValYear = ToolYear-1, VLOOKUP(ToolYear-1,Trends!$A$3:$H$94,IF(ExFlg=1,2,4)), VLOOKUP(ToolYear-1,Trends!$A$3:$H$94,IF(ExFlg=1,2,4)) * VLOOKUP(ToolYear-2,Trends!$A$3:$H$94,IF(ExFlg=1,2,4)))) -> 44138.88203 | C38: 0 | D38: =T38*IF(ValYear=ToolYear,1,IF(ValYear = ToolYear-1, VLOOKUP(ToolYear-1,Trends!$A$3:$H$94,7), VLOOKUP(ToolYear-1,Trends!$A$3:$H$94,7) * VLOOKUP(ToolYear-2,Trends!$A$3:$H$94,7))) -> 209791.5436 | E38: =U38*IF(ValYear=ToolYear,1,IF(ValYear = ToolYear-1, VLOOKUP(ToolYear-1,Trends!$A$3:$H$94,8), VLOOKUP(ToolYear-1,Trends!$A$3:$H$94,8) * VLOOKUP(ToolYear-2,Trends!$A$3:$H$94,8))) -> 148848.1073 | F38: 0.003714611633 | G38: 0.002970570012 | H38: 0.0008 | I38: 0.004 | N38: 55 | O38: 0.003 | P38: 0.005 | R38: 39098.88 | S38: 0 | T38: 192112.4 | U38: 136304.67 | W38: 0.003737 | X38: 0.0030005
A39: 56 | B39: =R39*IF(ValYear=ToolYear,1,IF(ValYear = ToolYear-1, VLOOKUP(ToolYear-1,Trends!$A$3:$H$94,IF(ExFlg=1,2,4)), VLOOKUP(ToolYear-1,Trends!$A$3:$H$94,IF(ExFlg=1,2,4)) * VLOOKUP(ToolYear-2,Trends!$A$3:$H$94,IF(ExFlg=1,2,4)))) -> 44813.78599 | C39: 0 | D39: =T39*IF(ValYear=ToolYear,1,IF(ValYear = ToolYear-1, VLOOKUP(ToolYear-1,Trends!$A$3:$H$94,7), VLOOKUP(ToolYear-1,Trends!$A$3:$H$94,7) * VLOOKUP(ToolYear-2,Trends!$A$3:$H$94,7))) -> 209700.9991 | E39: =U39*IF(ValYear=ToolYear,1,IF(ValYear = ToolYear-1, VLOOKUP(ToolYear-1,Trends!$A$3:$H$94,8), VLOOKUP(ToolYear-1,Trends!$A$3:$H$94,8) * VLOOKUP(ToolYear-2,Trends!$A$3:$H$94,8))) -> 148414.9977 | F39: 0.004188753926 | G39: 0.003280773538 | H39: 0.0009 | I39: 0.0044 | N39: 56 | O39: 0.003 | P39: 0.006 | R39: 39696.72 | S39: 0 | T39: 192029.4857 | U39: 135908.0586 | W39: 0.004214 | X39: 0.0033205
A40: 57 | B40: =R40*IF(ValYear=ToolYear,1,IF(ValYear = ToolYear-1, VLOOKUP(ToolYear-1,Trends!$A$3:$H$94,IF(ExFlg=1,2,4)), VLOOKUP(ToolYear-1,Trends!$A$3:$H$94,IF(ExFlg=1,2,4)) * VLOOKUP(ToolYear-2,Trends!$A$3:$H$94,IF(ExFlg=1,2,4)))) -> 45498.98557 | C40: 0 | D40: =T40*IF(ValYear=ToolYear,1,IF(ValYear = ToolYear-1, VLOOKUP(ToolYear-1,Trends!$A$3:$H$94,7), VLOOKUP(ToolYear-1,Trends!$A$3:$H$94,7) * VLOOKUP(ToolYear-2,Trends!$A$3:$H$94,7))) -> 209610.4547 | E40: =U40*IF(ValYear=ToolYear,1,IF(ValYear = ToolYear-1, VLOOKUP(ToolYear-1,Trends!$A$3:$H$94,8), VLOOKUP(ToolYear-1,Trends!$A$3:$H$94,8) * VLOOKUP(ToolYear-2,Trends!$A$3:$H$94,8))) -> 147981.8881 | F40: 0.004681819512 | G40: 0.003634083589 | H40: 0.001 | I40: 0.0048 | N40: 57 | O40: 0.004 | P40: 0.007 | R40: 40303.68 | S40: 0 | T40: 191946.5714 | U40: 135511.4471 | W40: 0.0047195 | X40: 0.0036855
A41: 58 | B41: =R41*IF(ValYear=ToolYear,1,IF(ValYear = ToolYear-1, VLOOKUP(ToolYear-1,Trends!$A$3:$H$94,IF(ExFlg=1,2,4)), VLOOKUP(ToolYear-1,Trends!$A$3:$H$94,IF(ExFlg=1,2,4)) * VLOOKUP(ToolYear-2,Trends!$A$3:$H$94,IF(ExFlg=1,2,4)))) -> 47129.8906 | C41: 0 | D41: =T41*IF(ValYear=ToolYear,1,IF(ValYear = ToolYear-1, VLOOKUP(ToolYear-1,Trends!$A$3:$H$94,7), VLOOKUP(ToolYear-1,Trends!$A$3:$H$94,7) * VLOOKUP(ToolYear-2,Trends!$A$3:$H$94,7))) -> 209519.9102 | E41: =U41*IF(ValYear=ToolYear,1,IF(ValYear = ToolYear-1, VLOOKUP(ToolYear-1,Trends!$A$3:$H$94,8), VLOOKUP(ToolYear-1,Trends!$A$3:$H$94,8) * VLOOKUP(ToolYear-2,Trends!$A$3:$H$94,8))) -> 147548.7785 | F41: 0.005174365663 | G41: 0.004043518976 | H41: 0.0011 | I41: 0.0052 | N41: 58 | O41: 0.005 | P41: 0.008 | R41: 41748.36 | S41: 0 | T41: 191863.6571 | U41: 135114.8357 | W41: 0.0052265 | X41: 0.004109
A42: 59 | B42: =R42*IF(ValYear=ToolYear,1,IF(ValYear = ToolYear-1, VLOOKUP(ToolYear-1,Trends!$A$3:$H$94,IF(ExFlg=1,2,4)), VLOOKUP(ToolYear-1,Trends!$A$3:$H$94,IF(ExFlg=1,2,4)) * VLOOKUP(ToolYear-2,Trends!$A$3:$H$94,IF(ExFlg=1,2,4)))) -> 48819.31801 | C42: 0 | D42: =T42*IF(ValYear=ToolYear,1,IF(ValYear = ToolYear-1, VLOOKUP(ToolYear-1,Trends!$A$3:$H$94,7), VLOOKUP(ToolYear-1,Trends!$A$3:$H$94,7) * VLOOKUP(ToolYear-2,Trends!$A$3:$H$94,7))) -> 209429.3657 | E42: =U42*IF(ValYear=ToolYear,1,IF(ValYear = ToolYear-1, VLOOKUP(ToolYear-1,Trends!$A$3:$H$94,8), VLOOKUP(ToolYear-1,Trends!$A$3:$H$94,8) * VLOOKUP(ToolYear-2,Trends!$A$3:$H$94,8))) -> 147115.6689 | F42: 0.00574048916 | G42: 0.004535741099 | H42: 0.0012 | I42: 0.0056 | N42: 59 | O42: 0.006 | P42: 0.009 | R42: 43244.88 | S42: 0 | T42: 191780.7429 | U42: 134718.2243 | W42: 0.00581 | X42: 0.0046185
A43: 60 | B43: =R43*IF(ValYear=ToolYear,1,IF(ValYear = ToolYear-1, VLOOKUP(ToolYear-1,Trends!$A$3:$H$94,IF(ExFlg=1,2,4)), VLOOKUP(ToolYear-1,Trends!$A$3:$H$94,IF(ExFlg=1,2,4)) * VLOOKUP(ToolYear-2,Trends!$A$3:$H$94,IF(ExFlg=1,2,4)))) -> 50569.16437 | C43: 0 | D43: =T43*IF(ValYear=ToolYear,1,IF(ValYear = ToolYear-1, VLOOKUP(ToolYear-1,Trends!$A$3:$H$94,7), VLOOKUP(ToolYear-1,Trends!$A$3:$H$94,7) * VLOOKUP(ToolYear-2,Trends!$A$3:$H$94,7))) -> 209338.8212 | E43: =U43*IF(ValYear=ToolYear,1,IF(ValYear = ToolYear-1, VLOOKUP(ToolYear-1,Trends!$A$3:$H$94,8), VLOOKUP(ToolYear-1,Trends!$A$3:$H$94,8) * VLOOKUP(ToolYear-2,Trends!$A$3:$H$94,8))) -> 146682.5593 | F43: 0.006387625422 | G43: 0.00509995035 | H43: 0.0013 | I43: 0.006 | N43: 60 | O43: 0.007 | P43: 0.01 | R43: 44794.92 | S43: 0 | T43: 191697.8286 | U43: 134321.6129 | W43: 0.006478 | X43: 0.0052035
A44: 61 | B44: =R44*IF(ValYear=ToolYear,1,IF(ValYear = ToolYear-1, VLOOKUP(ToolYear-1,Trends!$A$3:$H$94,IF(ExFlg=1,2,4)), VLOOKUP(ToolYear-1,Trends!$A$3:$H$94,IF(ExFlg=1,2,4)) * VLOOKUP(ToolYear-2,Trends!$A$3:$H$94,IF(ExFlg=1,2,4)))) -> 52381.8681 | C44: 0 | D44: =T44*IF(ValYear=ToolYear,1,IF(ValYear = ToolYear-1, VLOOKUP(ToolYear-1,Trends!$A$3:$H$94,7), VLOOKUP(ToolYear-1,Trends!$A$3:$H$94,7) * VLOOKUP(ToolYear-2,Trends!$A$3:$H$94,7))) -> 209248.2768 | E44: =U44*IF(ValYear=ToolYear,1,IF(ValYear = ToolYear-1, VLOOKUP(ToolYear-1,Trends!$A$3:$H$94,8), VLOOKUP(ToolYear-1,Trends!$A$3:$H$94,8) * VLOOKUP(ToolYear-2,Trends!$A$3:$H$94,8))) -> 146249.4497 | F44: 0.007135940096 | G44: 0.005732767181 | H44: 0.0014 | I44: 0.0064 | N44: 61 | O44: 0.008 | P44: 0.011 | R44: 46400.64 | S44: 0 | T44: 191614.9143 | U44: 133925.0014 | W44: 0.0072515 | X44: 0.005861
A45: 62 | B45: =R45*IF(ValYear=ToolYear,1,IF(ValYear = ToolYear-1, VLOOKUP(ToolYear-1,Trends!$A$3:$H$94,IF(ExFlg=1,2,4)), VLOOKUP(ToolYear-1,Trends!$A$3:$H$94,IF(ExFlg=1,2,4)) * VLOOKUP(ToolYear-2,Trends!$A$3:$H$94,IF(ExFlg=1,2,4)))) -> 54259.5967 | C45: 0 | D45: =T45*IF(ValYear=ToolYear,1,IF(ValYear = ToolYear-1, VLOOKUP(ToolYear-1,Trends!$A$3:$H$94,7), VLOOKUP(ToolYear-1,Trends!$A$3:$H$94,7) * VLOOKUP(ToolYear-2,Trends!$A$3:$H$94,7))) -> 209157.7323 | E45: =U45*IF(ValYear=ToolYear,1,IF(ValYear = ToolYear-1, VLOOKUP(ToolYear-1,Trends!$A$3:$H$94,8), VLOOKUP(ToolYear-1,Trends!$A$3:$H$94,8) * VLOOKUP(ToolYear-2,Trends!$A$3:$H$94,8))) -> 145816.3401 | F45: 0.007910171415 | G45: 0.00638886248 | H45: 0.0015 | I45: 0.0068 | N45: 62 | O45: 0.009 | P45: 0.012 | R45: 48063.96 | S45: 0 | T45: 191532 | U45: 133528.39 | W45: 0.0080545 | X45: 0.006545
A46: 63 | B46: =R46*IF(ValYear=ToolYear,1,IF(ValYear = ToolYear-1, VLOOKUP(ToolYear-1,Trends!$A$3:$H$94,IF(ExFlg=1,2,4)), VLOOKUP(ToolYear-1,Trends!$A$3:$H$94,IF(ExFlg=1,2,4)) * VLOOKUP(ToolYear-2,Trends!$A$3:$H$94,IF(ExFlg=1,2,4)))) -> 57511.51756 | C46: 0 | D46: =T46*IF(ValYear=ToolYear,1,IF(ValYear = ToolYear-1, VLOOKUP(ToolYear-1,Trends!$A$3:$H$94,7), VLOOKUP(ToolYear-1,Trends!$A$3:$H$94,7) * VLOOKUP(ToolYear-2,Trends!$A$3:$H$94,7))) -> 208603.1474 | E46: =U46*IF(ValYear=ToolYear,1,IF(ValYear = ToolYear-1, VLOOKUP(ToolYear-1,Trends!$A$3:$H$94,8), VLOOKUP(ToolYear-1,Trends!$A$3:$H$94,8) * VLOOKUP(ToolYear-2,Trends!$A$3:$H$94,8))) -> 146807.4947 | F46: 0.00879002685 | G46: 0.007197109712 | H46: 0.00176 | I46: 0.00744 | N46: 63 | O46: 0.01 | P46: 0.012 | R46: 50944.56 | S46: 0 | T46: 191024.15 | U46: 134436.02 | W46: 0.0089685 | X46: 0.007373
A47: 64 | B47: =R47*IF(ValYear=ToolYear,1,IF(ValYear = ToolYear-1, VLOOKUP(ToolYear-1,Trends!$A$3:$H$94,IF(ExFlg=1,2,4)), VLOOKUP(ToolYear-1,Trends!$A$3:$H$94,IF(ExFlg=1,2,4)) * VLOOKUP(ToolYear-2,Trends!$A$3:$H$94,IF(ExFlg=1,2,4)))) -> 60958.37757 | C47: 0 | D47: =T47*IF(ValYear=ToolYear,1,IF(ValYear = ToolYear-1, VLOOKUP(ToolYear-1,Trends!$A$3:$H$94,7), VLOOKUP(ToolYear-1,Trends!$A$3:$H$94,7) * VLOOKUP(ToolYear-2,Trends!$A$3:$H$94,7))) -> 208048.5625 | E47: =U47*IF(ValYear=ToolYear,1,IF(ValYear = ToolYear-1, VLOOKUP(ToolYear-1,Trends!$A$3:$H$94,8), VLOOKUP(ToolYear-1,Trends!$A$3:$H$94,8) * VLOOKUP(ToolYear-2,Trends!$A$3:$H$94,8))) -> 147798.6494 | F47: 0.009787567787 | G47: 0.008114197 | H47: 0.00202 | I47: 0.00808 | N47: 64 | O47: 0.011 | P47: 0.012 | R47: 53997.84 | S47: 0 | T47: 190516.3 | U47: 135343.65 | W47: 0.0100065 | X47: 0.0083125
A48: 65 | B48: =R48*IF(ValYear=ToolYear,1,IF(ValYear = ToolYear-1, VLOOKUP(ToolYear-1,Trends!$A$3:$H$94,IF(ExFlg=1,3,5)), VLOOKUP(ToolYear-1,Trends!$A$3:$H$94,IF(ExFlg=1,3,5)) * VLOOKUP(ToolYear-2,Trends!$A$3:$H$94,IF(ExFlg=1,3,5)))) -> 13101.61628 | C48: =S48*IF(ValYear=ToolYear,1,IF(ValYear = ToolYear-1, VLOOKUP(ToolYear-1,Trends!$A$3:$H$94,6), VLOOKUP(ToolYear-1,Trends!$A$3:$H$94,6) * VLOOKUP(ToolYear-2,Trends!$A$3:$H$94,6))) -> 1737.016974 | D48: =T48*IF(ValYear=ToolYear,1,IF(ValYear = ToolYear-1, VLOOKUP(ToolYear-1,Trends!$A$3:$H$94,7), VLOOKUP(ToolYear-1,Trends!$A$3:$H$94,7) * VLOOKUP(ToolYear-2,Trends!$A$3:$H$94,7))) -> 207493.9776 | E48: =U48*IF(ValYear=ToolYear,1,IF(ValYear = ToolYear-1, VLOOKUP(ToolYear-1,Trends!$A$3:$H$94,8), VLOOKUP(ToolYear-1,Trends!$A$3:$H$94,8) * VLOOKUP(ToolYear-2,Trends!$A$3:$H$94,8))) -> 148789.804 | F48: 0.01074344086 | G48: 0.009079115344 | H48: 0.00228 | I48: 0.00872 | N48: 65 | O48: 0.012 | P48: 0.012 | R48: 11704.56 | S48: 1617 | T48: 190008.45 | U48: 136251.28 | W48: 0.011006 | X48: 0.009301
A49: 66 | B49: =R49*IF(ValYear=ToolYear,1,IF(ValYear = ToolYear-1, VLOOKUP(ToolYear-1,Trends!$A$3:$H$94,IF(ExFlg=1,3,5)), VLOOKUP(ToolYear-1,Trends!$A$3:$H$94,IF(ExFlg=1,3,5)) * VLOOKUP(ToolYear-2,Trends!$A$3:$H$94,IF(ExFlg=1,3,5)))) -> 13303.10108 | C49: =S49*IF(ValYear=ToolYear,1,IF(ValYear = ToolYear-1, VLOOKUP(ToolYear-1,Trends!$A$3:$H$94,6), VLOOKUP(ToolYear-1,Trends!$A$3:$H$94,6) * VLOOKUP(ToolYear-2,Trends!$A$3:$H$94,6))) -> 1737.016974 | D49: =T49*IF(ValYear=ToolYear,1,IF(ValYear = ToolYear-1, VLOOKUP(ToolYear-1,Trends!$A$3:$H$94,7), VLOOKUP(ToolYear-1,Trends!$A$3:$H$94,7) * VLOOKUP(ToolYear-2,Trends!$A$3:$H$94,7))) -> 206939.3927 | E49: =U49*IF(ValYear=ToolYear,1,IF(ValYear = ToolYear-1, VLOOKUP(ToolYear-1,Trends!$A$3:$H$94,8), VLOOKUP(ToolYear-1,Trends!$A$3:$H$94,8) * VLOOKUP(ToolYear-2,Trends!$A$3:$H$94,8))) -> 149780.9587 | F49: 0.01178013863 | G49: 0.01005721163 | H49: 0.00254 | I49: 0.00936 | N49: 66 | O49: 0.013 | P49: 0.012 | R49: 11884.56 | S49: 1617 | T49: 189500.6 | U49: 137158.91 | W49: 0.0120925 | X49: 0.010303
A50: 67 | B50: =R50*IF(ValYear=ToolYear,1,IF(ValYear = ToolYear-1, VLOOKUP(ToolYear-1,Trends!$A$3:$H$94,IF(ExFlg=1,3,5)), VLOOKUP(ToolYear-1,Trends!$A$3:$H$94,IF(ExFlg=1,3,5)) * VLOOKUP(ToolYear-2,Trends!$A$3:$H$94,IF(ExFlg=1,3,5)))) -> 13507.54099 | C50: =S50*IF(ValYear=ToolYear,1,IF(ValYear = ToolYear-1, VLOOKUP(ToolYear-1,Trends!$A$3:$H$94,6), VLOOKUP(ToolYear-1,Trends!$A$3:$H$94,6) * VLOOKUP(ToolYear-2,Trends!$A$3:$H$94,6))) -> 1737.016974 | D50: =T50*IF(ValYear=ToolYear,1,IF(ValYear = ToolYear-1, VLOOKUP(ToolYear-1,Trends!$A$3:$H$94,7), VLOOKUP(ToolYear-1,Trends!$A$3:$H$94,7) * VLOOKUP(ToolYear-2,Trends!$A$3:$H$94,7))) -> 206384.8078 | E50: =U50*IF(ValYear=ToolYear,1,IF(ValYear = ToolYear-1, VLOOKUP(ToolYear-1,Trends!$A$3:$H$94,8), VLOOKUP(ToolYear-1,Trends!$A$3:$H$94,8) * VLOOKUP(ToolYear-2,Trends!$A$3:$H$94,8))) -> 150772.1133 | F50: 0.01290249921 | G50: 0.01111681594 | H50: 0.0028 | I50: 0.01 | N50: 67 | O50: 0.014 | P50: 0.012 | R50: 12067.2 | S50: 1617 | T50: 188992.75 | U50: 138066.54 | W50: 0.0132715 | X50: 0.0113885
A51: 68 | B51: =R51*IF(ValYear=ToolYear,1,IF(ValYear = ToolYear-1, VLOOKUP(ToolYear-1,Trends!$A$3:$H$94,IF(ExFlg=1,3,5)), VLOOKUP(ToolYear-1,Trends!$A$3:$H$94,IF(ExFlg=1,3,5)) * VLOOKUP(ToolYear-2,Trends!$A$3:$H$94,IF(ExFlg=1,3,5)))) -> 13715.20466 | C51: =S51*IF(ValYear=ToolYear,1,IF(ValYear = ToolYear-1, VLOOKUP(ToolYear-1,Trends!$A$3:$H$94,6), VLOOKUP(ToolYear-1,Trends!$A$3:$H$94,6) * VLOOKUP(ToolYear-2,Trends!$A$3:$H$94,6))) -> 1737.016974 | D51: =T51*IF(ValYear=ToolYear,1,IF(ValYear = ToolYear-1, VLOOKUP(ToolYear-1,Trends!$A$3:$H$94,7), VLOOKUP(ToolYear-1,Trends!$A$3:$H$94,7) * VLOOKUP(ToolYear-2,Trends!$A$3:$H$94,7))) -> 205766.8418 | E51: =U51*IF(ValYear=ToolYear,1,IF(ValYear = ToolYear-1, VLOOKUP(ToolYear-1,Trends!$A$3:$H$94,8), VLOOKUP(ToolYear-1,Trends!$A$3:$H$94,8) * VLOOKUP(ToolYear-2,Trends!$A$3:$H$94,8))) -> 151331.8242 | F51: 0.01414733584 | G51: 0.01241167096 | H51: 0.0034 | I51: 0.01104 | N51: 68 | O51: 0.015 | P51: 0.012 | R51: 12252.72 | S51: 1617 | T51: 188426.86 | U51: 138579.084 | W51: 0.0145815 | X51: 0.012715
A52: 69 | B52: =R52*IF(ValYear=ToolYear,1,IF(ValYear = ToolYear-1, VLOOKUP(ToolYear-1,Trends!$A$3:$H$94,IF(ExFlg=1,3,5)), VLOOKUP(ToolYear-1,Trends!$A$3:$H$94,IF(ExFlg=1,3,5)) * VLOOKUP(ToolYear-2,Trends!$A$3:$H$94,IF(ExFlg=1,3,5)))) -> 13925.95776 | C52: =S52*IF(ValYear=ToolYear,1,IF(ValYear = ToolYear-1, VLOOKUP(ToolYear-1,Trends!$A$3:$H$94,6), VLOOKUP(ToolYear-1,Trends!$A$3:$H$94,6) * VLOOKUP(ToolYear-2,Trends!$A$3:$H$94,6))) -> 1737.016974 | D52: =T52*IF(ValYear=ToolYear,1,IF(ValYear = ToolYear-1, VLOOKUP(ToolYear-1,Trends!$A$3:$H$94,7), VLOOKUP(ToolYear-1,Trends!$A$3:$H$94,7) * VLOOKUP(ToolYear-2,Trends!$A$3:$H$94,7))) -> 205148.8758 | E52: =U52*IF(ValYear=ToolYear,1,IF(ValYear = ToolYear-1, VLOOKUP(ToolYear-1,Trends!$A$3:$H$94,8), VLOOKUP(ToolYear-1,Trends!$A$3:$H$94,8) * VLOOKUP(ToolYear-2,Trends!$A$3:$H$94,8))) -> 151891.5351 | F52: 0.01568465735 | G52: 0.01387198238 | H52: 0.004 | I52: 0.01208 | N52: 69 | O52: 0.015 | P52: 0.012 | R52: 12441 | S52: 1617 | T52: 187860.97 | U52: 139091.628 | W52: 0.016166 | X52: 0.014211
A53: 70 | B53: =R53*IF(ValYear=ToolYear,1,IF(ValYear = ToolYear-1, VLOOKUP(ToolYear-1,Trends!$A$3:$H$94,IF(ExFlg=1,3,5)), VLOOKUP(ToolYear-1,Trends!$A$3:$H$94,IF(ExFlg=1,3,5)) * VLOOKUP(ToolYear-2,Trends!$A$3:$H$94,IF(ExFlg=1,3,5)))) -> 14140.06894 | C53: =S53*IF(ValYear=ToolYear,1,IF(ValYear = ToolYear-1, VLOOKUP(ToolYear-1,Trends!$A$3:$H$94,6), VLOOKUP(ToolYear-1,Trends!$A$3:$H$94,6) * VLOOKUP(ToolYear-2,Trends!$A$3:$H$94,6))) -> 1737.016974 | D53: =T53*IF(ValYear=ToolYear,1,IF(ValYear = ToolYear-1, VLOOKUP(ToolYear-1,Trends!$A$3:$H$94,7), VLOOKUP(ToolYear-1,Trends!$A$3:$H$94,7) * VLOOKUP(ToolYear-2,Trends!$A$3:$H$94,7))) -> 204530.9097 | E53: =U53*IF(ValYear=ToolYear,1,IF(ValYear = ToolYear-1, VLOOKUP(ToolYear-1,Trends!$A$3:$H$94,8), VLOOKUP(ToolYear-1,Trends!$A$3:$H$94,8) * VLOOKUP(ToolYear-2,Trends!$A$3:$H$94,8))) -> 152451.2459 | F53: 0.01740050026 | G53: 0.01541282569 | H53: 0.0046 | I53: 0.01312 | N53: 70 | O53: 0.015 | P53: 0.012 | R53: 12632.28 | S53: 1617 | T53: 187295.08 | U53: 139604.172 | W53: 0.0179345 | X53: 0.0157895
A54: 71 | B54: =R54*IF(ValYear=ToolYear,1,IF(ValYear = ToolYear-1, VLOOKUP(ToolYear-1,Trends!$A$3:$H$94,IF(ExFlg=1,3,5)), VLOOKUP(ToolYear-1,Trends!$A$3:$H$94,IF(ExFlg=1,3,5)) * VLOOKUP(ToolYear-2,Trends!$A$3:$H$94,IF(ExFlg=1,3,5)))) -> 14357.40388 | C54: =S54*IF(ValYear=ToolYear,1,IF(ValYear = ToolYear-1, VLOOKUP(ToolYear-1,Trends!$A$3:$H$94,6), VLOOKUP(ToolYear-1,Trends!$A$3:$H$94,6) * VLOOKUP(ToolYear-2,Trends!$A$3:$H$94,6))) -> 1737.016974 | D54: =T54*IF(ValYear=ToolYear,1,IF(ValYear = ToolYear-1, VLOOKUP(ToolYear-1,Trends!$A$3:$H$94,7), VLOOKUP(ToolYear-1,Trends!$A$3:$H$94,7) * VLOOKUP(ToolYear-2,Trends!$A$3:$H$94,7))) -> 203912.9437 | E54: =U54*IF(ValYear=ToolYear,1,IF(ValYear = ToolYear-1, VLOOKUP(ToolYear-1,Trends!$A$3:$H$94,8), VLOOKUP(ToolYear-1,Trends!$A$3:$H$94,8) * VLOOKUP(ToolYear-2,Trends!$A$3:$H$94,8))) -> 153010.9568 | F54: 0.01943651743 | G54: 0.01713767214 | H54: 0.0052 | I54: 0.01416 | N54: 71 | O54: 0.015 | P54: 0.012 | R54: 12826.44 | S54: 1617 | T54: 186729.19 | U54: 140116.716 | W54: 0.020033 | X54: 0.0175565
A55: 72 | B55: =R55*IF(ValYear=ToolYear,1,IF(ValYear = ToolYear-1, VLOOKUP(ToolYear-1,Trends!$A$3:$H$94,IF(ExFlg=1,3,5)), VLOOKUP(ToolYear-1,Trends!$A$3:$H$94,IF(ExFlg=1,3,5)) * VLOOKUP(ToolYear-2,Trends!$A$3:$H$94,IF(ExFlg=1,3,5)))) -> 14578.0969 | C55: =S55*IF(ValYear=ToolYear,1,IF(ValYear = ToolYear-1, VLOOKUP(ToolYear-1,Trends!$A$3:$H$94,6), VLOOKUP(ToolYear-1,Trends!$A$3:$H$94,6) * VLOOKUP(ToolYear-2,Trends!$A$3:$H$94,6))) -> 1737.016974 | D55: =T55*IF(ValYear=ToolYear,1,IF(ValYear = ToolYear-1, VLOOKUP(ToolYear-1,Trends!$A$3:$H$94,7), VLOOKUP(ToolYear-1,Trends!$A$3:$H$94,7) * VLOOKUP(ToolYear-2,Trends!$A$3:$H$94,7))) -> 203294.9777 | E55: =U55*IF(ValYear=ToolYear,1,IF(ValYear = ToolYear-1, VLOOKUP(ToolYear-1,Trends!$A$3:$H$94,8), VLOOKUP(ToolYear-1,Trends!$A$3:$H$94,8) * VLOOKUP(ToolYear-2,Trends!$A$3:$H$94,8))) -> 153570.6677 | F55: 0.0216088512 | G55: 0.01902016584 | H55: 0.0058 | I55: 0.0152 | N55: 72 | O55: 0.015 | P55: 0.012 | R55: 13023.6 | S55: 1617 | T55: 186163.3 | U55: 140629.26 | W55: 0.022272 | X55: 0.019485
A56: 73 | B56: =R56*IF(ValYear=ToolYear,1,IF(ValYear = ToolYear-1, VLOOKUP(ToolYear-1,Trends!$A$3:$H$94,IF(ExFlg=1,3,5)), VLOOKUP(ToolYear-1,Trends!$A$3:$H$94,IF(ExFlg=1,3,5)) * VLOOKUP(ToolYear-2,Trends!$A$3:$H$94,IF(ExFlg=1,3,5)))) -> 14738.21015 | C56: =S56*IF(ValYear=ToolYear,1,IF(ValYear = ToolYear-1, VLOOKUP(ToolYear-1,Trends!$A$3:$H$94,6), VLOOKUP(ToolYear-1,Trends!$A$3:$H$94,6) * VLOOKUP(ToolYear-2,Trends!$A$3:$H$94,6))) -> 1737.016974 | D56: =T56*IF(ValYear=ToolYear,1,IF(ValYear = ToolYear-1, VLOOKUP(ToolYear-1,Trends!$A$3:$H$94,7), VLOOKUP(ToolYear-1,Trends!$A$3:$H$94,7) * VLOOKUP(ToolYear-2,Trends!$A$3:$H$94,7))) -> 202645.3211 | E56: =U56*IF(ValYear=ToolYear,1,IF(ValYear = ToolYear-1, VLOOKUP(ToolYear-1,Trends!$A$3:$H$94,8), VLOOKUP(ToolYear-1,Trends!$A$3:$H$94,8) * VLOOKUP(ToolYear-2,Trends!$A$3:$H$94,8))) -> 153885.505 | F56: 0.02406449067 | G56: 0.02103687934 | H56: 0.0074 | I56: 0.01716 | N56: 73 | O56: 0.015 | P56: 0.012 | R56: 13166.64 | S56: 1617 | T56: 185568.39 | U56: 140917.566 | W56: 0.024803 | X56: 0.021551
A57: 74 | B57: =R57*IF(ValYear=ToolYear,1,IF(ValYear = ToolYear-1, VLOOKUP(ToolYear-1,Trends!$A$3:$H$94,IF(ExFlg=1,3,5)), VLOOKUP(ToolYear-1,Trends!$A$3:$H$94,IF(ExFlg=1,3,5)) * VLOOKUP(ToolYear-2,Trends!$A$3:$H$94,IF(ExFlg=1,3,5)))) -> 14900.06961 | C57: =S57*IF(ValYear=ToolYear,1,IF(ValYear = ToolYear-1, VLOOKUP(ToolYear-1,Trends!$A$3:$H$94,6), VLOOKUP(ToolYear-1,Trends!$A$3:$H$94,6) * VLOOKUP(ToolYear-2,Trends!$A$3:$H$94,6))) -> 1737.016974 | D57: =T57*IF(ValYear=ToolYear,1,IF(ValYear = ToolYear-1, VLOOKUP(ToolYear-1,Trends!$A$3:$H$94,7), VLOOKUP(ToolYear-1,Trends!$A$3:$H$94,7) * VLOOKUP(ToolYear-2,Trends!$A$3:$H$94,7))) -> 201995.6645 | E57: =U57*IF(ValYear=ToolYear,1,IF(ValYear = ToolYear-1, VLOOKUP(ToolYear-1,Trends!$A$3:$H$94,8), VLOOKUP(ToolYear-1,Trends!$A$3:$H$94,8) * VLOOKUP(ToolYear-2,Trends!$A$3:$H$94,8))) -> 154200.3424 | F57: 0.02681410833 | G57: 0.02320001445 | H57: 0.009 | I57: 0.01912 | N57: 74 | O57: 0.015 | P57: 0.012 | R57: 13311.24 | S57: 1617 | T57: 184973.48 | U57: 141205.872 | W57: 0.027637 | X57: 0.023767
A58: 75 | B58: =R58*IF(ValYear=ToolYear,1,IF(ValYear = ToolYear-1, VLOOKUP(ToolYear-1,Trends!$A$3:$H$94,IF(ExFlg=1,3,5)), VLOOKUP(ToolYear-1,Trends!$A$3:$H$94,IF(ExFlg=1,3,5)) * VLOOKUP(ToolYear-2,Trends!$A$3:$H$94,IF(ExFlg=1,3,5)))) -> 15063.54094 | C58: =S58*IF(ValYear=ToolYear,1,IF(ValYear = ToolYear-1, VLOOKUP(ToolYear-1,Trends!$A$3:$H$94,6), VLOOKUP(ToolYear-1,Trends!$A$3:$H$94,6) * VLOOKUP(ToolYear-2,Trends!$A$3:$H$94,6))) -> 1737.016974 | D58: =T58*IF(ValYear=ToolYear,1,IF(ValYear = ToolYear-1, VLOOKUP(ToolYear-1,Trends!$A$3:$H$94,7), VLOOKUP(ToolYear-1,Trends!$A$3:$H$94,7) * VLOOKUP(ToolYear-2,Trends!$A$3:$H$94,7))) -> 201346.0079 | E58: =U58*IF(ValYear=ToolYear,1,IF(ValYear = ToolYear-1, VLOOKUP(ToolYear-1,Trends!$A$3:$H$94,8), VLOOKUP(ToolYear-1,Trends!$A$3:$H$94,8) * VLOOKUP(ToolYear-2,Trends!$A$3:$H$94,8))) -> 154515.1797 | F58: 0.0298635255 | G58: 0.02555642606 | H58: 0.0106 | I58: 0.02108 | N58: 75 | O58: 0.015 | P58: 0.012 | R58: 13457.28 | S58: 1617 | T58: 184378.57 | U58: 141494.178 | W58: 0.03078 | X58: 0.026181
A59: 76 | B59: =R59*IF(ValYear=ToolYear,1,IF(ValYear = ToolYear-1, VLOOKUP(ToolYear-1,Trends!$A$3:$H$94,IF(ExFlg=1,3,5)), VLOOKUP(ToolYear-1,Trends!$A$3:$H$94,IF(ExFlg=1,3,5)) * VLOOKUP(ToolYear-2,Trends!$A$3:$H$94,IF(ExFlg=1,3,5)))) -> 15229.02712 | C59: =S59*IF(ValYear=ToolYear,1,IF(ValYear = ToolYear-1, VLOOKUP(ToolYear-1,Trends!$A$3:$H$94,6), VLOOKUP(ToolYear-1,Trends!$A$3:$H$94,6) * VLOOKUP(ToolYear-2,Trends!$A$3:$H$94,6))) -> 1737.016974 | D59: =T59*IF(ValYear=ToolYear,1,IF(ValYear = ToolYear-1, VLOOKUP(ToolYear-1,Trends!$A$3:$H$94,7), VLOOKUP(ToolYear-1,Trends!$A$3:$H$94,7) * VLOOKUP(ToolYear-2,Trends!$A$3:$H$94,7))) -> 200696.3513 | E59: =U59*IF(ValYear=ToolYear,1,IF(ValYear = ToolYear-1, VLOOKUP(ToolYear-1,Trends!$A$3:$H$94,8), VLOOKUP(ToolYear-1,Trends!$A$3:$H$94,8) * VLOOKUP(ToolYear-2,Trends!$A$3:$H$94,8))) -> 154830.0171 | F59: 0.03324524474 | G59: 0.02815980211 | H59: 0.0122 | I59: 0.02304 | N59: 76 | O59: 0.015 | P59: 0.012 | R59: 13605.12 | S59: 1617 | T59: 183783.66 | U59: 141782.484 | W59: 0.0342655 | X59: 0.028848
A60: 77 | B60: =R60*IF(ValYear=ToolYear,1,IF(ValYear = ToolYear-1, VLOOKUP(ToolYear-1,Trends!$A$3:$H$94,IF(ExFlg=1,3,5)), VLOOKUP(ToolYear-1,Trends!$A$3:$H$94,IF(ExFlg=1,3,5)) * VLOOKUP(ToolYear-2,Trends!$A$3:$H$94,IF(ExFlg=1,3,5)))) -> 15396.12518 | C60: =S60*IF(ValYear=ToolYear,1,IF(ValYear = ToolYear-1, VLOOKUP(ToolYear-1,Trends!$A$3:$H$94,6), VLOOKUP(ToolYear-1,Trends!$A$3:$H$94,6) * VLOOKUP(ToolYear-2,Trends!$A$3:$H$94,6))) -> 1737.016974 | D60: =T60*IF(ValYear=ToolYear,1,IF(ValYear = ToolYear-1, VLOOKUP(ToolYear-1,Trends!$A$3:$H$94,7), VLOOKUP(ToolYear-1,Trends!$A$3:$H$94,7) * VLOOKUP(ToolYear-2,Trends!$A$3:$H$94,7))) -> 200046.6947 | E60: =U60*IF(ValYear=ToolYear,1,IF(ValYear = ToolYear-1, VLOOKUP(ToolYear-1,Trends!$A$3:$H$94,8), VLOOKUP(ToolYear-1,Trends!$A$3:$H$94,8) * VLOOKUP(ToolYear-2,Trends!$A$3:$H$94,8))) -> 155144.8544 | F60: 0.03699225369 | G60: 0.03106627087 | H60: 0.0138 | I60: 0.025 | N60: 77 | O60: 0.015 | P60: 0.012 | R60: 13754.4 | S60: 1617 | T60: 183188.75 | U60: 142070.79 | W60: 0.0381275 | X60: 0.0318255
A61: 78 | B61: =R61*IF(ValYear=ToolYear,1,IF(ValYear = ToolYear-1, VLOOKUP(ToolYear-1,Trends!$A$3:$H$94,IF(ExFlg=1,3,5)), VLOOKUP(ToolYear-1,Trends!$A$3:$H$94,IF(ExFlg=1,3,5)) * VLOOKUP(ToolYear-2,Trends!$A$3:$H$94,IF(ExFlg=1,3,5)))) -> 15426.48223 | C61: =S61*IF(ValYear=ToolYear,1,IF(ValYear = ToolYear-1, VLOOKUP(ToolYear-1,Trends!$A$3:$H$94,6), VLOOKUP(ToolYear-1,Trends!$A$3:$H$94,6) * VLOOKUP(ToolYear-2,Trends!$A$3:$H$94,6))) -> 1737.016974 | D61: =T61*IF(ValYear=ToolYear,1,IF(ValYear = ToolYear-1, VLOOKUP(ToolYear-1,Trends!$A$3:$H$94,7), VLOOKUP(ToolYear-1,Trends!$A$3:$H$94,7) * VLOOKUP(ToolYear-2,Trends!$A$3:$H$94,7))) -> 200823.1136 | E61: =U61*IF(ValYear=ToolYear,1,IF(ValYear = ToolYear-1, VLOOKUP(ToolYear-1,Trends!$A$3:$H$94,8), VLOOKUP(ToolYear-1,Trends!$A$3:$H$94,8) * VLOOKUP(ToolYear-2,Trends!$A$3:$H$94,8))) -> 155529.6557 | F61: 0.04112347174 | G61: 0.03431975882 | H61: 0.01692 | I61: 0.02772 | N61: 78 | O61: 0.015 | P61: 0.012 | R61: 13781.52 | S61: 1617 | T61: 183899.74 | U61: 142423.164 | W61: 0.0423855 | X61: 0.0351585
A62: 79 | B62: =R62*IF(ValYear=ToolYear,1,IF(ValYear = ToolYear-1, VLOOKUP(ToolYear-1,Trends!$A$3:$H$94,IF(ExFlg=1,3,5)), VLOOKUP(ToolYear-1,Trends!$A$3:$H$94,IF(ExFlg=1,3,5)) * VLOOKUP(ToolYear-2,Trends!$A$3:$H$94,IF(ExFlg=1,3,5)))) -> 15456.83927 | C62: =S62*IF(ValYear=ToolYear,1,IF(ValYear = ToolYear-1, VLOOKUP(ToolYear-1,Trends!$A$3:$H$94,6), VLOOKUP(ToolYear-1,Trends!$A$3:$H$94,6) * VLOOKUP(ToolYear-2,Trends!$A$3:$H$94,6))) -> 1737.016974 | D62: =T62*IF(ValYear=ToolYear,1,IF(ValYear = ToolYear-1, VLOOKUP(ToolYear-1,Trends!$A$3:$H$94,7), VLOOKUP(ToolYear-1,Trends!$A$3:$H$94,7) * VLOOKUP(ToolYear-2,Trends!$A$3:$H$94,7))) -> 201599.5324 | E62: =U62*IF(ValYear=ToolYear,1,IF(ValYear = ToolYear-1, VLOOKUP(ToolYear-1,Trends!$A$3:$H$94,8), VLOOKUP(ToolYear-1,Trends!$A$3:$H$94,8) * VLOOKUP(ToolYear-2,Trends!$A$3:$H$94,8))) -> 155914.4569 | F62: 0.04588679138 | G62: 0.03796224016 | H62: 0.02004 | I62: 0.03044 | N62: 79 | O62: 0.015 | P62: 0.012 | R62: 13808.64 | S62: 1617 | T62: 184610.73 | U62: 142775.538 | W62: 0.047295 | X62: 0.03889
A63: 80 | B63: =R63*IF(ValYear=ToolYear,1,IF(ValYear = ToolYear-1, VLOOKUP(ToolYear-1,Trends!$A$3:$H$94,IF(ExFlg=1,3,5)), VLOOKUP(ToolYear-1,Trends!$A$3:$H$94,IF(ExFlg=1,3,5)) * VLOOKUP(ToolYear-2,Trends!$A$3:$H$94,IF(ExFlg=1,3,5)))) -> 15487.33064 | C63: =S63*IF(ValYear=ToolYear,1,IF(ValYear = ToolYear-1, VLOOKUP(ToolYear-1,Trends!$A$3:$H$94,6), VLOOKUP(ToolYear-1,Trends!$A$3:$H$94,6) * VLOOKUP(ToolYear-2,Trends!$A$3:$H$94,6))) -> 1737.016974 | D63: =T63*IF(ValYear=ToolYear,1,IF(ValYear = ToolYear-1, VLOOKUP(ToolYear-1,Trends!$A$3:$H$94,7), VLOOKUP(ToolYear-1,Trends!$A$3:$H$94,7) * VLOOKUP(ToolYear-2,Trends!$A$3:$H$94,7))) -> 202375.9513 | E63: =U63*IF(ValYear=ToolYear,1,IF(ValYear = ToolYear-1, VLOOKUP(ToolYear-1,Trends!$A$3:$H$94,8), VLOOKUP(ToolYear-1,Trends!$A$3:$H$94,8) * VLOOKUP(ToolYear-2,Trends!$A$3:$H$94,8))) -> 156299.2581 | F63: 0.05115317268 | G63: 0.04205277159 | H63: 0.02316 | I63: 0.03316 | N63: 80 | O63: 0.015 | P63: 0.012 | R63: 13835.88 | S63: 1617 | T63: 185321.72 | U63: 143127.912 | W63: 0.052723 | X63: 0.0430805
A64: 81 | B64: =R64*IF(ValYear=ToolYear,1,IF(ValYear = ToolYear-1, VLOOKUP(ToolYear-1,Trends!$A$3:$H$94,IF(ExFlg=1,3,5)), VLOOKUP(ToolYear-1,Trends!$A$3:$H$94,IF(ExFlg=1,3,5)) * VLOOKUP(ToolYear-2,Trends!$A$3:$H$94,IF(ExFlg=1,3,5)))) -> 15517.822 | C64: =S64*IF(ValYear=ToolYear,1,IF(ValYear = ToolYear-1, VLOOKUP(ToolYear-1,Trends!$A$3:$H$94,6), VLOOKUP(ToolYear-1,Trends!$A$3:$H$94,6) * VLOOKUP(ToolYear-2,Trends!$A$3:$H$94,6))) -> 1737.016974 | D64: =T64*IF(ValYear=ToolYear,1,IF(ValYear = ToolYear-1, VLOOKUP(ToolYear-1,Trends!$A$3:$H$94,7), VLOOKUP(ToolYear-1,Trends!$A$3:$H$94,7) * VLOOKUP(ToolYear-2,Trends!$A$3:$H$94,7))) -> 203152.3701 | E64: =U64*IF(ValYear=ToolYear,1,IF(ValYear = ToolYear-1, VLOOKUP(ToolYear-1,Trends!$A$3:$H$94,8), VLOOKUP(ToolYear-1,Trends!$A$3:$H$94,8) * VLOOKUP(ToolYear-2,Trends!$A$3:$H$94,8))) -> 156684.0593 | F64: 0.05694541592 | G64: 0.04665821898 | H64: 0.02628 | I64: 0.03588 | N64: 81 | O64: 0.015 | P64: 0.012 | R64: 13863.12 | S64: 1617 | T64: 186032.71 | U64: 143480.286 | W64: 0.058693 | X64: 0.0477985
A65: 82 | B65: =R65*IF(ValYear=ToolYear,1,IF(ValYear = ToolYear-1, VLOOKUP(ToolYear-1,Trends!$A$3:$H$94,IF(ExFlg=1,3,5)), VLOOKUP(ToolYear-1,Trends!$A$3:$H$94,IF(ExFlg=1,3,5)) * VLOOKUP(ToolYear-2,Trends!$A$3:$H$94,IF(ExFlg=1,3,5)))) -> 15548.44769 | C65: =S65*IF(ValYear=ToolYear,1,IF(ValYear = ToolYear-1, VLOOKUP(ToolYear-1,Trends!$A$3:$H$94,6), VLOOKUP(ToolYear-1,Trends!$A$3:$H$94,6) * VLOOKUP(ToolYear-2,Trends!$A$3:$H$94,6))) -> 1737.016974 | D65: =T65*IF(ValYear=ToolYear,1,IF(ValYear = ToolYear-1, VLOOKUP(ToolYear-1,Trends!$A$3:$H$94,7), VLOOKUP(ToolYear-1,Trends!$A$3:$H$94,7) * VLOOKUP(ToolYear-2,Trends!$A$3:$H$94,7))) -> 203928.789 | E65: =U65*IF(ValYear=ToolYear,1,IF(ValYear = ToolYear-1, VLOOKUP(ToolYear-1,Trends!$A$3:$H$94,8), VLOOKUP(ToolYear-1,Trends!$A$3:$H$94,8) * VLOOKUP(ToolYear-2,Trends!$A$3:$H$94,8))) -> 157068.8605 | F65: 0.0634992858 | G65: 0.05185130506 | H65: 0.0294 | I65: 0.0386 | N65: 82 | O65: 0.015 | P65: 0.012 | R65: 13890.48 | S65: 1617 | T65: 186743.7 | U65: 143832.66 | W65: 0.065448 | X65: 0.0531185
A66: 83 | B66: =R66*IF(ValYear=ToolYear,1,IF(ValYear = ToolYear-1, VLOOKUP(ToolYear-1,Trends!$A$3:$H$94,IF(ExFlg=1,3,5)), VLOOKUP(ToolYear-1,Trends!$A$3:$H$94,IF(ExFlg=1,3,5)) * VLOOKUP(ToolYear-2,Trends!$A$3:$H$94,IF(ExFlg=1,3,5)))) -> 15415.19908 | C66: =S66*IF(ValYear=ToolYear,1,IF(ValYear = ToolYear-1, VLOOKUP(ToolYear-1,Trends!$A$3:$H$94,6), VLOOKUP(ToolYear-1,Trends!$A$3:$H$94,6) * VLOOKUP(ToolYear-2,Trends!$A$3:$H$94,6))) -> 1737.016974 | D66: =T66*IF(ValYear=ToolYear,1,IF(ValYear = ToolYear-1, VLOOKUP(ToolYear-1,Trends!$A$3:$H$94,7), VLOOKUP(ToolYear-1,Trends!$A$3:$H$94,7) * VLOOKUP(ToolYear-2,Trends!$A$3:$H$94,7))) -> 202169.9626 | E66: =U66*IF(ValYear=ToolYear,1,IF(ValYear = ToolYear-1, VLOOKUP(ToolYear-1,Trends!$A$3:$H$94,8), VLOOKUP(ToolYear-1,Trends!$A$3:$H$94,8) * VLOOKUP(ToolYear-2,Trends!$A$3:$H$94,8))) -> 156031.0633 | F66: 0.07067749546 | G66: 0.05771890665 | H66: 0.03498 | I66: 0.04324 | N66: 83 | O66: 0.015 | P66: 0.012 | R66: 13771.44 | S66: 1617 | T66: 185133.09 | U66: 142882.318 | W66: 0.0728465 | X66: 0.0591295
A67: 84 | B67: =R67*IF(ValYear=ToolYear,1,IF(ValYear = ToolYear-1, VLOOKUP(ToolYear-1,Trends!$A$3:$H$94,IF(ExFlg=1,3,5)), VLOOKUP(ToolYear-1,Trends!$A$3:$H$94,IF(ExFlg=1,3,5)) * VLOOKUP(ToolYear-2,Trends!$A$3:$H$94,IF(ExFlg=1,3,5)))) -> 15283.02505 | C67: =S67*IF(ValYear=ToolYear,1,IF(ValYear = ToolYear-1, VLOOKUP(ToolYear-1,Trends!$A$3:$H$94,6), VLOOKUP(ToolYear-1,Trends!$A$3:$H$94,6) * VLOOKUP(ToolYear-2,Trends!$A$3:$H$94,6))) -> 1737.016974 | D67: =T67*IF(ValYear=ToolYear,1,IF(ValYear = ToolYear-1, VLOOKUP(ToolYear-1,Trends!$A$3:$H$94,7), VLOOKUP(ToolYear-1,Trends!$A$3:$H$94,7) * VLOOKUP(ToolYear-2,Trends!$A$3:$H$94,7))) -> 200411.1362 | E67: =U67*IF(ValYear=ToolYear,1,IF(ValYear = ToolYear-1, VLOOKUP(ToolYear-1,Trends!$A$3:$H$94,8), VLOOKUP(ToolYear-1,Trends!$A$3:$H$94,8) * VLOOKUP(ToolYear-2,Trends!$A$3:$H$94,8))) -> 154993.2661 | F67: =W67*IF(ValYear=ToolYear,1,IF(ValYear=ToolYear-1, 1-O67, (1-O67)^2)) -> 0.07853874352 | G67: =X67*IF(ValYear=ToolYear,1,IF(ValYear=ToolYear-1, 1-P67, (1-P67)^2)) -> 0.0643400914 | H67: 0.04056 | I67: 0.04788 | N67: 84 | O67: 0.015 | P67: 0.012 | R67: 13653.36 | S67: 1617 | T67: 183522.48 | U67: 141931.976 | W67: 0.080949 | X67: 0.0659125
A68: =1+A67 -> 85 | B68: =R68*IF(ValYear=ToolYear,1,IF(ValYear = ToolYear-1, VLOOKUP(ToolYear-1,Trends!$A$3:$H$94,IF(ExFlg=1,3,5)), VLOOKUP(ToolYear-1,Trends!$A$3:$H$94,IF(ExFlg=1,3,5)) * VLOOKUP(ToolYear-2,Trends!$A$3:$H$94,IF(ExFlg=1,3,5)))) -> 15152.05993 | C68: =S68*IF(ValYear=ToolYear,1,IF(ValYear = ToolYear-1, VLOOKUP(ToolYear-1,Trends!$A$3:$H$94,6), VLOOKUP(ToolYear-1,Trends!$A$3:$H$94,6) * VLOOKUP(ToolYear-2,Trends!$A$3:$H$94,6))) -> 1737.016974 | D68: =T68*IF(ValYear=ToolYear,1,IF(ValYear = ToolYear-1, VLOOKUP(ToolYear-1,Trends!$A$3:$H$94,7), VLOOKUP(ToolYear-1,Trends!$A$3:$H$94,7) * VLOOKUP(ToolYear-2,Trends!$A$3:$H$94,7))) -> 198652.3098 | E68: =U68*IF(ValYear=ToolYear,1,IF(ValYear = ToolYear-1, VLOOKUP(ToolYear-1,Trends!$A$3:$H$94,8), VLOOKUP(ToolYear-1,Trends!$A$3:$H$94,8) * VLOOKUP(ToolYear-2,Trends!$A$3:$H$94,8))) -> 153955.4689 | F68: 0.08715240107 | G68: 0.07175927387 | H68: 0.04614 | I68: 0.05252 | N68: 85 | O68: 0.015 | P68: 0.012 | R68: 13536.36 | S68: 1617 | T68: 181911.87 | U68: 140981.634 | W68: 0.089827 | X68: 0.073513
A69: 86 | B69: =R69*IF(ValYear=ToolYear,1,IF(ValYear = ToolYear-1, VLOOKUP(ToolYear-1,Trends!$A$3:$H$94,IF(ExFlg=1,3,5)), VLOOKUP(ToolYear-1,Trends!$A$3:$H$94,IF(ExFlg=1,3,5)) * VLOOKUP(ToolYear-2,Trends!$A$3:$H$94,IF(ExFlg=1,3,5)))) -> 15022.1694 | C69: =S69*IF(ValYear=ToolYear,1,IF(ValYear = ToolYear-1, VLOOKUP(ToolYear-1,Trends!$A$3:$H$94,6), VLOOKUP(ToolYear-1,Trends!$A$3:$H$94,6) * VLOOKUP(ToolYear-2,Trends!$A$3:$H$94,6))) -> 1737.016974 | D69: =T69*IF(ValYear=ToolYear,1,IF(ValYear = ToolYear-1, VLOOKUP(ToolYear-1,Trends!$A$3:$H$94,7), VLOOKUP(ToolYear-1,Trends!$A$3:$H$94,7) * VLOOKUP(ToolYear-2,Trends!$A$3:$H$94,7))) -> 196893.4835 | E69: =U69*IF(ValYear=ToolYear,1,IF(ValYear = ToolYear-1, VLOOKUP(ToolYear-1,Trends!$A$3:$H$94,8), VLOOKUP(ToolYear-1,Trends!$A$3:$H$94,8) * VLOOKUP(ToolYear-2,Trends!$A$3:$H$94,8))) -> 152917.6716 | F69: 0.09658541364 | G69: =X69*IF(ValYear=ToolYear,1,IF(ValYear=ToolYear-1, 1-P69, (1-P69)^2)) -> 0.07997840635 | H69: 0.05172 | I69: 0.05716 | N69: 86 | O69: 0.015 | P69: 0.012 | R69: 13420.32 | S69: 1617 | T69: 180301.26 | U69: 140031.292 | W69: 0.0995495 | X69: 0.081933
A70: 87 | B70: =R70*IF(ValYear=ToolYear,1,IF(ValYear = ToolYear-1, VLOOKUP(ToolYear-1,Trends!$A$3:$H$94,IF(ExFlg=1,3,5)), VLOOKUP(ToolYear-1,Trends!$A$3:$H$94,IF(ExFlg=1,3,5)) * VLOOKUP(ToolYear-2,Trends!$A$3:$H$94,IF(ExFlg=1,3,5)))) -> 14893.48777 | C70: =S70*IF(ValYear=ToolYear,1,IF(ValYear = ToolYear-1, VLOOKUP(ToolYear-1,Trends!$A$3:$H$94,6), VLOOKUP(ToolYear-1,Trends!$A$3:$H$94,6) * VLOOKUP(ToolYear-2,Trends!$A$3:$H$94,6))) -> 1737.016974 | D70: =T70*IF(ValYear=ToolYear,1,IF(ValYear = ToolYear-1, VLOOKUP(ToolYear-1,Trends!$A$3:$H$94,7), VLOOKUP(ToolYear-1,Trends!$A$3:$H$94,7) * VLOOKUP(ToolYear-2,Trends!$A$3:$H$94,7))) -> 195134.6571 | E70: =U70*IF(ValYear=ToolYear,1,IF(ValYear = ToolYear-1, VLOOKUP(ToolYear-1,Trends!$A$3:$H$94,8), VLOOKUP(ToolYear-1,Trends!$A$3:$H$94,8) * VLOOKUP(ToolYear-2,Trends!$A$3:$H$94,8))) -> 151879.8744 | F70: 0.1090769885 | G70: 0.08893940827 | H70: 0.0573 | I70: 0.0618 | N70: 87 | O70: 0.014 | P70: 0.012 | R70: 13305.36 | S70: 1617 | T70: 178690.65 | U70: 139080.95 | W70: 0.1121965 | X70: 0.091113
A71: 88 | B71: =R71*IF(ValYear=ToolYear,1,IF(ValYear = ToolYear-1, VLOOKUP(ToolYear-1,Trends!$A$3:$H$94,IF(ExFlg=1,3,5)), VLOOKUP(ToolYear-1,Trends!$A$3:$H$94,IF(ExFlg=1,3,5)) * VLOOKUP(ToolYear-2,Trends!$A$3:$H$94,IF(ExFlg=1,3,5)))) -> 14765.88073 | C71: =S71*IF(ValYear=ToolYear,1,IF(ValYear = ToolYear-1, VLOOKUP(ToolYear-1,Trends!$A$3:$H$94,6), VLOOKUP(ToolYear-1,Trends!$A$3:$H$94,6) * VLOOKUP(ToolYear-2,Trends!$A$3:$H$94,6))) -> 1737.016974 | D71: =T71*IF(ValYear=ToolYear,1,IF(ValYear = ToolYear-1, VLOOKUP(ToolYear-1,Trends!$A$3:$H$94,7), VLOOKUP(ToolYear-1,Trends!$A$3:$H$94,7) * VLOOKUP(ToolYear-2,Trends!$A$3:$H$94,7))) -> 190650.442 | E71: =U71*IF(ValYear=ToolYear,1,IF(ValYear = ToolYear-1, VLOOKUP(ToolYear-1,Trends!$A$3:$H$94,8), VLOOKUP(ToolYear-1,Trends!$A$3:$H$94,8) * VLOOKUP(ToolYear-2,Trends!$A$3:$H$94,8))) -> 147658.7217 | F71: 0.122946947 | G71: 0.0985139167 | H71: 0.06718 | I71: 0.06622 | N71: 88 | O71: 0.013 | P71: 0.012 | R71: 13191.36 | S71: 1617 | T71: 174584.32 | U71: 135215.514 | W71: 0.126207 | X71: 0.1009215
A72: 89 | B72: =R72*IF(ValYear=ToolYear,1,IF(ValYear = ToolYear-1, VLOOKUP(ToolYear-1,Trends!$A$3:$H$94,IF(ExFlg=1,3,5)), VLOOKUP(ToolYear-1,Trends!$A$3:$H$94,IF(ExFlg=1,3,5)) * VLOOKUP(ToolYear-2,Trends!$A$3:$H$94,IF(ExFlg=1,3,5)))) -> 14639.34828 | C72: =S72*IF(ValYear=ToolYear,1,IF(ValYear = ToolYear-1, VLOOKUP(ToolYear-1,Trends!$A$3:$H$94,6), VLOOKUP(ToolYear-1,Trends!$A$3:$H$94,6) * VLOOKUP(ToolYear-2,Trends!$A$3:$H$94,6))) -> 1737.016974 | D72: =T72*IF(ValYear=ToolYear,1,IF(ValYear = ToolYear-1, VLOOKUP(ToolYear-1,Trends!$A$3:$H$94,7), VLOOKUP(ToolYear-1,Trends!$A$3:$H$94,7) * VLOOKUP(ToolYear-2,Trends!$A$3:$H$94,7))) -> 186166.227 | E72: =U72*IF(ValYear=ToolYear,1,IF(ValYear = ToolYear-1, VLOOKUP(ToolYear-1,Trends!$A$3:$H$94,8), VLOOKUP(ToolYear-1,Trends!$A$3:$H$94,8) * VLOOKUP(ToolYear-2,Trends!$A$3:$H$94,8))) -> 143437.5689 | F72: 0.1376011628 | G72: 0.1085091432 | H72: 0.07706 | I72: 0.07064 | N72: 89 | O72: 0.012 | P72: 0.012 | R72: 13078.32 | S72: 1617 | T72: 170477.99 | U72: 131350.078 | W72: 0.140964 | X72: 0.111161
A73: 90 | B73: =R73*IF(ValYear=ToolYear,1,IF(ValYear = ToolYear-1, VLOOKUP(ToolYear-1,Trends!$A$3:$H$94,IF(ExFlg=1,3,5)), VLOOKUP(ToolYear-1,Trends!$A$3:$H$94,IF(ExFlg=1,3,5)) * VLOOKUP(ToolYear-2,Trends!$A$3:$H$94,IF(ExFlg=1,3,5)))) -> 14639.34828 | C73: =S73*IF(ValYear=ToolYear,1,IF(ValYear = ToolYear-1, VLOOKUP(ToolYear-1,Trends!$A$3:$H$94,6), VLOOKUP(ToolYear-1,Trends!$A$3:$H$94,6) * VLOOKUP(ToolYear-2,Trends!$A$3:$H$94,6))) -> 1737.016974 | D73: =T73*IF(ValYear=ToolYear,1,IF(ValYear = ToolYear-1, VLOOKUP(ToolYear-1,Trends!$A$3:$H$94,7), VLOOKUP(ToolYear-1,Trends!$A$3:$H$94,7) * VLOOKUP(ToolYear-2,Trends!$A$3:$H$94,7))) -> 181682.012 | E73: =U73*IF(ValYear=ToolYear,1,IF(ValYear = ToolYear-1, VLOOKUP(ToolYear-1,Trends!$A$3:$H$94,8), VLOOKUP(ToolYear-1,Trends!$A$3:$H$94,8) * VLOOKUP(ToolYear-2,Trends!$A$3:$H$94,8))) -> 139216.4162 | F73: 0.1535048426 | G73: 0.1211217016 | H73: 0.08694 | I73: 0.07506 | N73: 90 | O73: 0.011 | P73: 0.011 | R73: 13078.32 | S73: 1617 | T73: 166371.66 | U73: 127484.642 | W73: 0.1569385 | X73: 0.123831
A74: 91 | B74: =R74*IF(ValYear=ToolYear,1,IF(ValYear = ToolYear-1, VLOOKUP(ToolYear-1,Trends!$A$3:$H$94,IF(ExFlg=1,3,5)), VLOOKUP(ToolYear-1,Trends!$A$3:$H$94,IF(ExFlg=1,3,5)) * VLOOKUP(ToolYear-2,Trends!$A$3:$H$94,IF(ExFlg=1,3,5)))) -> 14639.34828 | C74: =S74*IF(ValYear=ToolYear,1,IF(ValYear = ToolYear-1, VLOOKUP(ToolYear-1,Trends!$A$3:$H$94,6), VLOOKUP(ToolYear-1,Trends!$A$3:$H$94,6) * VLOOKUP(ToolYear-2,Trends!$A$3:$H$94,6))) -> 1737.016974 | D74: =T74*IF(ValYear=ToolYear,1,IF(ValYear = ToolYear-1, VLOOKUP(ToolYear-1,Trends!$A$3:$H$94,7), VLOOKUP(ToolYear-1,Trends!$A$3:$H$94,7) * VLOOKUP(ToolYear-2,Trends!$A$3:$H$94,7))) -> 177197.797 | E74: =U74*IF(ValYear=ToolYear,1,IF(ValYear = ToolYear-1, VLOOKUP(ToolYear-1,Trends!$A$3:$H$94,8), VLOOKUP(ToolYear-1,Trends!$A$3:$H$94,8) * VLOOKUP(ToolYear-2,Trends!$A$3:$H$94,8))) -> 134995.2634 | F74: 0.1705619025 | G74: 0.1341575581 | H74: 0.09682 | I74: 0.07948 | N74: 91 | O74: 0.01 | P74: 0.01 | R74: 13078.32 | S74: 1617 | T74: 162265.33 | U74: 123619.206 | W74: 0.174025 | X74: 0.1368815
A75: 92 | B75: =R75*IF(ValYear=ToolYear,1,IF(ValYear = ToolYear-1, VLOOKUP(ToolYear-1,Trends!$A$3:$H$94,IF(ExFlg=1,3,5)), VLOOKUP(ToolYear-1,Trends!$A$3:$H$94,IF(ExFlg=1,3,5)) * VLOOKUP(ToolYear-2,Trends!$A$3:$H$94,IF(ExFlg=1,3,5)))) -> 14639.34828 | C75: =S75*IF(ValYear=ToolYear,1,IF(ValYear = ToolYear-1, VLOOKUP(ToolYear-1,Trends!$A$3:$H$94,6), VLOOKUP(ToolYear-1,Trends!$A$3:$H$94,6) * VLOOKUP(ToolYear-2,Trends!$A$3:$H$94,6))) -> 1737.016974 | D75: =T75*IF(ValYear=ToolYear,1,IF(ValYear = ToolYear-1, VLOOKUP(ToolYear-1,Trends!$A$3:$H$94,7), VLOOKUP(ToolYear-1,Trends!$A$3:$H$94,7) * VLOOKUP(ToolYear-2,Trends!$A$3:$H$94,7))) -> 172713.582 | E75: =U75*IF(ValYear=ToolYear,1,IF(ValYear = ToolYear-1, VLOOKUP(ToolYear-1,Trends!$A$3:$H$94,8), VLOOKUP(ToolYear-1,Trends!$A$3:$H$94,8) * VLOOKUP(ToolYear-2,Trends!$A$3:$H$94,8))) -> 130774.1107 | F75: 0.1879752138 | G75: 0.1474020104 | H75: 0.1067 | I75: 0.0839 | N75: 92 | O75: 0.009 | P75: 0.009 | R75: 13078.32 | S75: 1617 | T75: 158159 | U75: 119753.77 | W75: 0.191405 | X75: 0.1500915
A76: 93 | B76: =R76*IF(ValYear=ToolYear,1,IF(ValYear = ToolYear-1, VLOOKUP(ToolYear-1,Trends!$A$3:$H$94,IF(ExFlg=1,3,5)), VLOOKUP(ToolYear-1,Trends!$A$3:$H$94,IF(ExFlg=1,3,5)) * VLOOKUP(ToolYear-2,Trends!$A$3:$H$94,IF(ExFlg=1,3,5)))) -> 14639.34828 | C76: =S76*IF(ValYear=ToolYear,1,IF(ValYear = ToolYear-1, VLOOKUP(ToolYear-1,Trends!$A$3:$H$94,6), VLOOKUP(ToolYear-1,Trends!$A$3:$H$94,6) * VLOOKUP(ToolYear-2,Trends!$A$3:$H$94,6))) -> 1737.016974 | D76: =T76*IF(ValYear=ToolYear,1,IF(ValYear = ToolYear-1, VLOOKUP(ToolYear-1,Trends!$A$3:$H$94,7), VLOOKUP(ToolYear-1,Trends!$A$3:$H$94,7) * VLOOKUP(ToolYear-2,Trends!$A$3:$H$94,7))) -> 167484.6387 | E76: =U76*IF(ValYear=ToolYear,1,IF(ValYear = ToolYear-1, VLOOKUP(ToolYear-1,Trends!$A$3:$H$94,8), VLOOKUP(ToolYear-1,Trends!$A$3:$H$94,8) * VLOOKUP(ToolYear-2,Trends!$A$3:$H$94,8))) -> 128535.2672 | F76: 0.2061269658 | G76: 0.1606568125 | H76: 0.11538 | I76: 0.08394 | N76: 93 | O76: 0.008 | P76: 0.008 | R76: 13078.32 | S76: 1617 | T76: 153370.7 | U76: 117703.594 | W76: 0.209465 | X76: 0.1632585
A77: 94 | B77: =R77*IF(ValYear=ToolYear,1,IF(ValYear = ToolYear-1, VLOOKUP(ToolYear-1,Trends!$A$3:$H$94,IF(ExFlg=1,3,5)), VLOOKUP(ToolYear-1,Trends!$A$3:$H$94,IF(ExFlg=1,3,5)) * VLOOKUP(ToolYear-2,Trends!$A$3:$H$94,IF(ExFlg=1,3,5)))) -> 14639.34828 | C77: =S77*IF(ValYear=ToolYear,1,IF(ValYear = ToolYear-1, VLOOKUP(ToolYear-1,Trends!$A$3:$H$94,6), VLOOKUP(ToolYear-1,Trends!$A$3:$H$94,6) * VLOOKUP(ToolYear-2,Trends!$A$3:$H$94,6))) -> 1737.016974 | D77: =T77*IF(ValYear=ToolYear,1,IF(ValYear = ToolYear-1, VLOOKUP(ToolYear-1,Trends!$A$3:$H$94,7), VLOOKUP(ToolYear-1,Trends!$A$3:$H$94,7) * VLOOKUP(ToolYear-2,Trends!$A$3:$H$94,7))) -> 162255.6954 | E77: =U77*IF(ValYear=ToolYear,1,IF(ValYear = ToolYear-1, VLOOKUP(ToolYear-1,Trends!$A$3:$H$94,8), VLOOKUP(ToolYear-1,Trends!$A$3:$H$94,8) * VLOOKUP(ToolYear-2,Trends!$A$3:$H$94,8))) -> 126296.4238 | F77: 0.2248650233 | G77: 0.1737373966 | H77: 0.12406 | I77: 0.08398 | N77: 94 | O77: 0.007 | P77: 0.007 | R77: 13078.32 | S77: 1617 | T77: 148582.4 | U77: 115653.418 | W77: 0.2280465 | X77: 0.1761955
A78: 95 | B78: =R78*IF(ValYear=ToolYear,1,IF(ValYear = ToolYear-1, VLOOKUP(ToolYear-1,Trends!$A$3:$H$94,IF(ExFlg=1,3,5)), VLOOKUP(ToolYear-1,Trends!$A$3:$H$94,IF(ExFlg=1,3,5)) * VLOOKUP(ToolYear-2,Trends!$A$3:$H$94,IF(ExFlg=1,3,5)))) -> 14639.34828 | C78: =S78*IF(ValYear=ToolYear,1,IF(ValYear = ToolYear-1, VLOOKUP(ToolYear-1,Trends!$A$3:$H$94,6), VLOOKUP(ToolYear-1,Trends!$A$3:$H$94,6) * VLOOKUP(ToolYear-2,Trends!$A$3:$H$94,6))) -> 1737.016974 | D78: =T78*IF(ValYear=ToolYear,1,IF(ValYear = ToolYear-1, VLOOKUP(ToolYear-1,Trends!$A$3:$H$94,7), VLOOKUP(ToolYear-1,Trends!$A$3:$H$94,7) * VLOOKUP(ToolYear-2,Trends!$A$3:$H$94,7))) -> 157026.7521 | E78: =U78*IF(ValYear=ToolYear,1,IF(ValYear = ToolYear-1, VLOOKUP(ToolYear-1,Trends!$A$3:$H$94,8), VLOOKUP(ToolYear-1,Trends!$A$3:$H$94,8) * VLOOKUP(ToolYear-2,Trends!$A$3:$H$94,8))) -> 124057.5803 | F78: 0.2440567484 | G78: 0.1864606719 | H78: 0.13274 | I78: 0.08402 | N78: 95 | O78: 0.006 | P78: 0.006 | R78: 13078.32 | S78: 1617 | T78: 143794.1 | U78: 113603.242 | W78: 0.247012 | X78: 0.1887185
A79: 96 | B79: =R79*IF(ValYear=ToolYear,1,IF(ValYear = ToolYear-1, VLOOKUP(ToolYear-1,Trends!$A$3:$H$94,IF(ExFlg=1,3,5)), VLOOKUP(ToolYear-1,Trends!$A$3:$H$94,IF(ExFlg=1,3,5)) * VLOOKUP(ToolYear-2,Trends!$A$3:$H$94,IF(ExFlg=1,3,5)))) -> 14639.34828 | C79: =S79*IF(ValYear=ToolYear,1,IF(ValYear = ToolYear-1, VLOOKUP(ToolYear-1,Trends!$A$3:$H$94,6), VLOOKUP(ToolYear-1,Trends!$A$3:$H$94,6) * VLOOKUP(ToolYear-2,Trends!$A$3:$H$94,6))) -> 1737.016974 | D79: =T79*IF(ValYear=ToolYear,1,IF(ValYear = ToolYear-1, VLOOKUP(ToolYear-1,Trends!$A$3:$H$94,7), VLOOKUP(ToolYear-1,Trends!$A$3:$H$94,7) * VLOOKUP(ToolYear-2,Trends!$A$3:$H$94,7))) -> 151797.8087 | E79: =U79*IF(ValYear=ToolYear,1,IF(ValYear = ToolYear-1, VLOOKUP(ToolYear-1,Trends!$A$3:$H$94,8), VLOOKUP(ToolYear-1,Trends!$A$3:$H$94,8) * VLOOKUP(ToolYear-2,Trends!$A$3:$H$94,8))) -> 121818.7369 | F79: 0.2635976213 | G79: 0.1986465362 | H79: 0.14142 | I79: 0.08406 | N79: 96 | O79: 0.005 | P79: 0.005 | R79: 13078.32 | S79: 1617 | T79: 139005.8 | U79: 111553.066 | W79: 0.2662535 | X79: 0.200648
A80: 97 | B80: =R80*IF(ValYear=ToolYear,1,IF(ValYear = ToolYear-1, VLOOKUP(ToolYear-1,Trends!$A$3:$H$94,IF(ExFlg=1,3,5)), VLOOKUP(ToolYear-1,Trends!$A$3:$H$94,IF(ExFlg=1,3,5)) * VLOOKUP(ToolYear-2,Trends!$A$3:$H$94,IF(ExFlg=1,3,5)))) -> 14639.34828 | C80: =S80*IF(ValYear=ToolYear,1,IF(ValYear = ToolYear-1, VLOOKUP(ToolYear-1,Trends!$A$3:$H$94,6), VLOOKUP(ToolYear-1,Trends!$A$3:$H$94,6) * VLOOKUP(ToolYear-2,Trends!$A$3:$H$94,6))) -> 1737.016974 | D80: =T80*IF(ValYear=ToolYear,1,IF(ValYear = ToolYear-1, VLOOKUP(ToolYear-1,Trends!$A$3:$H$94,7), VLOOKUP(ToolYear-1,Trends!$A$3:$H$94,7) * VLOOKUP(ToolYear-2,Trends!$A$3:$H$94,7))) -> 146568.8654 | E80: =U80*IF(ValYear=ToolYear,1,IF(ValYear = ToolYear-1, VLOOKUP(ToolYear-1,Trends!$A$3:$H$94,8), VLOOKUP(ToolYear-1,Trends!$A$3:$H$94,8) * VLOOKUP(ToolYear-2,Trends!$A$3:$H$94,8))) -> 119579.8935 | F80: 0.2834026029 | G80: 0.2101298211 | H80: 0.1501 | I80: 0.0841 | N80: 97 | O80: 0.004 | P80: 0.004 | R80: 13078.32 | S80: 1617 | T80: 134217.5 | U80: 109502.89 | W80: 0.2856835 | X80: 0.211821
A81: 98 | B81: =R81*IF(ValYear=ToolYear,1,IF(ValYear = ToolYear-1, VLOOKUP(ToolYear-1,Trends!$A$3:$H$94,IF(ExFlg=1,3,5)), VLOOKUP(ToolYear-1,Trends!$A$3:$H$94,IF(ExFlg=1,3,5)) * VLOOKUP(ToolYear-2,Trends!$A$3:$H$94,IF(ExFlg=1,3,5)))) -> 14639.34828 | C81: =S81*IF(ValYear=ToolYear,1,IF(ValYear = ToolYear-1, VLOOKUP(ToolYear-1,Trends!$A$3:$H$94,6), VLOOKUP(ToolYear-1,Trends!$A$3:$H$94,6) * VLOOKUP(ToolYear-2,Trends!$A$3:$H$94,6))) -> 1737.016974 | D81: =T81*IF(ValYear=ToolYear,1,IF(ValYear = ToolYear-1, VLOOKUP(ToolYear-1,Trends!$A$3:$H$94,7), VLOOKUP(ToolYear-1,Trends!$A$3:$H$94,7) * VLOOKUP(ToolYear-2,Trends!$A$3:$H$94,7))) -> 146568.8654 | E81: =U81*IF(ValYear=ToolYear,1,IF(ValYear = ToolYear-1, VLOOKUP(ToolYear-1,Trends!$A$3:$H$94,8), VLOOKUP(ToolYear-1,Trends!$A$3:$H$94,8) * VLOOKUP(ToolYear-2,Trends!$A$3:$H$94,8))) -> 119579.8935 | F81: 0.2973840764 | G81: 0.2163686098 | H81: 0.1501 | I81: 0.0841 | N81: 98 | O81: 0.004 | P81: 0.004 | R81: 13078.32 | S81: 1617 | T81: 134217.5 | U81: 109502.89 | W81: 0.2997775 | X81: 0.21811
A82: 99 | B82: =R82*IF(ValYear=ToolYear,1,IF(ValYear = ToolYear-1, VLOOKUP(ToolYear-1,Trends!$A$3:$H$94,IF(ExFlg=1,3,5)), VLOOKUP(ToolYear-1,Trends!$A$3:$H$94,IF(ExFlg=1,3,5)) * VLOOKUP(ToolYear-2,Trends!$A$3:$H$94,IF(ExFlg=1,3,5)))) -> 14639.34828 | C82: =S82*IF(ValYear=ToolYear,1,IF(ValYear = ToolYear-1, VLOOKUP(ToolYear-1,Trends!$A$3:$H$94,6), VLOOKUP(ToolYear-1,Trends!$A$3:$H$94,6) * VLOOKUP(ToolYear-2,Trends!$A$3:$H$94,6))) -> 1737.016974 | D82: =T82*IF(ValYear=ToolYear,1,IF(ValYear = ToolYear-1, VLOOKUP(ToolYear-1,Trends!$A$3:$H$94,7), VLOOKUP(ToolYear-1,Trends!$A$3:$H$94,7) * VLOOKUP(ToolYear-2,Trends!$A$3:$H$94,7))) -> 146568.8654 | E82: =U82*IF(ValYear=ToolYear,1,IF(ValYear = ToolYear-1, VLOOKUP(ToolYear-1,Trends!$A$3:$H$94,8), VLOOKUP(ToolYear-1,Trends!$A$3:$H$94,8) * VLOOKUP(ToolYear-2,Trends!$A$3:$H$94,8))) -> 119579.8935 | F82: 0.317310038 | G82: 0.2270868231 | H82: 0.1501 | I82: 0.0841 | N82: 99 | O82: 0.003 | P82: 0.003 | R82: 13078.32 | S82: 1617 | T82: 134217.5 | U82: 109502.89 | W82: 0.3192225 | X82: 0.2284555
A83: 100 | B83: =R83*IF(ValYear=ToolYear,1,IF(ValYear = ToolYear-1, VLOOKUP(ToolYear-1,Trends!$A$3:$H$94,IF(ExFlg=1,3,5)), VLOOKUP(ToolYear-1,Trends!$A$3:$H$94,IF(ExFlg=1,3,5)) * VLOOKUP(ToolYear-2,Trends!$A$3:$H$94,IF(ExFlg=1,3,5)))) -> 14639.34828 | C83: =S83*IF(ValYear=ToolYear,1,IF(ValYear = ToolYear-1, VLOOKUP(ToolYear-1,Trends!$A$3:$H$94,6), VLOOKUP(ToolYear-1,Trends!$A$3:$H$94,6) * VLOOKUP(ToolYear-2,Trends!$A$3:$H$94,6))) -> 1737.016974 | D83: =T83*IF(ValYear=ToolYear,1,IF(ValYear = ToolYear-1, VLOOKUP(ToolYear-1,Trends!$A$3:$H$94,7), VLOOKUP(ToolYear-1,Trends!$A$3:$H$94,7) * VLOOKUP(ToolYear-2,Trends!$A$3:$H$94,7))) -> 146568.8654 | E83: =U83*IF(ValYear=ToolYear,1,IF(ValYear = ToolYear-1, VLOOKUP(ToolYear-1,Trends!$A$3:$H$94,8), VLOOKUP(ToolYear-1,Trends!$A$3:$H$94,8) * VLOOKUP(ToolYear-2,Trends!$A$3:$H$94,8))) -> 119579.8935 | F83: 0.3304786692 | G83: 0.2351054937 | H83: 0.1501 | I83: 0.0841 | N83: 100 | O83: 0.003 | P83: 0.003 | R83: 13078.32 | S83: 1617 | T83: 134217.5 | U83: 109502.89 | W83: 0.3324705 | X83: 0.2365225
A84: 101 | B84: =R84*IF(ValYear=ToolYear,1,IF(ValYear = ToolYear-1, VLOOKUP(ToolYear-1,Trends!$A$3:$H$94,IF(ExFlg=1,3,5)), VLOOKUP(ToolYear-1,Trends!$A$3:$H$94,IF(ExFlg=1,3,5)) * VLOOKUP(ToolYear-2,Trends!$A$3:$H$94,IF(ExFlg=1,3,5)))) -> 14639.34828 | C84: =S84*IF(ValYear=ToolYear,1,IF(ValYear = ToolYear-1, VLOOKUP(ToolYear-1,Trends!$A$3:$H$94,6), VLOOKUP(ToolYear-1,Trends!$A$3:$H$94,6) * VLOOKUP(ToolYear-2,Trends!$A$3:$H$94,6))) -> 1737.016974 | D84: =T84*IF(ValYear=ToolYear,1,IF(ValYear = ToolYear-1, VLOOKUP(ToolYear-1,Trends!$A$3:$H$94,7), VLOOKUP(ToolYear-1,Trends!$A$3:$H$94,7) * VLOOKUP(ToolYear-2,Trends!$A$3:$H$94,7))) -> 146568.8654 | E84: =U84*IF(ValYear=ToolYear,1,IF(ValYear = ToolYear-1, VLOOKUP(ToolYear-1,Trends!$A$3:$H$94,8), VLOOKUP(ToolYear-1,Trends!$A$3:$H$94,8) * VLOOKUP(ToolYear-2,Trends!$A$3:$H$94,8))) -> 119579.8935 | F84: 0.3495192177 | G84: 0.2500557682 | H84: 0.1501 | I84: 0.0841 | N84: 101 | O84: 0.002 | P84: 0.002 | R84: 13078.32 | S84: 1617 | T84: 134217.5 | U84: 109502.89 | W84: 0.3509215 | X84: 0.251059
A85: 102 | B85: =R85*IF(ValYear=ToolYear,1,IF(ValYear = ToolYear-1, VLOOKUP(ToolYear-1,Trends!$A$3:$H$94,IF(ExFlg=1,3,5)), VLOOKUP(ToolYear-1,Trends!$A$3:$H$94,IF(ExFlg=1,3,5)) * VLOOKUP(ToolYear-2,Trends!$A$3:$H$94,IF(ExFlg=1,3,5)))) -> 14639.34828 | C85: =S85*IF(ValYear=ToolYear,1,IF(ValYear = ToolYear-1, VLOOKUP(ToolYear-1,Trends!$A$3:$H$94,6), VLOOKUP(ToolYear-1,Trends!$A$3:$H$94,6) * VLOOKUP(ToolYear-2,Trends!$A$3:$H$94,6))) -> 1737.016974 | D85: =T85*IF(ValYear=ToolYear,1,IF(ValYear = ToolYear-1, VLOOKUP(ToolYear-1,Trends!$A$3:$H$94,7), VLOOKUP(ToolYear-1,Trends!$A$3:$H$94,7) * VLOOKUP(ToolYear-2,Trends!$A$3:$H$94,7))) -> 146568.8654 | E85: =U85*IF(ValYear=ToolYear,1,IF(ValYear = ToolYear-1, VLOOKUP(ToolYear-1,Trends!$A$3:$H$94,8), VLOOKUP(ToolYear-1,Trends!$A$3:$H$94,8) * VLOOKUP(ToolYear-2,Trends!$A$3:$H$94,8))) -> 119579.8935 | F85: 0.3605848221 | G85: 0.2618524396 | H85: 0.1501 | I85: 0.0841 | N85: 102 | O85: 0.002 | P85: 0.002 | R85: 13078.32 | S85: 1617 | T85: 134217.5 | U85: 109502.89 | W85: 0.3620315 | X85: 0.262903
A86: 103 | B86: =R86*IF(ValYear=ToolYear,1,IF(ValYear = ToolYear-1, VLOOKUP(ToolYear-1,Trends!$A$3:$H$94,IF(ExFlg=1,3,5)), VLOOKUP(ToolYear-1,Trends!$A$3:$H$94,IF(ExFlg=1,3,5)) * VLOOKUP(ToolYear-2,Trends!$A$3:$H$94,IF(ExFlg=1,3,5)))) -> 14639.34828 | C86: =S86*IF(ValYear=ToolYear,1,IF(ValYear = ToolYear-1, VLOOKUP(ToolYear-1,Trends!$A$3:$H$94,6), VLOOKUP(ToolYear-1,Trends!$A$3:$H$94,6) * VLOOKUP(ToolYear-2,Trends!$A$3:$H$94,6))) -> 1737.016974 | D86: =T86*IF(ValYear=ToolYear,1,IF(ValYear = ToolYear-1, VLOOKUP(ToolYear-1,Trends!$A$3:$H$94,7), VLOOKUP(ToolYear-1,Trends!$A$3:$H$94,7) * VLOOKUP(ToolYear-2,Trends!$A$3:$H$94,7))) -> 146568.8654 | E86: =U86*IF(ValYear=ToolYear,1,IF(ValYear = ToolYear-1, VLOOKUP(ToolYear-1,Trends!$A$3:$H$94,8), VLOOKUP(ToolYear-1,Trends!$A$3:$H$94,8) * VLOOKUP(ToolYear-2,Trends!$A$3:$H$94,8))) -> 119579.8935 | F86: 0.3771625419 | G86: 0.280417822 | H86: 0.1501 | I86: 0.0841 | N86: 103 | O86: 0.001 | P86: 0.001 | R86: 13078.32 | S86: 1617 | T86: 134217.5 | U86: 109502.89 | W86: 0.377918 | X86: 0.2809795
A87: 104 | B87: =R87*IF(ValYear=ToolYear,1,IF(ValYear = ToolYear-1, VLOOKUP(ToolYear-1,Trends!$A$3:$H$94,IF(ExFlg=1,3,5)), VLOOKUP(ToolYear-1,Trends!$A$3:$H$94,IF(ExFlg=1,3,5)) * VLOOKUP(ToolYear-2,Trends!$A$3:$H$94,IF(ExFlg=1,3,5)))) -> 14639.34828 | C87: =S87*IF(ValYear=ToolYear,1,IF(ValYear = ToolYear-1, VLOOKUP(ToolYear-1,Trends!$A$3:$H$94,6), VLOOKUP(ToolYear-1,Trends!$A$3:$H$94,6) * VLOOKUP(ToolYear-2,Trends!$A$3:$H$94,6))) -> 1737.016974 | D87: =T87*IF(ValYear=ToolYear,1,IF(ValYear = ToolYear-1, VLOOKUP(ToolYear-1,Trends!$A$3:$H$94,7), VLOOKUP(ToolYear-1,Trends!$A$3:$H$94,7) * VLOOKUP(ToolYear-2,Trends!$A$3:$H$94,7))) -> 146568.8654 | E87: =U87*IF(ValYear=ToolYear,1,IF(ValYear = ToolYear-1, VLOOKUP(ToolYear-1,Trends!$A$3:$H$94,8), VLOOKUP(ToolYear-1,Trends!$A$3:$H$94,8) * VLOOKUP(ToolYear-2,Trends!$A$3:$H$94,8))) -> 119579.8935 | F87: 0.3837638195 | G87: 0.2945110931 | H87: 0.1501 | I87: 0.0841 | N87: 104 | O87: 0.001 | P87: 0.001 | R87: 13078.32 | S87: 1617 | T87: 134217.5 | U87: 109502.89 | W87: 0.3845325 | X87: 0.295101
A88: 105 | B88: =R88*IF(ValYear=ToolYear,1,IF(ValYear = ToolYear-1, VLOOKUP(ToolYear-1,Trends!$A$3:$H$94,IF(ExFlg=1,3,5)), VLOOKUP(ToolYear-1,Trends!$A$3:$H$94,IF(ExFlg=1,3,5)) * VLOOKUP(ToolYear-2,Trends!$A$3:$H$94,IF(ExFlg=1,3,5)))) -> 14639.34828 | C88: =S88*IF(ValYear=ToolYear,1,IF(ValYear = ToolYear-1, VLOOKUP(ToolYear-1,Trends!$A$3:$H$94,6), VLOOKUP(ToolYear-1,Trends!$A$3:$H$94,6) * VLOOKUP(ToolYear-2,Trends!$A$3:$H$94,6))) -> 1737.016974 | D88: =T88*IF(ValYear=ToolYear,1,IF(ValYear = ToolYear-1, VLOOKUP(ToolYear-1,Trends!$A$3:$H$94,7), VLOOKUP(ToolYear-1,Trends!$A$3:$H$94,7) * VLOOKUP(ToolYear-2,Trends!$A$3:$H$94,7))) -> 146568.8654 | E88: =U88*IF(ValYear=ToolYear,1,IF(ValYear = ToolYear-1, VLOOKUP(ToolYear-1,Trends!$A$3:$H$94,8), VLOOKUP(ToolYear-1,Trends!$A$3:$H$94,8) * VLOOKUP(ToolYear-2,Trends!$A$3:$H$94,8))) -> 119579.8935 | F88: 0.3960015 | G88: 0.315268 | H88: 0.1501 | I88: 0.0841 | N88: 105 | O88: 0 | P88: 0 | R88: 13078.32 | S88: 1617 | T88: 134217.5 | U88: 109502.89 | W88: 0.3960015 | X88: 0.315268
A89: 106 | B89: =R89*IF(ValYear=ToolYear,1,IF(ValYear = ToolYear-1, VLOOKUP(ToolYear-1,Trends!$A$3:$H$94,IF(ExFlg=1,3,5)), VLOOKUP(ToolYear-1,Trends!$A$3:$H$94,IF(ExFlg=1,3,5)) * VLOOKUP(ToolYear-2,Trends!$A$3:$H$94,IF(ExFlg=1,3,5)))) -> 14639.34828 | C89: =S89*IF(ValYear=ToolYear,1,IF(ValYear = ToolYear-1, VLOOKUP(ToolYear-1,Trends!$A$3:$H$94,6), VLOOKUP(ToolYear-1,Trends!$A$3:$H$94,6) * VLOOKUP(ToolYear-2,Trends!$A$3:$H$94,6))) -> 1737.016974 | D89: =T89*IF(ValYear=ToolYear,1,IF(ValYear = ToolYear-1, VLOOKUP(ToolYear-1,Trends!$A$3:$H$94,7), VLOOKUP(ToolYear-1,Trends!$A$3:$H$94,7) * VLOOKUP(ToolYear-2,Trends!$A$3:$H$94,7))) -> 146568.8654 | E89: =U89*IF(ValYear=ToolYear,1,IF(ValYear = ToolYear-1, VLOOKUP(ToolYear-1,Trends!$A$3:$H$94,8), VLOOKUP(ToolYear-1,Trends!$A$3:$H$94,8) * VLOOKUP(ToolYear-2,Trends!$A$3:$H$94,8))) -> 119579.8935 | F89: 0.398943 | G89: 0.330083 | H89: 0.1501 | I89: 0.0841 | N89: 106 | O89: 0 | P89: 0 | R89: 13078.32 | S89: 1617 | T89: 134217.5 | U89: 109502.89 | W89: 0.398943 | X89: 0.330083
A90: 107 | B90: =R90*IF(ValYear=ToolYear,1,IF(ValYear = ToolYear-1, VLOOKUP(ToolYear-1,Trends!$A$3:$H$94,IF(ExFlg=1,3,5)), VLOOKUP(ToolYear-1,Trends!$A$3:$H$94,IF(ExFlg=1,3,5)) * VLOOKUP(ToolYear-2,Trends!$A$3:$H$94,IF(ExFlg=1,3,5)))) -> 14639.34828 | C90: =S90*IF(ValYear=ToolYear,1,IF(ValYear = ToolYear-1, VLOOKUP(ToolYear-1,Trends!$A$3:$H$94,6), VLOOKUP(ToolYear-1,Trends!$A$3:$H$94,6) * VLOOKUP(ToolYear-2,Trends!$A$3:$H$94,6))) -> 1737.016974 | D90: =T90*IF(ValYear=ToolYear,1,IF(ValYear = ToolYear-1, VLOOKUP(ToolYear-1,Trends!$A$3:$H$94,7), VLOOKUP(ToolYear-1,Trends!$A$3:$H$94,7) * VLOOKUP(ToolYear-2,Trends!$A$3:$H$94,7))) -> 146568.8654 | E90: =U90*IF(ValYear=ToolYear,1,IF(ValYear = ToolYear-1, VLOOKUP(ToolYear-1,Trends!$A$3:$H$94,8), VLOOKUP(ToolYear-1,Trends!$A$3:$H$94,8) * VLOOKUP(ToolYear-2,Trends!$A$3:$H$94,8))) -> 119579.8935 | F90: 0.4 | G90: 0.3444925 | H90: 0.1501 | I90: 0.0841 | N90: 107 | O90: 0 | P90: 0 | R90: 13078.32 | S90: 1617 | T90: 134217.5 | U90: 109502.89 | W90: 0.4 | X90: 0.3444925
A91: 108 | B91: =R91*IF(ValYear=ToolYear,1,IF(ValYear = ToolYear-1, VLOOKUP(ToolYear-1,Trends!$A$3:$H$94,IF(ExFlg=1,3,5)), VLOOKUP(ToolYear-1,Trends!$A$3:$H$94,IF(ExFlg=1,3,5)) * VLOOKUP(ToolYear-2,Trends!$A$3:$H$94,IF(ExFlg=1,3,5)))) -> 14639.34828 | C91: =S91*IF(ValYear=ToolYear,1,IF(ValYear = ToolYear-1, VLOOKUP(ToolYear-1,Trends!$A$3:$H$94,6), VLOOKUP(ToolYear-1,Trends!$A$3:$H$94,6) * VLOOKUP(ToolYear-2,Trends!$A$3:$H$94,6))) -> 1737.016974 | D91: =T91*IF(ValYear=ToolYear,1,IF(ValYear = ToolYear-1, VLOOKUP(ToolYear-1,Trends!$A$3:$H$94,7), VLOOKUP(ToolYear-1,Trends!$A$3:$H$94,7) * VLOOKUP(ToolYear-2,Trends!$A$3:$H$94,7))) -> 146568.8654 | E91: =U91*IF(ValYear=ToolYear,1,IF(ValYear = ToolYear-1, VLOOKUP(ToolYear-1,Trends!$A$3:$H$94,8), VLOOKUP(ToolYear-1,Trends!$A$3:$H$94,8) * VLOOKUP(ToolYear-2,Trends!$A$3:$H$94,8))) -> 119579.8935 | F91: 0.4 | G91: 0.3580805 | H91: 0.1501 | I91: 0.0841 | N91: 108 | O91: 0 | P91: 0 | R91: 13078.32 | S91: 1617 | T91: 134217.5 | U91: 109502.89 | W91: 0.4 | X91: 0.3580805
A92: 109 | B92: =R92*IF(ValYear=ToolYear,1,IF(ValYear = ToolYear-1, VLOOKUP(ToolYear-1,Trends!$A$3:$H$94,IF(ExFlg=1,3,5)), VLOOKUP(ToolYear-1,Trends!$A$3:$H$94,IF(ExFlg=1,3,5)) * VLOOKUP(ToolYear-2,Trends!$A$3:$H$94,IF(ExFlg=1,3,5)))) -> 14639.34828 | C92: =S92*IF(ValYear=ToolYear,1,IF(ValYear = ToolYear-1, VLOOKUP(ToolYear-1,Trends!$A$3:$H$94,6), VLOOKUP(ToolYear-1,Trends!$A$3:$H$94,6) * VLOOKUP(ToolYear-2,Trends!$A$3:$H$94,6))) -> 1737.016974 | D92: =T92*IF(ValYear=ToolYear,1,IF(ValYear = ToolYear-1, VLOOKUP(ToolYear-1,Trends!$A$3:$H$94,7), VLOOKUP(ToolYear-1,Trends!$A$3:$H$94,7) * VLOOKUP(ToolYear-2,Trends!$A$3:$H$94,7))) -> 146568.8654 | E92: =U92*IF(ValYear=ToolYear,1,IF(ValYear = ToolYear-1, VLOOKUP(ToolYear-1,Trends!$A$3:$H$94,8), VLOOKUP(ToolYear-1,Trends!$A$3:$H$94,8) * VLOOKUP(ToolYear-2,Trends!$A$3:$H$94,8))) -> 119579.8935 | F92: 0.4 | G92: 0.3704315 | H92: 0.1501 | I92: 0.0841 | N92: 109 | O92: 0 | P92: 0 | R92: 13078.32 | S92: 1617 | T92: 134217.5 | U92: 109502.89 | W92: 0.4 | X92: 0.3704315
A93: 110 | B93: =R93*IF(ValYear=ToolYear,1,IF(ValYear = ToolYear-1, VLOOKUP(ToolYear-1,Trends!$A$3:$H$94,IF(ExFlg=1,3,5)), VLOOKUP(ToolYear-1,Trends!$A$3:$H$94,IF(ExFlg=1,3,5)) * VLOOKUP(ToolYear-2,Trends!$A$3:$H$94,IF(ExFlg=1,3,5)))) -> 14639.34828 | C93: =S93*IF(ValYear=ToolYear,1,IF(ValYear = ToolYear-1, VLOOKUP(ToolYear-1,Trends!$A$3:$H$94,6), VLOOKUP(ToolYear-1,Trends!$A$3:$H$94,6) * VLOOKUP(ToolYear-2,Trends!$A$3:$H$94,6))) -> 1737.016974 | D93: =T93*IF(ValYear=ToolYear,1,IF(ValYear = ToolYear-1, VLOOKUP(ToolYear-1,Trends!$A$3:$H$94,7), VLOOKUP(ToolYear-1,Trends!$A$3:$H$94,7) * VLOOKUP(ToolYear-2,Trends!$A$3:$H$94,7))) -> 146568.8654 | E93: =U93*IF(ValYear=ToolYear,1,IF(ValYear = ToolYear-1, VLOOKUP(ToolYear-1,Trends!$A$3:$H$94,8), VLOOKUP(ToolYear-1,Trends!$A$3:$H$94,8) * VLOOKUP(ToolYear-2,Trends!$A$3:$H$94,8))) -> 119579.8935 | F93: 0.4 | G93: 0.3811305 | H93: 0.1501 | I93: 0.0841 | N93: 110 | O93: 0 | P93: 0 | R93: 13078.32 | S93: 1617 | T93: 134217.5 | U93: 109502.89 | W93: 0.4 | X93: 0.3811305
A94: 111 | B94: =R94*IF(ValYear=ToolYear,1,IF(ValYear = ToolYear-1, VLOOKUP(ToolYear-1,Trends!$A$3:$H$94,IF(ExFlg=1,3,5)), VLOOKUP(ToolYear-1,Trends!$A$3:$H$94,IF(ExFlg=1,3,5)) * VLOOKUP(ToolYear-2,Trends!$A$3:$H$94,IF(ExFlg=1,3,5)))) -> 14639.34828 | C94: =S94*IF(ValYear=ToolYear,1,IF(ValYear = ToolYear-1, VLOOKUP(ToolYear-1,Trends!$A$3:$H$94,6), VLOOKUP(ToolYear-1,Trends!$A$3:$H$94,6) * VLOOKUP(ToolYear-2,Trends!$A$3:$H$94,6))) -> 1737.016974 | D94: =T94*IF(ValYear=ToolYear,1,IF(ValYear = ToolYear-1, VLOOKUP(ToolYear-1,Trends!$A$3:$H$94,7), VLOOKUP(ToolYear-1,Trends!$A$3:$H$94,7) * VLOOKUP(ToolYear-2,Trends!$A$3:$H$94,7))) -> 146568.8654 | E94: =U94*IF(ValYear=ToolYear,1,IF(ValYear = ToolYear-1, VLOOKUP(ToolYear-1,Trends!$A$3:$H$94,8), VLOOKUP(ToolYear-1,Trends!$A$3:$H$94,8) * VLOOKUP(ToolYear-2,Trends!$A$3:$H$94,8))) -> 119579.8935 | F94: 0.4 | G94: 0.389761 | H94: 0.1501 | I94: 0.0841 | N94: 111 | O94: 0 | P94: 0 | R94: 13078.32 | S94: 1617 | T94: 134217.5 | U94: 109502.89 | W94: 0.4 | X94: 0.389761
A95: 112 | B95: =R95*IF(ValYear=ToolYear,1,IF(ValYear = ToolYear-1, VLOOKUP(ToolYear-1,Trends!$A$3:$H$94,IF(ExFlg=1,3,5)), VLOOKUP(ToolYear-1,Trends!$A$3:$H$94,IF(ExFlg=1,3,5)) * VLOOKUP(ToolYear-2,Trends!$A$3:$H$94,IF(ExFlg=1,3,5)))) -> 14639.34828 | C95: =S95*IF(ValYear=ToolYear,1,IF(ValYear = ToolYear-1, VLOOKUP(ToolYear-1,Trends!$A$3:$H$94,6), VLOOKUP(ToolYear-1,Trends!$A$3:$H$94,6) * VLOOKUP(ToolYear-2,Trends!$A$3:$H$94,6))) -> 1737.016974 | D95: =T95*IF(ValYear=ToolYear,1,IF(ValYear = ToolYear-1, VLOOKUP(ToolYear-1,Trends!$A$3:$H$94,7), VLOOKUP(ToolYear-1,Trends!$A$3:$H$94,7) * VLOOKUP(ToolYear-2,Trends!$A$3:$H$94,7))) -> 146568.8654 | E95: =U95*IF(ValYear=ToolYear,1,IF(ValYear = ToolYear-1, VLOOKUP(ToolYear-1,Trends!$A$3:$H$94,8), VLOOKUP(ToolYear-1,Trends!$A$3:$H$94,8) * VLOOKUP(ToolYear-2,Trends!$A$3:$H$94,8))) -> 119579.8935 | F95: 0.4 | G95: 0.3959075 | H95: 0.1501 | I95: 0.0841 | N95: 112 | O95: 0 | P95: 0 | R95: 13078.32 | S95: 1617 | T95: 134217.5 | U95: 109502.89 | W95: 0.4 | X95: 0.3959075
A96: 113 | B96: =R96*IF(ValYear=ToolYear,1,IF(ValYear = ToolYear-1, VLOOKUP(ToolYear-1,Trends!$A$3:$H$94,IF(ExFlg=1,3,5)), VLOOKUP(ToolYear-1,Trends!$A$3:$H$94,IF(ExFlg=1,3,5)) * VLOOKUP(ToolYear-2,Trends!$A$3:$H$94,IF(ExFlg=1,3,5)))) -> 14639.34828 | C96: =S96*IF(ValYear=ToolYear,1,IF(ValYear = ToolYear-1, VLOOKUP(ToolYear-1,Trends!$A$3:$H$94,6), VLOOKUP(ToolYear-1,Trends!$A$3:$H$94,6) * VLOOKUP(ToolYear-2,Trends!$A$3:$H$94,6))) -> 1737.016974 | D96: =T96*IF(ValYear=ToolYear,1,IF(ValYear = ToolYear-1, VLOOKUP(ToolYear-1,Trends!$A$3:$H$94,7), VLOOKUP(ToolYear-1,Trends!$A$3:$H$94,7) * VLOOKUP(ToolYear-2,Trends!$A$3:$H$94,7))) -> 146568.8654 | E96: =U96*IF(ValYear=ToolYear,1,IF(ValYear = ToolYear-1, VLOOKUP(ToolYear-1,Trends!$A$3:$H$94,8), VLOOKUP(ToolYear-1,Trends!$A$3:$H$94,8) * VLOOKUP(ToolYear-2,Trends!$A$3:$H$94,8))) -> 119579.8935 | F96: 0.4 | G96: 0.399154 | H96: 0.1501 | I96: 0.0841 | N96: 113 | O96: 0 | P96: 0 | R96: 13078.32 | S96: 1617 | T96: 134217.5 | U96: 109502.89 | W96: 0.4 | X96: 0.399154
A97: 114 | B97: =R97*IF(ValYear=ToolYear,1,IF(ValYear = ToolYear-1, VLOOKUP(ToolYear-1,Trends!$A$3:$H$94,IF(ExFlg=1,3,5)), VLOOKUP(ToolYear-1,Trends!$A$3:$H$94,IF(ExFlg=1,3,5)) * VLOOKUP(ToolYear-2,Trends!$A$3:$H$94,IF(ExFlg=1,3,5)))) -> 14639.34828 | C97: =S97*IF(ValYear=ToolYear,1,IF(ValYear = ToolYear-1, VLOOKUP(ToolYear-1,Trends!$A$3:$H$94,6), VLOOKUP(ToolYear-1,Trends!$A$3:$H$94,6) * VLOOKUP(ToolYear-2,Trends!$A$3:$H$94,6))) -> 1737.016974 | D97: =T97*IF(ValYear=ToolYear,1,IF(ValYear = ToolYear-1, VLOOKUP(ToolYear-1,Trends!$A$3:$H$94,7), VLOOKUP(ToolYear-1,Trends!$A$3:$H$94,7) * VLOOKUP(ToolYear-2,Trends!$A$3:$H$94,7))) -> 146568.8654 | E97: =U97*IF(ValYear=ToolYear,1,IF(ValYear = ToolYear-1, VLOOKUP(ToolYear-1,Trends!$A$3:$H$94,8), VLOOKUP(ToolYear-1,Trends!$A$3:$H$94,8) * VLOOKUP(ToolYear-2,Trends!$A$3:$H$94,8))) -> 119579.8935 | F97: 0.4 | G97: 0.4 | H97: 0.1501 | I97: 0.0841 | N97: 114 | O97: 0 | P97: 0 | R97: 13078.32 | S97: 1617 | T97: 134217.5 | U97: 109502.89 | W97: 0.4 | X97: 0.4
A98: 115 | B98: =R98*IF(ValYear=ToolYear,1,IF(ValYear = ToolYear-1, VLOOKUP(ToolYear-1,Trends!$A$3:$H$94,IF(ExFlg=1,3,5)), VLOOKUP(ToolYear-1,Trends!$A$3:$H$94,IF(ExFlg=1,3,5)) * VLOOKUP(ToolYear-2,Trends!$A$3:$H$94,IF(ExFlg=1,3,5)))) -> 14639.34828 | C98: =S98*IF(ValYear=ToolYear,1,IF(ValYear = ToolYear-1, VLOOKUP(ToolYear-1,Trends!$A$3:$H$94,6), VLOOKUP(ToolYear-1,Trends!$A$3:$H$94,6) * VLOOKUP(ToolYear-2,Trends!$A$3:$H$94,6))) -> 1737.016974 | D98: =T98*IF(ValYear=ToolYear,1,IF(ValYear = ToolYear-1, VLOOKUP(ToolYear-1,Trends!$A$3:$H$94,7), VLOOKUP(ToolYear-1,Trends!$A$3:$H$94,7) * VLOOKUP(ToolYear-2,Trends!$A$3:$H$94,7))) -> 146568.8654 | E98: =U98*IF(ValYear=ToolYear,1,IF(ValYear = ToolYear-1, VLOOKUP(ToolYear-1,Trends!$A$3:$H$94,8), VLOOKUP(ToolYear-1,Trends!$A$3:$H$94,8) * VLOOKUP(ToolYear-2,Trends!$A$3:$H$94,8))) -> 119579.8935 | F98: 0.4 | G98: 0.4 | H98: 0.1501 | I98: 0.0841 | N98: 115 | O98: 0 | P98: 0 | R98: 13078.32 | S98: 1617 | T98: 134217.5 | U98: 109502.89 | W98: 0.4 | X98: 0.4
A99: 116 | B99: =R99*IF(ValYear=ToolYear,1,IF(ValYear = ToolYear-1, VLOOKUP(ToolYear-1,Trends!$A$3:$H$94,IF(ExFlg=1,3,5)), VLOOKUP(ToolYear-1,Trends!$A$3:$H$94,IF(ExFlg=1,3,5)) * VLOOKUP(ToolYear-2,Trends!$A$3:$H$94,IF(ExFlg=1,3,5)))) -> 14639.34828 | C99: =S99*IF(ValYear=ToolYear,1,IF(ValYear = ToolYear-1, VLOOKUP(ToolYear-1,Trends!$A$3:$H$94,6), VLOOKUP(ToolYear-1,Trends!$A$3:$H$94,6) * VLOOKUP(ToolYear-2,Trends!$A$3:$H$94,6))) -> 1737.016974 | D99: =T99*IF(ValYear=ToolYear,1,IF(ValYear = ToolYear-1, VLOOKUP(ToolYear-1,Trends!$A$3:$H$94,7), VLOOKUP(ToolYear-1,Trends!$A$3:$H$94,7) * VLOOKUP(ToolYear-2,Trends!$A$3:$H$94,7))) -> 146568.8654 | E99: =U99*IF(ValYear=ToolYear,1,IF(ValYear = ToolYear-1, VLOOKUP(ToolYear-1,Trends!$A$3:$H$94,8), VLOOKUP(ToolYear-1,Trends!$A$3:$H$94,8) * VLOOKUP(ToolYear-2,Trends!$A$3:$H$94,8))) -> 119579.8935 | F99: 0.4 | G99: 0.4 | H99: 0.1501 | I99: 0.0841 | N99: 116 | O99: 0 | P99: 0 | R99: 13078.32 | S99: 1617 | T99: 134217.5 | U99: 109502.89 | W99: 0.4 | X99: 0.4
A100: 117 | B100: =R100*IF(ValYear=ToolYear,1,IF(ValYear = ToolYear-1, VLOOKUP(ToolYear-1,Trends!$A$3:$H$94,IF(ExFlg=1,3,5)), VLOOKUP(ToolYear-1,Trends!$A$3:$H$94,IF(ExFlg=1,3,5)) * VLOOKUP(ToolYear-2,Trends!$A$3:$H$94,IF(ExFlg=1,3,5)))) -> 14639.34828 | C100: =S100*IF(ValYear=ToolYear,1,IF(ValYear = ToolYear-1, VLOOKUP(ToolYear-1,Trends!$A$3:$H$94,6), VLOOKUP(ToolYear-1,Trends!$A$3:$H$94,6) * VLOOKUP(ToolYear-2,Trends!$A$3:$H$94,6))) -> 1737.016974 | D100: =T100*IF(ValYear=ToolYear,1,IF(ValYear = ToolYear-1, VLOOKUP(ToolYear-1,Trends!$A$3:$H$94,7), VLOOKUP(ToolYear-1,Trends!$A$3:$H$94,7) * VLOOKUP(ToolYear-2,Trends!$A$3:$H$94,7))) -> 146568.8654 | E100: =U100*IF(ValYear=ToolYear,1,IF(ValYear = ToolYear-1, VLOOKUP(ToolYear-1,Trends!$A$3:$H$94,8), VLOOKUP(ToolYear-1,Trends!$A$3:$H$94,8) * VLOOKUP(ToolYear-2,Trends!$A$3:$H$94,8))) -> 119579.8935 | F100: 0.4 | G100: 0.4 | H100: 0.1501 | I100: 0.0841 | N100: 117 | O100: 0 | P100: 0 | R100: 13078.32 | S100: 1617 | T100: 134217.5 | U100: 109502.89 | W100: 0.4 | X100: 0.4
A101: 118 | B101: =R101*IF(ValYear=ToolYear,1,IF(ValYear = ToolYear-1, VLOOKUP(ToolYear-1,Trends!$A$3:$H$94,IF(ExFlg=1,3,5)), VLOOKUP(ToolYear-1,Trends!$A$3:$H$94,IF(ExFlg=1,3,5)) * VLOOKUP(ToolYear-2,Trends!$A$3:$H$94,IF(ExFlg=1,3,5)))) -> 14639.34828 | C101: =S101*IF(ValYear=ToolYear,1,IF(ValYear = ToolYear-1, VLOOKUP(ToolYear-1,Trends!$A$3:$H$94,6), VLOOKUP(ToolYear-1,Trends!$A$3:$H$94,6) * VLOOKUP(ToolYear-2,Trends!$A$3:$H$94,6))) -> 1737.016974 | D101: =T101*IF(ValYear=ToolYear,1,IF(ValYear = ToolYear-1, VLOOKUP(ToolYear-1,Trends!$A$3:$H$94,7), VLOOKUP(ToolYear-1,Trends!$A$3:$H$94,7) * VLOOKUP(ToolYear-2,Trends!$A$3:$H$94,7))) -> 146568.8654 | E101: =U101*IF(ValYear=ToolYear,1,IF(ValYear = ToolYear-1, VLOOKUP(ToolYear-1,Trends!$A$3:$H$94,8), VLOOKUP(ToolYear-1,Trends!$A$3:$H$94,8) * VLOOKUP(ToolYear-2,Trends!$A$3:$H$94,8))) -> 119579.8935 | F101: 0.7 | G101: 0.7 | H101: 0.1501 | I101: 0.0841 | N101: 118 | O101: 0 | P101: 0 | R101: 13078.32 | S101: 1617 | T101: 134217.5 | U101: 109502.89 | W101: 0.7 | X101: 0.7
A102: 119 | B102: =R102*IF(ValYear=ToolYear,1,IF(ValYear = ToolYear-1, VLOOKUP(ToolYear-1,Trends!$A$3:$H$94,IF(ExFlg=1,3,5)), VLOOKUP(ToolYear-1,Trends!$A$3:$H$94,IF(ExFlg=1,3,5)) * VLOOKUP(ToolYear-2,Trends!$A$3:$H$94,IF(ExFlg=1,3,5)))) -> 14639.34828 | C102: =S102*IF(ValYear=ToolYear,1,IF(ValYear = ToolYear-1, VLOOKUP(ToolYear-1,Trends!$A$3:$H$94,6), VLOOKUP(ToolYear-1,Trends!$A$3:$H$94,6) * VLOOKUP(ToolYear-2,Trends!$A$3:$H$94,6))) -> 1737.016974 | D102: =T102*IF(ValYear=ToolYear,1,IF(ValYear = ToolYear-1, VLOOKUP(ToolYear-1,Trends!$A$3:$H$94,7), VLOOKUP(ToolYear-1,Trends!$A$3:$H$94,7) * VLOOKUP(ToolYear-2,Trends!$A$3:$H$94,7))) -> 146568.8654 | E102: =U102*IF(ValYear=ToolYear,1,IF(ValYear = ToolYear-1, VLOOKUP(ToolYear-1,Trends!$A$3:$H$94,8), VLOOKUP(ToolYear-1,Trends!$A$3:$H$94,8) * VLOOKUP(ToolYear-2,Trends!$A$3:$H$94,8))) -> 119579.8935 | F102: 0.7 | G102: 1 | H102: 0.1501 | I102: 0.0841 | N102: 119 | O102: 0 | P102: 0 | R102: 13078.32 | S102: 1617 | T102: 134217.5 | U102: 109502.89 | W102: 0.7 | X102: 1
A103: 120 | B103: =R103*IF(ValYear=ToolYear,1,IF(ValYear = ToolYear-1, VLOOKUP(ToolYear-1,Trends!$A$3:$H$94,IF(ExFlg=1,3,5)), VLOOKUP(ToolYear-1,Trends!$A$3:$H$94,IF(ExFlg=1,3,5)) * VLOOKUP(ToolYear-2,Trends!$A$3:$H$94,IF(ExFlg=1,3,5)))) -> 14639.34828 | C103: =S103*IF(ValYear=ToolYear,1,IF(ValYear = ToolYear-1, VLOOKUP(ToolYear-1,Trends!$A$3:$H$94,6), VLOOKUP(ToolYear-1,Trends!$A$3:$H$94,6) * VLOOKUP(ToolYear-2,Trends!$A$3:$H$94,6))) -> 1737.016974 | D103: =T103*IF(ValYear=ToolYear,1,IF(ValYear = ToolYear-1, VLOOKUP(ToolYear-1,Trends!$A$3:$H$94,7), VLOOKUP(ToolYear-1,Trends!$A$3:$H$94,7) * VLOOKUP(ToolYear-2,Trends!$A$3:$H$94,7))) -> 146568.8654 | E103: =U103*IF(ValYear=ToolYear,1,IF(ValYear = ToolYear-1, VLOOKUP(ToolYear-1,Trends!$A$3:$H$94,8), VLOOKUP(ToolYear-1,Trends!$A$3:$H$94,8) * VLOOKUP(ToolYear-2,Trends!$A$3:$H$94,8))) -> 119579.8935 | F103: 1 | G103: 1 | H103: 0.1501 | I103: 0.0841 | N103: 120 | O103: 0 | P103: 0 | R103: 13078.32 | S103: 1617 | T103: 134217.5 | U103: 109502.89 | W103: 1 | X103: 1

Sheet Trends (hidden)
A1: Beginning of | B1: Costs Trends
A2: Year | B2: Placeholder | C2: Placeholder | D2: Medical No Excise Tax - Age<65 | E2: Medical No Excise Tax - Age>=65 | F2: Medicare Part B | G2: LTC Inst. | H2: LTC Non-Inst.
A3: =ValYear -> 2018 | B3: =D3 -> 1.064 | C3: =E3 -> 1.06 | D3: 1.064 | E3: 1.06 | F3: 1.026 | G3: 1.045 | H3: 1.045 | J3: Trends Source:
A4: =1+A3 -> 2019 | B4: =D4 -> 1.061 | C4: =E4 -> 1.056 | D4: 1.061 | E4: 1.056 | F4: 1.047 | G4: 1.045 | H4: 1.045 | J4: \\Moxee\osaact\OPEB2019\LEOFF 1\Assumptions\2018 L1 Medical Cost Assumptions.xlsm
A5: 2020 | B5: 1.054 | C5: 1.053 | D5: 1.054 | E5: 1.053 | F5: 1.046 | G5: 1.045 | H5: 1.045
A6: 2021 | B6: 1.051 | C6: 1.051 | D6: 1.051 | E6: 1.051 | F6: 1.049 | G6: 1.045 | H6: 1.045
A7: 2022 | B7: 1.051 | C7: 1.051 | D7: 1.051 | E7: 1.051 | F7: 1.059 | G7: 1.045 | H7: 1.045
A8: 2023 | B8: 1.051 | C8: 1.051 | D8: 1.051 | E8: 1.051 | F8: 1.057 | G8: 1.045 | H8: 1.045
A9: 2024 | B9: 1.051 | C9: 1.051 | D9: 1.051 | E9: 1.051 | F9: 1.05 | G9: 1.045 | H9: 1.045
A10: 2025 | B10: 1.051 | C10: 1.051 | D10: 1.051 | E10: 1.051 | F10: 1.054 | G10: 1.045 | H10: 1.045
A11: 2026 | B11: 1.051 | C11: 1.051 | D11: 1.051 | E11: 1.051 | F11: 1.059 | G11: 1.045 | H11: 1.045
A12: 2027 | B12: 1.051 | C12: 1.051 | D12: 1.051 | E12: 1.051 | F12: 1.056 | G12: 1.045 | H12: 1.045
A13: 2028 | B13: 1.051 | C13: 1.051 | D13: 1.051 | E13: 1.051 | F13: 1.056 | G13: 1.045 | H13: 1.045
A14: 2029 | B14: 1.051 | C14: 1.051 | D14: 1.051 | E14: 1.051 | F14: 1.053 | G14: 1.045 | H14: 1.045
A15: 2030 | B15: 1.051 | C15: 1.051 | D15: 1.051 | E15: 1.051 | F15: 1.051 | G15: 1.045 | H15: 1.045
A16: 2031 | B16: 1.051 | C16: 1.052 | D16: 1.051 | E16: 1.052 | F16: 1.051 | G16: 1.045 | H16: 1.045
A17: 2032 | B17: 1.051 | C17: 1.052 | D17: 1.051 | E17: 1.052 | F17: 1.051 | G17: 1.045 | H17: 1.045
A18: 2033 | B18: 1.051 | C18: 1.052 | D18: 1.051 | E18: 1.052 | F18: 1.051 | G18: 1.045 | H18: 1.045
A19: 2034 | B19: 1.051 | C19: 1.052 | D19: 1.051 | E19: 1.052 | F19: 1.051 | G19: 1.045 | H19: 1.045
A20: 2035 | B20: 1.051 | C20: 1.052 | D20: 1.051 | E20: 1.052 | F20: 1.051 | G20: 1.045 | H20: 1.045
A21: 2036 | B21: 1.051 | C21: 1.052 | D21: 1.051 | E21: 1.052 | F21: 1.051 | G21: 1.045 | H21: 1.045
A22: 2037 | B22: 1.051 | C22: 1.052 | D22: 1.051 | E22: 1.052 | F22: 1.051 | G22: 1.045 | H22: 1.045
A23: 2038 | B23: 1.051 | C23: 1.052 | D23: 1.051 | E23: 1.052 | F23: 1.051 | G23: 1.045 | H23: 1.045
A24: 2039 | B24: 1.051 | C24: 1.052 | D24: 1.051 | E24: 1.052 | F24: 1.048 | G24: 1.045 | H24: 1.045
A25: 2040 | B25: 1.051 | C25: 1.053 | D25: 1.051 | E25: 1.053 | F25: 1.045 | G25: 1.045 | H25: 1.045
A26: 2041 | B26: 1.051 | C26: 1.053 | D26: 1.051 | E26: 1.053 | F26: 1.045 | G26: 1.045 | H26: 1.045
A27: 2042 | B27: 1.051 | C27: 1.053 | D27: 1.051 | E27: 1.053 | F27: 1.045 | G27: 1.045 | H27: 1.045
A28: 2043 | B28: 1.051 | C28: 1.053 | D28: 1.051 | E28: 1.053 | F28: 1.045 | G28: 1.045 | H28: 1.045
A29: 2044 | B29: 1.051 | C29: 1.053 | D29: 1.051 | E29: 1.053 | F29: 1.045 | G29: 1.045 | H29: 1.045
A30: 2045 | B30: 1.051 | C30: 1.052 | D30: 1.051 | E30: 1.052 | F30: 1.045 | G30: 1.045 | H30: 1.045
A31: 2046 | B31: 1.051 | C31: 1.052 | D31: 1.051 | E31: 1.052 | F31: 1.045 | G31: 1.045 | H31: 1.045
A32: 2047 | B32: 1.051 | C32: 1.051 | D32: 1.051 | E32: 1.051 | F32: 1.045 | G32: 1.045 | H32: 1.045
A33: 2048 | B33: 1.051 | C33: 1.051 | D33: 1.051 | E33: 1.051 | F33: 1.045 | G33: 1.045 | H33: 1.045
A34: 2049 | B34: 1.051 | C34: 1.051 | D34: 1.051 | E34: 1.051 | F34: 1.045 | G34: 1.045 | H34: 1.045
A35: 2050 | B35: 1.051 | C35: 1.051 | D35: 1.051 | E35: 1.051 | F35: 1.044 | G35: 1.045 | H35: 1.045
A36: 2051 | B36: 1.051 | C36: 1.051 | D36: 1.051 | E36: 1.051 | F36: 1.044 | G36: 1.045 | H36: 1.045
A37: =1+A36 -> 2052 | B37: 1.051 | C37: 1.05 | D37: 1.051 | E37: 1.05 | F37: 1.044 | G37: 1.045 | H37: 1.045
A38: 2053 | B38: 1.051 | C38: 1.05 | D38: 1.051 | E38: 1.05 | F38: 1.044 | G38: 1.045 | H38: 1.045
A39: 2054 | B39: 1.051 | C39: 1.05 | D39: 1.051 | E39: 1.05 | F39: 1.044 | G39: 1.045 | H39: 1.045
A40: 2055 | B40: 1.051 | C40: 1.05 | D40: 1.051 | E40: 1.05 | F40: 1.044 | G40: 1.045 | H40: 1.045
A41: 2056 | B41: 1.051 | C41: 1.05 | D41: 1.051 | E41: 1.05 | F41: 1.044 | G41: 1.045 | H41: 1.045
A42: 2057 | B42: 1.051 | C42: 1.05 | D42: 1.051 | E42: 1.05 | F42: 1.044 | G42: 1.045 | H42: 1.045
A43: 2058 | B43: 1.051 | C43: 1.05 | D43: 1.051 | E43: 1.05 | F43: 1.044 | G43: 1.045 | H43: 1.045
A44: 2059 | B44: 1.051 | C44: 1.05 | D44: 1.051 | E44: 1.05 | F44: 1.044 | G44: 1.045 | H44: 1.045
A45: 2060 | B45: 1.051 | C45: 1.05 | D45: 1.051 | E45: 1.05 | F45: 1.044 | G45: 1.045 | H45: 1.045
A46: 2061 | B46: 1.051 | C46: 1.05 | D46: 1.051 | E46: 1.05 | F46: 1.044 | G46: 1.045 | H46: 1.045
A47: 2062 | B47: 1.051 | C47: 1.05 | D47: 1.051 | E47: 1.05 | F47: 1.044 | G47: 1.045 | H47: 1.045
A48: 2063 | B48: 1.051 | C48: 1.05 | D48: 1.051 | E48: 1.05 | F48: 1.044 | G48: 1.045 | H48: 1.045
A49: 2064 | B49: 1.051 | C49: 1.049 | D49: 1.051 | E49: 1.049 | F49: 1.044 | G49: 1.045 | H49: 1.045
A50: 2065 | B50: 1.051 | C50: 1.048 | D50: 1.051 | E50: 1.048 | F50: 1.044 | G50: 1.045 | H50: 1.045
A51: 2066 | B51: 1.051 | C51: 1.048 | D51: 1.051 | E51: 1.048 | F51: 1.044 | G51: 1.045 | H51: 1.045
A52: 2067 | B52: 1.051 | C52: 1.047 | D52: 1.051 | E52: 1.047 | F52: 1.044 | G52: 1.045 | H52: 1.045
A53: 2068 | B53: 1.051 | C53: 1.046 | D53: 1.051 | E53: 1.046 | F53: 1.044 | G53: 1.045 | H53: 1.045
A54: 2069 | B54: 1.051 | C54: 1.046 | D54: 1.051 | E54: 1.046 | F54: 1.044 | G54: 1.045 | H54: 1.045
A55: 2070 | B55: 1.051 | C55: 1.045 | D55: 1.051 | E55: 1.045 | F55: 1.044 | G55: 1.045 | H55: 1.045
A56: 2071 | B56: 1.051 | C56: 1.044 | D56: 1.051 | E56: 1.044 | F56: 1.044 | G56: 1.045 | H56: 1.045
A57: 2072 | B57: 1.051 | C57: 1.044 | D57: 1.051 | E57: 1.044 | F57: 1.044 | G57: 1.045 | H57: 1.045
A58: 2073 | B58: 1.051 | C58: 1.043 | D58: 1.051 | E58: 1.043 | F58: 1.044 | G58: 1.045 | H58: 1.045
A59: 2074 | B59: 1.051 | C59: 1.043 | D59: 1.051 | E59: 1.043 | F59: 1.044 | G59: 1.045 | H59: 1.045
A60: 2075 | B60: 1.051 | C60: 1.043 | D60: 1.051 | E60: 1.043 | F60: 1.044 | G60: 1.045 | H60: 1.045
A61: 2076 | B61: 1.051 | C61: 1.043 | D61: 1.051 | E61: 1.043 | F61: 1.044 | G61: 1.045 | H61: 1.045
A62: 2077 | B62: 1.051 | C62: 1.043 | D62: 1.051 | E62: 1.043 | F62: 1.044 | G62: 1.045 | H62: 1.045
A63: 2078 | B63: 1.051 | C63: 1.043 | D63: 1.051 | E63: 1.043 | F63: 1.044 | G63: 1.045 | H63: 1.045
A64: 2079 | B64: 1.051 | C64: 1.043 | D64: 1.051 | E64: 1.043 | F64: 1.043 | G64: 1.045 | H64: 1.045
A65: 2080 | B65: 1.051 | C65: 1.043 | D65: 1.051 | E65: 1.043 | F65: 1.043 | G65: 1.045 | H65: 1.045
A66: 2081 | B66: 1.051 | C66: 1.043 | D66: 1.051 | E66: 1.043 | F66: 1.043 | G66: 1.045 | H66: 1.045
A67: 2082 | B67: 1.051 | C67: 1.043 | D67: 1.051 | E67: 1.043 | F67: 1.043 | G67: 1.045 | H67: 1.045
A68: 2083 | B68: =D68 -> 1.051 | C68: =E68 -> 1.043 | D68: 1.051 | E68: 1.043 | F68: 1.043 | G68: 1.045 | H68: 1.045
A69: =1+A68 -> 2084 | B69: 1.051 | C69: 1.043 | D69: 1.051 | E69: 1.043 | F69: 1.043 | G69: 1.045 | H69: 1.045
A70: 2085 | B70: 1.051 | C70: 1.043 | D70: 1.051 | E70: 1.043 | F70: 1.043 | G70: 1.045 | H70: 1.045
A71: 2086 | B71: 1.051 | C71: 1.043 | D71: 1.051 | E71: 1.043 | F71: 1.043 | G71: 1.045 | H71: 1.045
A72: 2087 | B72: 1.051 | C72: 1.043 | D72: 1.051 | E72: 1.043 | F72: 1.043 | G72: 1.045 | H72: 1.045
A73: 2088 | B73: 1.051 | C73: 1.043 | D73: 1.051 | E73: 1.043 | F73: 1.043 | G73: 1.045 | H73: 1.045
A74: 2089 | B74: 1.051 | C74: 1.043 | D74: 1.051 | E74: 1.043 | F74: 1.043 | G74: 1.045 | H74: 1.045
A75: 2090 | B75: 1.051 | C75: 1.043 | D75: 1.051 | E75: 1.043 | F75: 1.043 | G75: 1.045 | H75: 1.045
A76: 2091 | B76: 1.051 | C76: 1.043 | D76: 1.051 | E76: 1.043 | F76: 1.043 | G76: 1.045 | H76: 1.045
A77: 2092 | B77: 1.051 | C77: 1.043 | D77: 1.051 | E77: 1.043 | F77: 1.043 | G77: 1.045 | H77: 1.045
A78: 2093 | B78: 1.051 | C78: 1.043 | D78: 1.051 | E78: 1.043 | F78: 1.043 | G78: 1.045 | H78: 1.045
A79: 2094 | B79: 1.051 | C79: 1.043 | D79: 1.051 | E79: 1.043 | F79: 1.043 | G79: 1.045 | H79: 1.045
A80: 2095 | B80: 1.051 | C80: 1.043 | D80: 1.051 | E80: 1.043 | F80: 1.043 | G80: 1.045 | H80: 1.045
A81: 2096 | B81: 1.051 | C81: 1.043 | D81: 1.051 | E81: 1.043 | F81: 1.043 | G81: 1.045 | H81: 1.045
A82: 2097 | B82: 1.051 | C82: 1.043 | D82: 1.051 | E82: 1.043 | F82: 1.043 | G82: 1.045 | H82: 1.045
A83: 2098 | B83: 1.051 | C83: 1.043 | D83: 1.051 | E83: 1.043 | F83: 1.043 | G83: 1.045 | H83: 1.045
A84: 2099 | B84: 1.051 | C84: 1.043 | D84: 1.051 | E84: 1.043 | F84: 1.043 | G84: 1.045 | H84: 1.045
A85: 2100 | B85: 1.051 | C85: 1.043 | D85: 1.051 | E85: 1.043 | F85: 1.043 | G85: 1.045 | H85: 1.045
A86: 2101 | B86: 1.051 | C86: 1.043 | D86: 1.051 | E86: 1.043 | F86: 1.043 | G86: 1.045 | H86: 1.045
A87: 2102 | B87: 1.051 | C87: 1.043 | D87: 1.051 | E87: 1.043 | F87: 1.043 | G87: 1.045 | H87: 1.045
A88: 2103 | B88: 1.051 | C88: 1.043 | D88: 1.051 | E88: 1.043 | F88: 1.043 | G88: 1.045 | H88: 1.045
A89: 2104 | B89: 1.051 | C89: 1.043 | D89: 1.051 | E89: 1.043 | F89: 1.043 | G89: 1.045 | H89: 1.045
A90: 2105 | B90: 1.051 | C90: 1.043 | D90: 1.051 | E90: 1.043 | F90: 1.043 | G90: 1.045 | H90: 1.045
A91: 2106 | B91: 1.051 | C91: 1.043 | D91: 1.051 | E91: 1.043 | F91: 1.043 | G91: 1.045 | H91: 1.045
A92: 2107 | B92: 1.051 | C92: 1.043 | D92: 1.051 | E92: 1.043 | F92: 1.043 | G92: 1.045 | H92: 1.045
A93: 2108 | B93: 1.051 | C93: 1.043 | D93: 1.051 | E93: 1.043 | F93: 1.043 | G93: 1.045 | H93: 1.045
A94: 2109 | B94: 1.051 | C94: 1.043 | D94: 1.051 | E94: 1.043 | F94: 1.043 | G94: 1.045 | H94: 1.045
